{"text_format":"1","workbook":"xlsx","n_sheets":7,"sheets":["Q","Település Bemutatása - Népesség","3. Mélyszegények-Romák","4. Gyermekek","5. Nők","6. Idősek","7.Fogyatékkal élők"],"not_rendered":{"charts":57,"images":0,"macros":1,"external_links":0,"defined_names":0,"comments":0,"pivot_tables":0},"unopened":[],"bounds":{"document_bytes":16777216,"sheet_cells":100000,"rows_first":2000,"rows_last":500,"rows_between":2000,"halvings":0,"cell_chars":16384,"cell_head_chars":4096},"cells_cut":0,"cells_raw":0,"read":"whole","date_system":"1900"}

{"sheet":"Q","index":0,"n_rows":134,"n_cols":10,"rows_kept":134,"cut":false,"hidden":true,"merged":[[0,7,3,7],[4,7,7,7]]}
[null,{"$f":"B2*1","v":2018},{"$f":"C2*1","v":2019},2020,2021,2022,2023,"<-másold a letöltött tábla egészét a kékkel jelzettt mezőbe","Utolsó év:",2023]
["Nagycenk (249)","2018","2019","2020","2021","2022","2023"]
["Lakónépesség (dec. 31.) (fő)",2129,2256,2476,2613,2684,2763,null,{"$f":"TYPE(B1)","v":1}]
["Állandó népesség (dec. 31.) (fő)",2160,2272,2454,2567,2702,2765,null,{"$f":"TYPE('Település Bemutatása - Népesség'!A3)","v":1}]
["Állandó népesség; férfiak összesen (dec. 31.) (fő)",1036,1100,1198,1249,1309,1339,"nyomd meg a CTRL+R billenytűparancsot"]
["Állandó népességből a férfiak aránya (százalék)",47.96,48.42,48.82,48.66,48.45,48.43]
["Állandó népesség; nők összesen (dec. 31.) (fő)",1124,1172,1256,1318,1393,1426]
["Állandó népességből a nők aránya (százalék)",52.04,51.58,51.18,51.34,51.55,51.57]
["Állandó népesség; 0-2 évesek (dec. 31.) (fő)",72,79,101,105,113,113]
["Állandó népességből a 0-2 évesek aránya (százalék)",3.33,3.48,4.12,4.09,4.18,4.09]
["Állandó népesség; 0-14 éves férfiak (dec. 31.) (fő)",179,205,230,248,271,285]
["Állandó népességből a 0-14 éves férfiak aránya (százalék)",8.2899999999999991,9.02,9.3699999999999992,9.66,10.029999999999999,10.31]
["Állandó népesség; 0-14 éves nők (dec. 31.) (fő)",167,180,209,228,255,266]
["Állandó népességből a 0-14 éves nők aránya (százalék)",7.73,7.92,8.52,8.8800000000000008,9.44,9.6199999999999992]
["Állandó népesség; 15-17 éves férfiak (dec. 31.) (fő)",25,22,32,38,45,42]
["Állandó népességből a 15-17 éves férfiak aránya (százalék)",1.1599999999999999,0.97,1.3,1.48,1.67,1.52]
["Állandó népesség; 15-17 éves nők (dec. 31.) (fő)",37,33,33,36,44,49]
["Állandó népességből a 15-17 éves nők aránya (százalék)",1.71,1.45,1.34,1.4,1.63,1.77]
["Állandó népesség; 18-59 éves férfiak (dec. 31.) (fő)",633,668,713,742,774,792]
["Állandó népességből a 18-59 éves férfiak aránya (százalék)",29.31,29.4,29.05,28.91,28.65,28.64]
["Állandó népesség; 18-59 évesek (dec. 31.) (fő)",1267,1336,1423,1490,1572,1611]
["Állandó népességből a 18-59 éves nők aránya (százalék)",29.35,29.4,28.93,29.14,29.53,29.62]
["Állandó népesség; 60-64 éves férfiak (dec. 31.) (fő)",76,64,67,62,52,51]
["Állandó népességből a 60-64 éves férfiak aránya (százalék)",3.52,2.82,2.73,2.42,1.92,1.84]
["Állandó népesség; 60-64 éves nők (dec. 31.) (fő)",82,78,80,71,56,55]
["Állandó népességből a 60-64 éves nők aránya (százalék)",3.8,3.43,3.26,2.77,2.0699999999999998,1.99]
["Állandó népesség; 65-X éves férfiak (dec. 31.) (fő)",123,141,156,159,167,169]
["Állandó népességből a 65-X éves férfiak aránya (százalék)",5.69,6.21,6.36,6.19,6.18,6.11]
["Állandó népesség; 65-X éves nők (dec. 31.) (fő)",204,213,224,235,240,237]
["Állandó népességből a 65-X éves nők aránya (százalék)",9.44,9.3800000000000008,9.1300000000000008,9.15,8.8800000000000008,8.57]
["65 év feletti népesség, 100 fő 0-14 éves korú népesség (fő)",94.51,91.95,86.56,82.77,77.38,73.680000000000007]
["Belföldi vándorlási egyenleg, ezer lakosra (ezrelék)",47.01,51.08,91.72,58.95,44.55,30.48]
["Természetes szaporodás, fogyás (ezrelék)",-1.44,2.2799999999999998,3.8,-3.14,6.04,-1.84]
["Nyilvántartott álláskereső férfi, 100 15-64 éves férfira (fő)",0.95,1.19,0.86,0.48,1.03,1.47]
["Nyilvántartott álláskereső nő, 100 15-64 éves nőre (fő)",1.33,1.1599999999999999,2.31,1.05,1,1.41]
["Általános iskolai végzettségű nyilvántartott álláskeresők (fő)",5,3,5,2,1,3]
["Általános iskola 8 osztályánál kevesebb végzettséggel rendelkező nyilvántartott álláskeresők (fő)",0,0,0,0,0,0]
["Nyilvántartott álláskeresők: 0-18 éves (fő)",0,0,0,0,0,0]
["Nyilvántartott álláskeresők: 19-20 éves (fő)",1,1,1,0,0,0]
["Nyilvántartott álláskeresők: 21-25 éves (fő)",2,4,0,1,1,1]
["Nyilvántartott álláskeresők: 26-30 éves (fő)",2,1,1,1,0,3]
["Nyilvántartott álláskeresők: 31-35 éves (fő)",2,0,6,0,2,1]
["Nyilvántartott álláskeresők: 36-40 éves (fő)",0,0,5,2,4,5]
["Nyilvántartott álláskeresők: 41-45 éves (fő)",2,2,3,1,2,5]
["Nyilvántartott álláskeresők: 46-50 éves (fő)",0,1,1,1,1,2]
["Nyilvántartott álláskeresők: 51-55 éves (fő)",1,2,2,2,1,3]
["Nyilvántartott álláskeresők: 56-60 éves (fő)",1,2,1,0,1,0]
["Nyilvántartott álláskeresők: 61-X éves (fő)",6,5,6,5,6,6]
["Álláskeresési ellátásban részesülő nyilvántartott álláskeresők (fő)",13,17,16,10,14,21]
["Szociális támogatásban részesülő nyilvántartott álláskeresők (fő)",0,0,0,0,0,0]
["Ellátásban részesülő nyilvántartott álláskeresők (fő)",13,17,16,10,14,21]
["Aktív foglalkoztatáspolitikai eszközzel támogatottak (fő)",0,2,23,3,1,0]
["Nyilvántartott álláskeresők összesen (fő)",17,18,26,13,18,26]
["Nyilvántartott pályakezdő álláskeresők (fő)",0,0,1,0,0,0]
["Foglalkoztatást helyettesítő támogatásban részesítettek havi átlagos létszáma (fő)",0,0,0,0.09,0,0]
["Közfoglalkoztatásban részt vevő (havi adatok éves átlaga) (fő)",0,0,0,0,0,0]
["Egészségkárosodási és gyermekfelügyeleti támogatásban részesítettek havi átlagos létszáma (fő)",0.44,1.23,1.7,2,2,2.39]
["180 napnál hosszabb ideje nyilvántartott álláskeresők aránya (százalék)",41.18,27.78,34.619999999999997,30.77,22.22,19.23]
["Nők aránya a 180 napon túli nyilvántartott álláskeresőkön belül  (százalék)",57.14,60,66.67,75,75,20]
["SZJA adófizető, 100 lakosra (fő)",49.81,42.61,42.14,42.58,42.6,42.35]
["SZJA adófizetők aránya évi 1 millió Ft alatti jövedelmi sávban (százalék)",39.409999999999997,29.13,30.46,30.19,28.06,26.13]
["Megváltozott munkaképességűeknek járó ellátásban részesülő férfiak (fő)",24,25,25,26,24,25]
["Megváltozott munkaképességűeknek járó ellátásban részesülő nők (fő)",28,24,26,25,21,21]
["Nyugdíjban, ellátásban, járadékban és egyéb járandóságban részesülő férfiak (fő)",179,184,187,186,191,193]
["Nyugdíjban, ellátásban, járadékban és egyéb járandóságban részesülő nők (fő)",300,307,300,297,291,287]
["Árvaellátásban részesülő férfiak (fő)",2,3,4,3,5,4]
["Árvaellátásban részesülő nők (fő)",7,6,7,5,7,8]
["Életkoron alapuló ellátásban részesülő férfiak (fő)",11,10,9,10,9,9]
["Életkoron alapuló ellátásban részesülő nők (fő)",2,0,0,0,0,0]
["Öregségi nyugdíjban részesülő férfiak (fő)",139,143,145,145,150,152]
["Öregségi nyugdíjban részesülő nők (fő)",257,269,261,260,258,251]
["Özvegyi és szülői nyugdíjban részesülő férfiak (fő)",1,1,2,0,1,1]
["Özvegyi és szülői nyugdíjban részesülő nők (fő)",4,4,2,3,2,4]
["Lakásállomány (db)",842,887,989,1016,1027,1067]
["Közcsatornahálózatba bekapcsolt lakások aránya (százalék)",94.89,96.05,93.63,93.9,95.33,95.22]
["Közüzemi ivóvízvezeték-hálózatba bekapcsolt lakások aránya (százalék)",100,100,100,100,100,100]
["Egy és két szobás lakások aránya (százalék)",29.81,28.52,27.6,26.87,20.55,19.87]
["Épített lakások (üdülők nélkül) (db)",21,45,102,28,21,40]
["Az év folyamán épített lakás, 1000 lakásra (db)",24.94,50.73,103.13,27.56,20.45,37.49]
["Általános iskolai feladatellátási helyek (db)",1,1,1,1,1,1]
["Általános iskolai osztályok a gyógypedagógiai oktatásban (a nappali oktatásban) (db)",0,0,0,0,0,0]
["Általános iskolai osztályok a nappali oktatásban (db)",8,8,8,8,8,8]
["Egy osztályra jutó nappali tagozatos tanulók az általános iskolákban (fő)",16.13,16.88,18.88,18.5,19.38,18.88]
["A 8. évfolyamot eredményesen befejezte a nappali oktatásban (fő)",11,10,12,21,15,19]
["Más településről bejáró általános iskolai tanulók aránya a nappali oktatásban (százalék)",10.85,12.59,13.25,6.08,7.74,5.3]
["Óvodai gyermekcsoportok (db)",3,4,4,4,4,4]
["Óvodai gyermekcsoportok a gyógypedagógiai nevelésben (db)",0,0,0,0,0,0]
["Óvodába beírt gyermekek (fő)",75,91,98,99,109,120]
["Óvodai feladatellátási helyek (db)",1,1,1,1,1,1]
["Óvodába beírt gyermek, egy gyermekcsoportra (fő)",25,22.75,24.5,24.75,27.25,30]
["Óvodai férőhelyek (fő)",75,100,100,100,100,120]
["Gyógypedagógiai oktatásban részesülő óvodás gyermekek (integráltan oktatott sajátos nevelési igényű gyermekek nélkül) (fő)",0,0,0,0,0,0]
["Hátrányos helyzetű óvodás gyermekek (fő)",0,0,0,0,0,0]
["Hátrányos helyzetű óvodás gyermekek aránya (százalék)",0,0,0,0,0,0]
["Hátrányos helyzetű általános iskolai tanulók a nappali oktatásban (fő)",6,4,0,0,0,0]
["Hátrányos helyzetű általános iskolai tanulók aránya a nappali oktatásban (százalék)",4.6500000000000004,2.96,0,0,0,0]
["Hátrányos helyzetű gimnáziumi tanulók a nappali oktatásban (fő)",0,0,0,0,0,0]
["Hátrányos helyzetű gimnáziumi tanulók aránya a nappali oktatásban (százalék)","n.a.","n.a.","n.a.","n.a.","n.a.","n.a."]
["Hátrányos helyzetű szakközépiskolai, szakiskolai és készségfejlesztő iskolai tanuló a nappali oktatásban (fő)",0,0,"n.a.","n.a.","n.a.","n.a."]
["Hátrányos helyzetű szakközépiskolai, szakiskolai és készségfejlesztő iskolai tanulók aránya a nappali oktatásban (százalék)","n.a.","n.a.","n.a.","n.a.","n.a.","n.a."]
["Hátrányos helyzetű szakgimnáziumi tanulók a nappali oktatásban (fő)",0,0,"n.a.","n.a.","n.a.","n.a."]
["Hátrányos helyzetű szakgimnáziumi tanulók aránya a nappali oktatásban (százalék)","n.a.","n.a.","n.a.","n.a.","n.a.","n.a."]
["Tornateremmel, tornaszobával ellátott köznevelési intézmények (székhely szerint) (db)",1,1,"n.a.","n.a.","n.a.","n.a."]
["Sportcsarnok, sportpálya léte (igen-nem)",1,1,1,1,1,1]
["Települési könyvtárakból kölcsönzött könyvtári egységek (db)",243,265,15,78,110,0]
["Közművelődési intézmények (db)",1,1,1,1,1,3]
["Felnőttek és gyerekek részére szervezett háziorvosi szolgálatok (db)",1,1,1,1,1,1]
["Házi gyermekorvosok által ellátott szolgálatok (db)",0,0,0,0,0,0]
["Betöltött védőnői álláshelyek (db)",1,1,1,1,1,"n.a."]
["Csak felnőttek részére szervezett háziorvosi szolgálatok (db)",0,0,0,0,0,0]
["Gyógyszertárak és fiókgyógyszertárak (db)",1,1,1,1,1,1]
["Rendszeres gyermekvédelmi kedvezményben részesítettek havi átlagos létszáma (fő)",4,0,0,0,0,0]
["Szünidei étkeztetésben részesült gyermekek (fő)",0,0,0,0,0,0]
["Megállapított halmozottan hátrányos helyzetű gyermekek és nagykorúvá vált gyermekek (fő)",0,0,0,0,0,0]
["Megállapított hátrányos helyzetű gyermekek és nagykorúvá vált gyermekek (fő)",0,0,0,0,0,0]
["Veszélyeztetett kiskorú gyermekek (2016-tól érvényes módszertan) (fő)","n.a.",0,0,1,0,1]
["Védelembe vett gyermekek (2016-tól érvényes módszertan) (fő)",3,1,2,0,2,7]
["Bölcsődébe beírt gyermekek (2017-tól érvényes módszertan) (fő)",0,0,0,0,0,0]
["Bölcsődébe beíratott gyermekek a családi bölcsődékben (2017-tól érvényes módszertan) (fő)",0,0,0,0,0,0]
["Bölcsődébe beíratott gyermekek a munkahelyi bölcsődékben (2017-tól érvényes módszertan) (fő)",0,0,0,0,0,0]
["Bölcsődébe beíratott gyermekek a mini bölcsődékben (2017-tól érvényes módszertan) (fő)",0,7,8,8,8,8]
["Működő bölcsődei férőhelyek (2017-tól érvényes módszertan) (db)",0,0,0,0,0,0]
["Működő bölcsődei férőhelyek a családi bölcsődékben (2017-tól érvényes módszertan) (db)",0,0,0,0,0,0]
["Működő bölcsődei férőhelyek a munkahelyi bölcsődékben (2017-tól érvényes módszertan) (db)",0,0,0,0,0,0]
["Működő bölcsődei férőhelyek a mini bölcsődékben (2017-tól érvényes módszertan) (db)",0,7,8,8,8,8]
["Fogyatékosok nappali ellátásában részesülők (fő)",0,0,0,0,0,0]
["Idősek nappali ellátásában részesülők (fő)",0,0,0,0,0,0]
["Házi segítségnyújtásban részesülők (fő)",1,1,1,2,2,3]
["Szociális étkeztetésben részesülők (fő)",22,25,28,17,16,21]
["Közgyógyellátási igazolvánnyal rendelkezők (alanyi és normatív alapon kiadott) (fő)",22,23,18,22,24,27]
["Időskorúak járadékában részesítettek havi átlagos létszáma (fő)",0,0,0,0,0,0]
["Alanyi jogon megállapított ápolási díjban részesítettek havi átlagos létszáma (fő)",2.62,1.04,1.31,3.33,2.93,3.48]
["Települési támogatásban részesítettek (pénzbeli és természetbeni) (fő)",44,46,24,27,29,48]
["Egyéb önkormányzati támogatásban részesítettek (pénzbeli és természetbeni) (1000 Ft)",387,417,8,11,10,11]

{"sheet":"Település Bemutatása - Népesség","index":1,"n_rows":11,"n_cols":23,"rows_kept":11,"cut":false,"hidden":false,"merged":[[0,21,0,22],[1,5,2,5],[1,6,1,8],[1,9,1,10],[0,0,0,2],[0,5,0,10],[4,9,4,10],[0,13,0,16],[0,18,0,19]]}
["1. számú táblázat - Lakónépesség száma az év végén",null,null,null,null,{"$f":"CONCATENATE(\"2. számú táblázat - Állandó népesség összetétele nemek és korcsoportok szerint\",\" (\",Q!J1-2,\")\")","v":"2. számú táblázat - Állandó népesség összetétele nemek és korcsoportok szerint (2021)"},null,null,null,null,null,null,null,"3. számú táblázat - Öregedési index",null,null,null,null,"4. számú táblázat - Belföldi vándorlások",null,null,"5. számú táblázat - Természetes szaporodás"]
["Év","Fő\n(TS 001)","Változás",null,null,"Korcsoport ","Fő",null,null,"Az állandó népességből a megfelelő korcsoportú nők és férfiak aránya (%)",null,null,null,"Év","65 év feletti állandó lakosok száma (fő)\n(TS 026 és TS 028 összesen)","0-14 éves korú állandó lakosok száma (fő)\n(TS 010 és TS 012 összesen)","\nÖregedési index\n% \n(TS 030)",null,"Év","Állandó oda-, és elvándorlások különbségének 1000 állandó lakosra vetített száma (fő)\n(TS 031)",null,"Év","Az élve születések és halálozások különbözetének 1000 lakosra vetített száma (fő)\n(TS 032)"]
[{"$f":"Q!$J$1-5","v":2018},{"$f":"_xlfn.IFNA(VLOOKUP(\"Lakónépesség (dec. 31.) (fő)\",Q!$A$1:$G$132,MATCH($A3,Q!$A$1:$G$1,FALSE),FALSE),\"n.a.\")","v":2129},"bázis év",null,null,null,"Férfiak","Nők","Összesen\n(TS 003)","Férfiak\n(TS 005)","Nők\n(TS 007)",null,null,{"$f":"$A3","v":2018},{"$f":"_xlfn.IFNA(VLOOKUP(\"Állandó népesség; 65-X éves férfiak (dec. 31.) (fő)\",Q!$A$1:$G$132,MATCH($N3,Q!$A$1:$G$1,FALSE),FALSE),\"n.a.\")+_xlfn.IFNA(VLOOKUP(\"Állandó népesség; 65-X éves nők (dec. 31.) (fő)\",Q!$A$1:$G$132,MATCH($A3,Q!$A$1:$G$1,FALSE),FALSE),\"n.a.\")","v":327},{"$f":"_xlfn.IFNA(VLOOKUP(\"Állandó népesség; 0-14 éves férfiak (dec. 31.) (fő)\",Q!$A$1:$G$132,MATCH($N3,Q!$A$1:$G$1,FALSE),FALSE),\"n.a.\")+_xlfn.IFNA(VLOOKUP(\"Állandó népesség; 0-14 éves nők (dec. 31.) (fő)\",Q!$A$1:$G$132,MATCH($A3,Q!$A$1:$G$1,FALSE),FALSE),\"n.a.\")","v":346},{"$f":"IF(ISERR((O3/P3)*1),\"-\",(O3/P3)*1)","v":0.94508670520231219},null,{"$f":"$A3","v":2018},{"$f":"_xlfn.IFNA(VLOOKUP(\"Belföldi vándorlási egyenleg, ezer lakosra (ezrelék)\",Q!$A$1:$G$132,MATCH($S3,Q!$A$1:$G$1,FALSE),FALSE),\"n.a.\")","v":47.01},null,{"$f":"$A3","v":2018},{"$f":"_xlfn.IFNA(VLOOKUP(\"Természetes szaporodás, fogyás (ezrelék)\",Q!$A$1:$G$132,MATCH($V3,Q!$A$1:$G$1,FALSE),FALSE),\"n.a.\")","v":-1.44}]
[{"$f":"Q!$J$1-4","v":2019},{"$f":"_xlfn.IFNA(VLOOKUP(\"Lakónépesség (dec. 31.) (fő)\",Q!$A$1:$G$132,MATCH($A4,Q!$A$1:$G$1,FALSE),FALSE),\"n.a.\")","v":2256},{"$f":"IF(ISERR((B4/B3)*1),\"-\",(B4/B3)*1)","v":1.059652418976045},null,null,"Állandó népesség száma (férfiak TS 004, nők TS 006)",{"$f":"_xlfn.IFNA(VLOOKUP(\"Állandó népesség; férfiak összesen (dec. 31.) (fő)\",Q!$A$1:$G$132,MATCH(Q!$J$1-2,Q!$A$1:$G$1,FALSE),FALSE),\"n.a.\")","v":1249},{"$f":"_xlfn.IFNA(VLOOKUP(\"Állandó népesség; nők összesen (dec. 31.) (fő)\",Q!$A$1:$G$132,MATCH(Q!$J$1-2,Q!$A$1:$G$1,FALSE),FALSE),\"n.a.\")","v":1318},{"$f":"IF(SUM(G4,H4)=0,\"-\",SUM(G4,H4))","v":2567},{"$f":"IF(ISERR(G4/$I$4),\"-\",(G4/$I$4))","v":0.48656018698870279},{"$f":"IF(ISERR(H4/$I$4),\"-\",(H4/$I$4))","v":0.51343981301129726},null,null,{"$f":"$A4","v":2019},{"$f":"_xlfn.IFNA(VLOOKUP(\"Állandó népesség; 65-X éves férfiak (dec. 31.) (fő)\",Q!$A$1:$G$132,MATCH($N4,Q!$A$1:$G$1,FALSE),FALSE),\"n.a.\")+_xlfn.IFNA(VLOOKUP(\"Állandó népesség; 65-X éves nők (dec. 31.) (fő)\",Q!$A$1:$G$132,MATCH($A4,Q!$A$1:$G$1,FALSE),FALSE),\"n.a.\")","v":354},{"$f":"_xlfn.IFNA(VLOOKUP(\"Állandó népesség; 0-14 éves férfiak (dec. 31.) (fő)\",Q!$A$1:$G$132,MATCH($N4,Q!$A$1:$G$1,FALSE),FALSE),\"n.a.\")+_xlfn.IFNA(VLOOKUP(\"Állandó népesség; 0-14 éves nők (dec. 31.) (fő)\",Q!$A$1:$G$132,MATCH($A4,Q!$A$1:$G$1,FALSE),FALSE),\"n.a.\")","v":385},{"$f":"IF(ISERR((O4/P4)*1),\"-\",(O4/P4)*1)","v":0.91948051948051945},null,{"$f":"$A4","v":2019},{"$f":"_xlfn.IFNA(VLOOKUP(\"Belföldi vándorlási egyenleg, ezer lakosra (ezrelék)\",Q!$A$1:$G$132,MATCH($S4,Q!$A$1:$G$1,FALSE),FALSE),\"n.a.\")","v":51.08},null,{"$f":"$A4","v":2019},{"$f":"_xlfn.IFNA(VLOOKUP(\"Természetes szaporodás, fogyás (ezrelék)\",Q!$A$1:$G$132,MATCH($V4,Q!$A$1:$G$1,FALSE),FALSE),\"n.a.\")","v":2.2799999999999998}]
[{"$f":"Q!$J$1-3","v":2020},{"$f":"_xlfn.IFNA(VLOOKUP(\"Lakónépesség (dec. 31.) (fő)\",Q!$A$1:$G$132,MATCH($A5,Q!$A$1:$G$1,FALSE),FALSE),\"n.a.\")","v":2476},{"$f":"IF(ISERR((B5/B4)*1),\"-\",(B5/B4)*1)","v":1.0975177304964538},null,null,"0-2 évesek (összes száma TS 008, aránya TS 009)",null,null,{"$f":"_xlfn.IFNA(VLOOKUP(\"Állandó népesség; 0-2 évesek (dec. 31.) (fő)\",Q!$A$1:$G$132,MATCH(Q!$J$1-2,Q!$A$1:$G$1,FALSE),FALSE),\"n.a.\")","v":105},{"$f":"IF(ISERR(I5/$I$4),\"-\",(I5/$I$4))","v":4.0903778730035062E-2},null,null,null,2020,{"$f":"_xlfn.IFNA(VLOOKUP(\"Állandó népesség; 65-X éves férfiak (dec. 31.) (fő)\",Q!$A$1:$G$132,MATCH($N5,Q!$A$1:$G$1,FALSE),FALSE),\"n.a.\")+_xlfn.IFNA(VLOOKUP(\"Állandó népesség; 65-X éves nők (dec. 31.) (fő)\",Q!$A$1:$G$132,MATCH($A5,Q!$A$1:$G$1,FALSE),FALSE),\"n.a.\")","v":380},{"$f":"_xlfn.IFNA(VLOOKUP(\"Állandó népesség; 0-14 éves férfiak (dec. 31.) (fő)\",Q!$A$1:$G$132,MATCH($N5,Q!$A$1:$G$1,FALSE),FALSE),\"n.a.\")+_xlfn.IFNA(VLOOKUP(\"Állandó népesség; 0-14 éves nők (dec. 31.) (fő)\",Q!$A$1:$G$132,MATCH($A5,Q!$A$1:$G$1,FALSE),FALSE),\"n.a.\")","v":439},0.86560364464692485,null,2020,{"$f":"_xlfn.IFNA(VLOOKUP(\"Belföldi vándorlási egyenleg, ezer lakosra (ezrelék)\",Q!$A$1:$G$132,MATCH($S5,Q!$A$1:$G$1,FALSE),FALSE),\"n.a.\")","v":91.72},null,2020,{"$f":"_xlfn.IFNA(VLOOKUP(\"Természetes szaporodás, fogyás (ezrelék)\",Q!$A$1:$G$132,MATCH($V5,Q!$A$1:$G$1,FALSE),FALSE),\"n.a.\")","v":3.8}]
[{"$f":"Q!$J$1-2","v":2021},{"$f":"_xlfn.IFNA(VLOOKUP(\"Lakónépesség (dec. 31.) (fő)\",Q!$A$1:$G$132,MATCH($A6,Q!$A$1:$G$1,FALSE),FALSE),\"n.a.\")","v":2613},1.0553311793214863,null,null,"0-14 éves (férfiak TS 010, aránya TS 011; nők TS 012, aránya TS 013)",{"$f":"_xlfn.IFNA(VLOOKUP(\"Állandó népesség; 0-14 éves férfiak (dec. 31.) (fő)\",Q!$A$1:$G$132,MATCH(Q!$J$1-2,Q!$A$1:$G$1,FALSE),FALSE),\"n.a.\")","v":248},{"$f":"_xlfn.IFNA(VLOOKUP(\"Állandó népesség; 0-14 éves nők (dec. 31.) (fő)\",Q!$A$1:$G$132,MATCH(Q!$J$1-2,Q!$A$1:$G$1,FALSE),FALSE),\"n.a.\")","v":228},{"$f":"IF(SUM(G6,H6)=0,\"-\",SUM(G6,H6))","v":476},{"$f":"IF(ISERR(G6/$I$4),\"-\",(G6/$I$4))","v":9.6610829762368525E-2},8.8819633813790419E-2,null,null,2021,{"$f":"_xlfn.IFNA(VLOOKUP(\"Állandó népesség; 65-X éves férfiak (dec. 31.) (fő)\",Q!$A$1:$G$132,MATCH($N6,Q!$A$1:$G$1,FALSE),FALSE),\"n.a.\")+_xlfn.IFNA(VLOOKUP(\"Állandó népesség; 65-X éves nők (dec. 31.) (fő)\",Q!$A$1:$G$132,MATCH($A6,Q!$A$1:$G$1,FALSE),FALSE),\"n.a.\")","v":394},{"$f":"_xlfn.IFNA(VLOOKUP(\"Állandó népesség; 0-14 éves férfiak (dec. 31.) (fő)\",Q!$A$1:$G$132,MATCH($N6,Q!$A$1:$G$1,FALSE),FALSE),\"n.a.\")+_xlfn.IFNA(VLOOKUP(\"Állandó népesség; 0-14 éves nők (dec. 31.) (fő)\",Q!$A$1:$G$132,MATCH($A6,Q!$A$1:$G$1,FALSE),FALSE),\"n.a.\")","v":476},0.82773109243697474,null,2021,{"$f":"_xlfn.IFNA(VLOOKUP(\"Belföldi vándorlási egyenleg, ezer lakosra (ezrelék)\",Q!$A$1:$G$132,MATCH($S6,Q!$A$1:$G$1,FALSE),FALSE),\"n.a.\")","v":58.95},null,2021,{"$f":"_xlfn.IFNA(VLOOKUP(\"Természetes szaporodás, fogyás (ezrelék)\",Q!$A$1:$G$132,MATCH($V6,Q!$A$1:$G$1,FALSE),FALSE),\"n.a.\")","v":-3.14}]
[{"$f":"Q!$J$1-1","v":2022},{"$f":"_xlfn.IFNA(VLOOKUP(\"Lakónépesség (dec. 31.) (fő)\",Q!$A$1:$G$132,MATCH($A7,Q!$A$1:$G$1,FALSE),FALSE),\"n.a.\")","v":2684},1.0271718331419823,null,null,"15-17 éves (férfiak TS 014, aránya TS 015; nők TS 016, aránya TS 017)",{"$f":"_xlfn.IFNA(VLOOKUP(\"Állandó népesség; 15-17 éves férfiak (dec. 31.) (fő)\",Q!$A$1:$G$132,MATCH(Q!$J$1-2,Q!$A$1:$G$1,FALSE),FALSE),\"n.a.\")","v":38},{"$f":"_xlfn.IFNA(VLOOKUP(\"Állandó népesség; 15-17 éves nők (dec. 31.) (fő)\",Q!$A$1:$G$132,MATCH(Q!$J$1-2,Q!$A$1:$G$1,FALSE),FALSE),\"n.a.\")","v":36},74,1.4803272302298403E-2,1.4024152707440592E-2,null,null,2022,{"$f":"_xlfn.IFNA(VLOOKUP(\"Állandó népesség; 65-X éves férfiak (dec. 31.) (fő)\",Q!$A$1:$G$132,MATCH($N7,Q!$A$1:$G$1,FALSE),FALSE),\"n.a.\")+_xlfn.IFNA(VLOOKUP(\"Állandó népesség; 65-X éves nők (dec. 31.) (fő)\",Q!$A$1:$G$132,MATCH($A7,Q!$A$1:$G$1,FALSE),FALSE),\"n.a.\")","v":407},{"$f":"_xlfn.IFNA(VLOOKUP(\"Állandó népesség; 0-14 éves férfiak (dec. 31.) (fő)\",Q!$A$1:$G$132,MATCH($N7,Q!$A$1:$G$1,FALSE),FALSE),\"n.a.\")+_xlfn.IFNA(VLOOKUP(\"Állandó népesség; 0-14 éves nők (dec. 31.) (fő)\",Q!$A$1:$G$132,MATCH($A7,Q!$A$1:$G$1,FALSE),FALSE),\"n.a.\")","v":526},0.77376425855513309,null,2022,{"$f":"_xlfn.IFNA(VLOOKUP(\"Belföldi vándorlási egyenleg, ezer lakosra (ezrelék)\",Q!$A$1:$G$132,MATCH($S7,Q!$A$1:$G$1,FALSE),FALSE),\"n.a.\")","v":44.55},null,2022,{"$f":"_xlfn.IFNA(VLOOKUP(\"Természetes szaporodás, fogyás (ezrelék)\",Q!$A$1:$G$132,MATCH($V7,Q!$A$1:$G$1,FALSE),FALSE),\"n.a.\")","v":6.04}]
[{"$f":"Q!$J$1","v":2023},{"$f":"_xlfn.IFNA(VLOOKUP(\"Lakónépesség (dec. 31.) (fő)\",Q!$A$1:$G$132,MATCH($A8,Q!$A$1:$G$1,FALSE),FALSE),\"n.a.\")","v":2763},1.0294336810730254,null,null,"18-59 éves (férfiak TS 018, aránya TS 019; nők TS 020, aránya TS 021)",{"$f":"_xlfn.IFNA(VLOOKUP(\"Állandó népesség; 18-59 éves férfiak (dec. 31.) (fő)\",Q!$A$1:$G$132,MATCH(Q!$J$1-2,Q!$A$1:$G$1,FALSE),FALSE),\"n.a.\")","v":742},{"$f":"_xlfn.IFNA(VLOOKUP(\"Állandó népesség; 18-59 évesek (dec. 31.) (fő)\",Q!$A$1:$G$132,MATCH(Q!$J$1-2,Q!$A$1:$G$1,FALSE),FALSE),\"n.a.\")-G8","v":748},1490,0.28905336969224776,0.29139072847682118,null,null,2023,{"$f":"_xlfn.IFNA(VLOOKUP(\"Állandó népesség; 65-X éves férfiak (dec. 31.) (fő)\",Q!$A$1:$G$132,MATCH($N8,Q!$A$1:$G$1,FALSE),FALSE),\"n.a.\")+_xlfn.IFNA(VLOOKUP(\"Állandó népesség; 65-X éves nők (dec. 31.) (fő)\",Q!$A$1:$G$132,MATCH($A8,Q!$A$1:$G$1,FALSE),FALSE),\"n.a.\")","v":406},{"$f":"_xlfn.IFNA(VLOOKUP(\"Állandó népesség; 0-14 éves férfiak (dec. 31.) (fő)\",Q!$A$1:$G$132,MATCH($N8,Q!$A$1:$G$1,FALSE),FALSE),\"n.a.\")+_xlfn.IFNA(VLOOKUP(\"Állandó népesség; 0-14 éves nők (dec. 31.) (fő)\",Q!$A$1:$G$132,MATCH($A8,Q!$A$1:$G$1,FALSE),FALSE),\"n.a.\")","v":551},0.73684210526315785,null,2023,{"$f":"_xlfn.IFNA(VLOOKUP(\"Belföldi vándorlási egyenleg, ezer lakosra (ezrelék)\",Q!$A$1:$G$132,MATCH($S8,Q!$A$1:$G$1,FALSE),FALSE),\"n.a.\")","v":30.48},null,2023,{"$f":"_xlfn.IFNA(VLOOKUP(\"Természetes szaporodás, fogyás (ezrelék)\",Q!$A$1:$G$132,MATCH($V8,Q!$A$1:$G$1,FALSE),FALSE),\"n.a.\")","v":-1.84}]
["Forrás: TeIR, KSH-TSTAR",null,null,null,null,"60-64 éves (férfiak TS 022, aránya TS 023; nők TS 024, aránya TS 025)",{"$f":"_xlfn.IFNA(VLOOKUP(\"Állandó népesség; 60-64 éves férfiak (dec. 31.) (fő)\",Q!$A$1:$G$132,MATCH(Q!$J$1-2,Q!$A$1:$G$1,FALSE),FALSE),\"n.a.\")","v":62},{"$f":"_xlfn.IFNA(VLOOKUP(\"Állandó népesség; 60-64 éves nők (dec. 31.) (fő)\",Q!$A$1:$G$132,MATCH(Q!$J$1-2,Q!$A$1:$G$1,FALSE),FALSE),\"n.a.\")","v":71},133,2.4152707440592131E-2,2.7658745617452279E-2,null,null,"Forrás: TeIR, KSH-TSTAR",null,null,null,null,"Forrás: TeIR, KSH-TSTAR",null,null,"Forrás: TeIR, KSH-TSTAR"]
[null,null,null,null,null,"65 év feletti (férfiak TS 026, aránya TS 027; nők TS 028, aránya TS 029)",{"$f":"_xlfn.IFNA(VLOOKUP(\"Állandó népesség; 65-X éves férfiak (dec. 31.) (fő)\",Q!$A$1:$G$132,MATCH(Q!$J$1-2,Q!$A$1:$G$1,FALSE),FALSE),\"n.a.\")","v":159},{"$f":"_xlfn.IFNA(VLOOKUP(\"Állandó népesség; 65-X éves nők (dec. 31.) (fő)\",Q!$A$1:$G$132,MATCH(Q!$J$1-2,Q!$A$1:$G$1,FALSE),FALSE),\"n.a.\")","v":235},394,{"$f":"IF(ISERR(G10/$I$4),\"-\",(G10/$I$4))","v":6.1940007791195947E-2},{"$f":"IF(ISERR(H10/$I$4),\"-\",(H10/$I$4))","v":9.1546552395792749E-2}]
[null,null,null,null,null,"Forrás: TeIR, KSH-TSTAR"]

{"sheet":"3. Mélyszegények-Romák","index":2,"n_rows":24,"n_cols":92,"rows_kept":24,"cut":false,"hidden":false,"merged":[[1,46,1,47],[1,50,1,51],[1,35,2,35],[1,64,2,64],[1,73,2,73],[8,85,8,86],[0,53,0,54],[1,53,2,53],[0,56,0,62],[0,64,0,71],[0,73,0,75],[1,56,2,56],[0,85,0,86],[1,77,2,77],[0,0,0,2],[1,0,2,0],[0,31,0,33],[1,31,2,31],[0,9,0,16],[0,35,0,37],[0,4,0,7],[1,5,1,7],[1,4,2,4],[0,18,0,20],[1,20,2,20],[17,9,18,9],[19,9,20,9],[21,9,22,9],[1,40,1,41],[1,39,2,39],[3,9,4,9],[5,9,6,9],[7,9,8,9],[9,9,10,9],[11,9,12,9],[13,9,14,9],[1,19,2,19],[15,9,16,9],[0,88,0,91],[0,77,0,83],[1,45,2,45],[0,45,0,51],[1,9,2,9],[1,18,3,18],[0,22,0,29],[1,22,3,22],[1,23,2,23],[1,24,1,29],[2,24,2,25],[2,26,2,27],[2,28,2,29],[1,48,1,49],[1,42,1,43],[0,39,0,43]]}
["3.1. számú táblázat - Jövedelmi helyzet",null,null,null,"3.2. 1. számú táblázat - Munkanélküliségi ráta nemek szerint ",null,null,null,null,"3.2.2. számú táblázat - Nyilvántartott álláskeresők száma korcsoportok szerint",null,null,null,null,null,null,null,null,"3.2.3. számú tábla - A 180 napnál hosszabb ideje nyilvántartott álláskeresők aránya",null,null,null,"3.2.4. számú táblázat - Regisztrált munkanélküliek/nyilvántartott álláskeresők száma iskolai végzettség szerint",null,null,null,null,null,null,null,null,"  3.2.5. számú táblázat  - Foglalkoztatáspolitika",null,null,null,"3.2.6. számú táblázat - Pályakezdő álláskeresők száma ",null,null,null,"     3.3. 1. számú táblázat - Passzív foglalkoztatás-politikai eszközök - Álláskeresők ellátásai I.",null,null,null,null,null," 3.3.2. számú táblázat - Passzív foglalkoztatás-politikai eszközök - Álláskeresők ellátásai II.",null,null,null,null,null,null,null,"3.3.3. számú táblázat - Egészségkárosodási és gyermekfelügyeleti támogatás",null,null,"3.4.1. számú táblázat - Lakásállomány",null,null,null,null,null,null,null,"3.4.2. számú táblázat - Bérlakás és szociális lakás állomány opcionális (önkormányzati adatok)",null,null,null,null,null,null,null,null,"3.4.3. számú táblázat - Lakhatást segítő támogatások",null,null,null,"3.6.1. számú táblázat – Egészségügyi ellátás",null,null,null,null,null,null,null,"3.6.2. Népkonyha",null,null,{"$f":"CONCATENATE(\"3.7.1. számú táblázat - Intézményi ellátottság\",\" (\",Q!J1-2,\")\")","v":"3.7.1. számú táblázat - Intézményi ellátottság (2021)"}]
["Év","Az SZJA adófizetők \nszáma","Az SZJA adófizetők közül a 0-1 millió forintos jövedelemsávba tartozók ",null,"Év ","Nyilvántartott álláskeresők aránya az \nállandó népességben a 15-64 évesek körében",null,null,null,"Nyilvántartott álláskeresők száma összesen","Év",{"$f":"Q!$J$1-5","v":2018},{"$f":"Q!$J$1-4","v":2019},{"$f":"Q!$J$1-3","v":2020},{"$f":"Q!$J$1-2","v":2021},{"$f":"Q!$J$1-1","v":2022},{"$f":"Q!$J$1","v":2023},null,"Év ","180 napnál hosszabb ideje regisztrált munkanélküliek aránya (TS 057)","Nők aránya a 180 napon túli nyilvántartott álláskeresőkön belül (TS 058)",null,"Év","Regisztrált munkanélküliek/nyilvántartott álláskeresők száma összesen\n(TS 052)","Regisztrált munkanélküliek/nyilvántartott álláskeresők megoszlása iskolai végzettség szerint",null,null,null,null,null,null,"Év","Aktív foglalkoztatás-politikai eszközökkel támogatottak száma\n(TS 050)","Közfoglalakoztatottak  száma\n(TS 055)",null,"Év ","Nyilvántartott álláskeresők száma\n(TS 052)","Nyilvántartott pályakezdő álláskeresők száma\n(TS 053)",null,"Év","Nyilvántartott álláskeresők száma\n(TS 052)",null,"Álláskeresési ellátásban részesülő nyilvántartott álláskeresők száma\n(TS 047)",null,null,"Év","Szociális támogatásban részesülő nyilvántartott álláskeresők száma\n(TS 048)",null,"Foglalkoztatást helyettesítő támogatásban részesítettek átlagos havi száma (TS 054)",null,"Ellátásban részesülő nyilvántartott álláskeresők száma (TS 049)",null,null,"Év","Egészségkárosodási és gyermekfelügyeleti támogatásban részesítettek havi átlagos száma\n(TS 056)",null,"Év"," Lakásállomány (db)\n(TS 073)","Épített lakások száma\n(TSv 077)","Épített lakások száma 1000 lakásra\n(TS 078)","1-2 szobás lakások aránya\n(TS 076)","A közüzemi szennyvízgyűjtő-hálózatba \n bekapcsolt lakások aránya (TS 074)","A közüzemi ivóvízvezeték-hálózatba \n bekapcsolt lakások aránya (TS 075)",null,"Év"," Lakásállomány (db)\n(TS 073)","Ebből elégtelen lakhatási körülményeket biztosító lakások száma","Bérlakás állomány (db)","Ebből elégtelen lakhatási körülményeket biztosító lakások száma","Szociális lakásállomány (db)","Ebből elégtelen lakhatási körülményeket biztosító lakások száma","Egyéb lakáscélra használt nem lakáscélú ingatlanok (db)",null,"Év","Települési támogatásban részesítettek száma\n(pénzbeli és természetbeni)\n(TS 136)","Egyéb önkormányzati támogatásban \nrészesítettek száma\n(TS 137)",null,"Év","Felnőttek és gyermekek részére szervezett háziorvosi szolgálatok száma\n(TS 107)\n","Csak felnőttek részére szervezett háziorvosi szolgáltatások száma\n(TS 106)","A házi gyermekorvosok által ellátott szolgálatok száma\n(TS 108)","Gyógyszertárak és \nfiókgyógyszertárak száma\n(TS 110)","Közgyógyellátási igazolvánnyal rendelkezők száma (alanyi és normatív alapon kiadott) \n(TS 133)","Ápolási díj, alanyi jogon: támogatásban részesítettek évi átlagos száma (TS 135)",null,"Év","Népkonyhán kiosztott  \nételadagok száma (db)",null,"Tornateremmel, tornaszobával ellátott köznevelési intézmények száma (intézmény székhelye szerint) (TS 102)","Sportcsarnok, sportpálya léte\n(TS 103)","A települési könyvtárak kikölcsönzött egységeinek száma\n(TS 104)","Közművelődési intézmények száma\n(TS 105)"]
[null,"az állandó népesség\n %-ában (TS 059)","az SZJA adófizetők\n %-ában (TS 060)",null,null,"Férfiak aránya \n(TS 033)","Nők aránya \n(TS 034)","Összesen",null,null,"Fő összesen",{"$f":"SUM(L4,L6,L8,L10,L12,L14,L16,L18,L20,L22)","v":17},18,26,13,18,26,null,null,null,null,null,null,null,"8 általánosnál alacsonyabb végzettség (TS 036)",null,"Általános iskolai végzettség (TS 035)",null,"8 általánosnál magasabb iskolai végzettség ",null,null,null,"Fő"," (éves átlag - fő)",null,null,"Fő","Fő",null,null,"Fő","15-64 év közötti népesség  %-ában","Fő","Nyilvántartottak \n%-ában",null,null,"Fő","Nyilvántartottak  \n%-ában","Fő","Nyilvántartottak  \n%-ában","Fő","Nyilvántartottak \n%-ában",null,null,"fő",null,null,"db","db","db","%","%","%",null,null,"db","db","db","db","db","db","db",null,null,"Fő","Fő",null,null,"db","db","db","db","Fő","Fő",null,{"$f":"$A4","v":2018},"n.a.",null,"db","van/nincs","db","db"]
[{"$f":"Q!$J$1-5","v":2018},{"$f":"_xlfn.IFNA(VLOOKUP(\"SZJA adófizető, 100 lakosra (fő)\",Q!$A$1:$G$132,MATCH($A4,Q!$A$1:$G$1,FALSE),FALSE),\"n.a.\")","v":49.81},{"$f":"_xlfn.IFNA(VLOOKUP(\"SZJA adófizetők aránya évi 1 millió Ft alatti jövedelmi sávban (százalék)\",Q!$A$1:$G$132,MATCH($A4,Q!$A$1:$G$1,FALSE),FALSE),\"n.a.\")","v":39.409999999999997},null,{"$f":"$A4","v":2018},{"$f":"_xlfn.IFNA(VLOOKUP(\"Nyilvántartott álláskereső férfi, 100 15-64 éves férfira (fő)\",Q!$A$1:$G$132,MATCH($E4,Q!$A$1:$G$1,FALSE),FALSE),\"n.a.\")","v":0.95},{"$f":"_xlfn.IFNA(VLOOKUP(\"Nyilvántartott álláskereső nő, 100 15-64 éves nőre (fő)\",Q!$A$1:$G$132,MATCH($E4,Q!$A$1:$G$1,FALSE),FALSE),\"n.a.\")","v":1.33},{"$f":"SUM(F4:G4)/200","v":1.14E-2},null,"20 éves, vagy az alatti \n(TS 037)","Fő",{"$f":"_xlfn.IFNA(VLOOKUP(\"Nyilvántartott álláskeresők: 0-18 éves (fő)\",Q!$A$1:$G$132,MATCH(L$2,Q!$A$1:$G$1,FALSE),FALSE),\"n.a.\")+_xlfn.IFNA(VLOOKUP(\"Nyilvántartott álláskeresők: 19-20 éves (fő)\",Q!$A$1:$G$132,MATCH(L$2,Q!$A$1:$G$1,FALSE),FALSE),\"n.a.\")","v":1},{"$f":"_xlfn.IFNA(VLOOKUP(\"Nyilvántartott álláskeresők: 0-18 éves (fő)\",Q!$A$1:$G$132,MATCH(M$2,Q!$A$1:$G$1,FALSE),FALSE),\"n.a.\")+_xlfn.IFNA(VLOOKUP(\"Nyilvántartott álláskeresők: 19-20 éves (fő)\",Q!$A$1:$G$132,MATCH(M$2,Q!$A$1:$G$1,FALSE),FALSE),\"n.a.\")","v":1},{"$f":"_xlfn.IFNA(VLOOKUP(\"Nyilvántartott álláskeresők: 0-18 éves (fő)\",Q!$A$1:$G$132,MATCH(N$2,Q!$A$1:$G$1,FALSE),FALSE),\"n.a.\")+_xlfn.IFNA(VLOOKUP(\"Nyilvántartott álláskeresők: 19-20 éves (fő)\",Q!$A$1:$G$132,MATCH(N$2,Q!$A$1:$G$1,FALSE),FALSE),\"n.a.\")","v":1},{"$f":"_xlfn.IFNA(VLOOKUP(\"Nyilvántartott álláskeresők: 0-18 éves (fő)\",Q!$A$1:$G$132,MATCH(O$2,Q!$A$1:$G$1,FALSE),FALSE),\"n.a.\")+_xlfn.IFNA(VLOOKUP(\"Nyilvántartott álláskeresők: 19-20 éves (fő)\",Q!$A$1:$G$132,MATCH(O$2,Q!$A$1:$G$1,FALSE),FALSE),\"n.a.\")","v":0},{"$f":"_xlfn.IFNA(VLOOKUP(\"Nyilvántartott álláskeresők: 0-18 éves (fő)\",Q!$A$1:$G$132,MATCH(P$2,Q!$A$1:$G$1,FALSE),FALSE),\"n.a.\")+_xlfn.IFNA(VLOOKUP(\"Nyilvántartott álláskeresők: 19-20 éves (fő)\",Q!$A$1:$G$132,MATCH(P$2,Q!$A$1:$G$1,FALSE),FALSE),\"n.a.\")","v":0},{"$f":"_xlfn.IFNA(VLOOKUP(\"Nyilvántartott álláskeresők: 0-18 éves (fő)\",Q!$A$1:$G$132,MATCH(Q$2,Q!$A$1:$G$1,FALSE),FALSE),\"n.a.\")+_xlfn.IFNA(VLOOKUP(\"Nyilvántartott álláskeresők: 19-20 éves (fő)\",Q!$A$1:$G$132,MATCH(Q$2,Q!$A$1:$G$1,FALSE),FALSE),\"n.a.\")","v":0},null,null,"%","%",null,null," Fő","Fő","%","Fő","%","Fő","%",null,{"$f":"$A4","v":2018},{"$f":"_xlfn.IFNA(VLOOKUP(\"Aktív foglalkoztatáspolitikai eszközzel támogatottak (fő)\",Q!$A$1:$G$132,MATCH($AF4,Q!$A$1:$G$1,FALSE),FALSE),\"n.a.\")","v":0},{"$f":"_xlfn.IFNA(VLOOKUP(\"Közfoglalkoztatásban részt vevő (havi adatok éves átlaga) (fő)\",Q!$A$1:$G$132,MATCH($AF4,Q!$A$1:$G$1,FALSE),FALSE),\"n.a.\")","v":0},null,{"$f":"$A4","v":2018},{"$f":"_xlfn.IFNA(VLOOKUP(\"Nyilvántartott álláskeresők összesen (fő)\",Q!$A$1:$G$132,MATCH($AJ4,Q!$A$1:$G$1,FALSE),FALSE),\"n.a.\")","v":17},{"$f":"_xlfn.IFNA(VLOOKUP(\"Nyilvántartott pályakezdő álláskeresők (fő)\",Q!$A$1:$G$132,MATCH($AJ4,Q!$A$1:$G$1,FALSE),FALSE),\"n.a.\")","v":0},null,{"$f":"$A4","v":2018},{"$f":"AK4","v":17},{"$f":"IF(ISERR((AO4/('Település Bemutatása - Népesség'!B3-'Település Bemutatása - Népesség'!O3-'Település Bemutatása - Népesség'!P3))*1),\"-\",(AO4/('Település Bemutatása - Népesség'!B3-'Település Bemutatása - Népesség'!O3-'Település Bemutatása - Népesség'!P3))*1)","v":1.1675824175824176E-2},{"$f":"_xlfn.IFNA(VLOOKUP(\"Álláskeresési ellátásban részesülő nyilvántartott álláskeresők (fő)\",Q!$A$1:$G$132,MATCH($AN4,Q!$A$1:$G$1,FALSE),FALSE),\"n.a.\")","v":13},{"$f":"IF(ISERR((AQ4/AO4)*1),\"-\",(AQ4/AO4)*1)","v":0.76470588235294112},null,{"$f":"$A4","v":2018},{"$f":"_xlfn.IFNA(VLOOKUP(\"Szociális támogatásban részesülő nyilvántartott álláskeresők (fő)\",Q!$A$1:$G$132,MATCH($AT4,Q!$A$1:$G$1,FALSE),FALSE),\"n.a.\")","v":0},{"$f":"IF(ISERR((AU4/$AO4)*1),\"-\",(AU4/$AO4)*1)","v":0},{"$f":"_xlfn.IFNA(VLOOKUP(\"Foglalkoztatást helyettesítő támogatásban részesítettek havi átlagos létszáma (fő)\",Q!$A$1:$G$132,MATCH($AT4,Q!$A$1:$G$1,FALSE),FALSE),\"n.a.\")","v":0},{"$f":"IF(ISERR((AW4/$AO4)*1),\"-\",(AW4/$AO4)*1)","v":0},{"$f":"_xlfn.IFNA(VLOOKUP(\"Ellátásban részesülő nyilvántartott álláskeresők (fő)\",Q!$A$1:$G$132,MATCH($AT4,Q!$A$1:$G$1,FALSE),FALSE),\"n.a.\")","v":13},{"$f":"IF(ISERR((AY4/$AO4)*1),\"-\",(AY4/$AO4)*1)","v":0.76470588235294112},null,{"$f":"$A4","v":2018},{"$f":"_xlfn.IFNA(VLOOKUP(\"Egészségkárosodási és gyermekfelügyeleti támogatásban részesítettek havi átlagos létszáma (fő)\",Q!$A$1:$G$132,MATCH($AT4,Q!$A$1:$G$1,FALSE),FALSE),\"n.a.\")","v":0.44},null,{"$f":"$A4","v":2018},{"$f":"_xlfn.IFNA(VLOOKUP(\"Lakásállomány (db)\",Q!$A$1:$G$132,MATCH($BE4,Q!$A$1:$G$1,FALSE),FALSE),\"n.a.\")","v":842},{"$f":"_xlfn.IFNA(VLOOKUP(\"Épített lakások (üdülők nélkül) (db)\",Q!$A$1:$G$132,MATCH($BE4,Q!$A$1:$G$1,FALSE),FALSE),\"n.a.\")","v":21},{"$f":"_xlfn.IFNA(VLOOKUP(\"Az év folyamán épített lakás, 1000 lakásra (db)\",Q!$A$1:$G$132,MATCH($BE4,Q!$A$1:$G$1,FALSE),FALSE),\"n.a.\")","v":24.94},{"$f":"_xlfn.IFNA(VLOOKUP(\"Egy és két szobás lakások aránya (százalék)\",Q!$A$1:$G$132,MATCH($BE4,Q!$A$1:$G$1,FALSE),FALSE),\"n.a.\")","v":29.81},{"$f":"_xlfn.IFNA(VLOOKUP(\"Közcsatornahálózatba bekapcsolt lakások aránya (százalék)\",Q!$A$1:$G$132,MATCH($BE4,Q!$A$1:$G$1,FALSE),FALSE),\"n.a.\")","v":94.89},{"$f":"_xlfn.IFNA(VLOOKUP(\"Közüzemi ivóvízvezeték-hálózatba bekapcsolt lakások aránya (százalék)\",Q!$A$1:$G$132,MATCH($BE4,Q!$A$1:$G$1,FALSE),FALSE),\"n.a.\")","v":100},null,{"$f":"$A4","v":2018},{"$f":"BF4","v":842},"n.a.","n.a.","n.a.","n.a.","n.a.","n.a.",null,{"$f":"$A4","v":2018},44,{"$f":"_xlfn.IFNA(VLOOKUP(\"Egyéb önkormányzati támogatásban részesítettek\"&\"*\",Q!$A$1:$G$134,MATCH($BV4,Q!$A$1:$G$1,FALSE),FALSE),\"n.a.\")","v":387},null,{"$f":"$A4","v":2018},{"$f":"_xlfn.IFNA(VLOOKUP(\"Felnőttek és gyerekek részére szervezett háziorvosi szolgálatok (db)\",Q!$A$1:$G$132,MATCH($BZ4,Q!$A$1:$G$1,FALSE),FALSE),\"n.a.\")","v":1},{"$f":"_xlfn.IFNA(VLOOKUP(\"Csak felnőttek részére szervezett háziorvosi szolgálatok (db)\",Q!$A$1:$G$132,MATCH($BZ4,Q!$A$1:$G$1,FALSE),FALSE),\"n.a.\")","v":0},{"$f":"_xlfn.IFNA(VLOOKUP(\"Házi gyermekorvosok által ellátott szolgálatok (db)\",Q!$A$1:$G$132,MATCH($BZ4,Q!$A$1:$G$1,FALSE),FALSE),\"n.a.\")","v":0},{"$f":"_xlfn.IFNA(VLOOKUP(\"Gyógyszertárak és fiókgyógyszertárak (db)\",Q!$A$1:$G$132,MATCH($BZ4,Q!$A$1:$G$1,FALSE),FALSE),\"n.a.\")","v":1},{"$f":"_xlfn.IFNA(VLOOKUP(\"Közgyógyellátási igazolvánnyal rendelkezők (alanyi és normatív alapon kiadott) (fő)\",Q!$A$1:$G$132,MATCH($BZ4,Q!$A$1:$G$1,FALSE),FALSE),\"n.a.\")","v":22},{"$f":"_xlfn.IFNA(VLOOKUP(\"Alanyi jogon megállapított ápolási díjban részesítettek havi átlagos létszáma (fő)\",Q!$A$1:$G$132,MATCH($BZ4,Q!$A$1:$G$1,FALSE),FALSE),\"n.a.\")","v":2.62},null,{"$f":"$A5","v":2019},"n.a.",null,{"$f":"_xlfn.IFNA(VLOOKUP(\"Tornateremmel, tornaszobával ellátott köznevelési intézmények (székhely szerint) (db)\",Q!$A$1:$G$132,MATCH(Q!$J$1-2,Q!$A$1:$G$1,FALSE),FALSE),\"n.a.\")","v":"n.a."},{"$f":"IF(_xlfn.IFNA(VLOOKUP(\"Sportcsarnok, sportpálya léte (igen-nem)\",Q!$A$1:$G$132,MATCH(Q!$J$1-2,Q!$A$1:$G$1,FALSE),FALSE),\"n.a.\")=1,\"igen\",\"nem\")","v":"igen"},{"$f":"_xlfn.IFNA(VLOOKUP(\"Települési könyvtárakból kölcsönzött könyvtári egységek (db)\",Q!$A$1:$G$132,MATCH(Q!$J$1-2,Q!$A$1:$G$1,FALSE),FALSE),\"n.a.\")","v":78},{"$f":"_xlfn.IFNA(VLOOKUP(\"Közművelődési intézmények (db)\",Q!$A$1:$G$132,MATCH(Q!$J$1-2,Q!$A$1:$G$1,FALSE),FALSE),\"n.a.\")","v":1}]
[{"$f":"Q!$J$1-4","v":2019},{"$f":"_xlfn.IFNA(VLOOKUP(\"SZJA adófizető, 100 lakosra (fő)\",Q!$A$1:$G$132,MATCH($A5,Q!$A$1:$G$1,FALSE),FALSE),\"n.a.\")","v":42.61},{"$f":"_xlfn.IFNA(VLOOKUP(\"SZJA adófizetők aránya évi 1 millió Ft alatti jövedelmi sávban (százalék)\",Q!$A$1:$G$132,MATCH($A5,Q!$A$1:$G$1,FALSE),FALSE),\"n.a.\")","v":29.13},null,{"$f":"$A5","v":2019},{"$f":"_xlfn.IFNA(VLOOKUP(\"Nyilvántartott álláskereső férfi, 100 15-64 éves férfira (fő)\",Q!$A$1:$G$132,MATCH($E5,Q!$A$1:$G$1,FALSE),FALSE),\"n.a.\")","v":1.19},{"$f":"_xlfn.IFNA(VLOOKUP(\"Nyilvántartott álláskereső nő, 100 15-64 éves nőre (fő)\",Q!$A$1:$G$132,MATCH($E5,Q!$A$1:$G$1,FALSE),FALSE),\"n.a.\")","v":1.1599999999999999},{"$f":"SUM(F5:G5)/200","v":1.1749999999999998E-2},null,null,"%",{"$f":"IF(ISERR((L4/L$3)),\"-\",(L4/L$3))","v":5.8823529411764705E-2},5.5555555555555552E-2,3.8461538461538464E-2,0,0,0,null,{"$f":"$A4","v":2018},{"$f":"_xlfn.IFNA(VLOOKUP(\"180 napnál hosszabb ideje nyilvántartott álláskeresők aránya (százalék)\",Q!$A$1:$G$132,MATCH($S5,Q!$A$1:$G$1,FALSE),FALSE),\"n.a.\")","v":41.18},{"$f":"_xlfn.IFNA(VLOOKUP(\"Nők aránya a 180 napon túli nyilvántartott álláskeresőkön belül  (százalék)\",Q!$A$1:$G$132,MATCH($S5,Q!$A$1:$G$1,FALSE),FALSE),\"n.a.\")","v":57.14},null,{"$f":"$A4","v":2018},{"$f":"$L$3","v":17},{"$f":"_xlfn.IFNA(VLOOKUP(\"Általános iskola 8 osztályánál kevesebb végzettséggel rendelkező nyilvántartott álláskeresők (fő)\",Q!$A$1:$G$132,MATCH($W5,Q!$A$1:$G$1,FALSE),FALSE),\"n.a.\")","v":0},{"$f":"IF(ISERR((Y5/X5)*1),\"-\",(Y5/X5)*1)","v":0},{"$f":"_xlfn.IFNA(VLOOKUP(\"Általános iskolai végzettségű nyilvántartott álláskeresők (fő)\",Q!$A$1:$G$132,MATCH($W5,Q!$A$1:$G$1,FALSE),FALSE),\"n.a.\")","v":5},{"$f":"IF(ISERR((AA5/X5)*1),\"-\",(AA5/X5)*1)","v":0.29411764705882354},{"$f":"IFERROR(X5-(Y5+AA5),\"-\")","v":12},{"$f":"IF(ISERR((AC5/X5)*1),\"-\",(AC5/X5)*1)","v":0.70588235294117652},null,{"$f":"$A5","v":2019},{"$f":"_xlfn.IFNA(VLOOKUP(\"Aktív foglalkoztatáspolitikai eszközzel támogatottak (fő)\",Q!$A$1:$G$132,MATCH($AF5,Q!$A$1:$G$1,FALSE),FALSE),\"n.a.\")","v":2},{"$f":"_xlfn.IFNA(VLOOKUP(\"Közfoglalkoztatásban részt vevő (havi adatok éves átlaga) (fő)\",Q!$A$1:$G$132,MATCH($AF5,Q!$A$1:$G$1,FALSE),FALSE),\"n.a.\")","v":0},null,{"$f":"$A5","v":2019},{"$f":"_xlfn.IFNA(VLOOKUP(\"Nyilvántartott álláskeresők összesen (fő)\",Q!$A$1:$G$132,MATCH($AJ5,Q!$A$1:$G$1,FALSE),FALSE),\"n.a.\")","v":18},{"$f":"_xlfn.IFNA(VLOOKUP(\"Nyilvántartott pályakezdő álláskeresők (fő)\",Q!$A$1:$G$132,MATCH($AJ5,Q!$A$1:$G$1,FALSE),FALSE),\"n.a.\")","v":0},null,{"$f":"$A5","v":2019},{"$f":"AK5","v":18},{"$f":"IF(ISERR((AO5/('Település Bemutatása - Népesség'!B4-'Település Bemutatása - Népesség'!O4-'Település Bemutatása - Népesség'!P4))*1),\"-\",(AO5/('Település Bemutatása - Népesség'!B4-'Település Bemutatása - Népesség'!O4-'Település Bemutatása - Népesség'!P4))*1)","v":1.1865524060646011E-2},{"$f":"_xlfn.IFNA(VLOOKUP(\"Álláskeresési ellátásban részesülő nyilvántartott álláskeresők (fő)\",Q!$A$1:$G$132,MATCH($AN5,Q!$A$1:$G$1,FALSE),FALSE),\"n.a.\")","v":17},{"$f":"IF(ISERR((AQ5/AO5)*1),\"-\",(AQ5/AO5)*1)","v":0.94444444444444442},null,{"$f":"$A5","v":2019},{"$f":"_xlfn.IFNA(VLOOKUP(\"Szociális támogatásban részesülő nyilvántartott álláskeresők (fő)\",Q!$A$1:$G$132,MATCH($AT5,Q!$A$1:$G$1,FALSE),FALSE),\"n.a.\")","v":0},0,{"$f":"_xlfn.IFNA(VLOOKUP(\"Foglalkoztatást helyettesítő támogatásban részesítettek havi átlagos létszáma (fő)\",Q!$A$1:$G$132,MATCH($AT5,Q!$A$1:$G$1,FALSE),FALSE),\"n.a.\")","v":0},0,{"$f":"_xlfn.IFNA(VLOOKUP(\"Ellátásban részesülő nyilvántartott álláskeresők (fő)\",Q!$A$1:$G$132,MATCH($AT5,Q!$A$1:$G$1,FALSE),FALSE),\"n.a.\")","v":17},0.94444444444444442,null,{"$f":"$A5","v":2019},{"$f":"_xlfn.IFNA(VLOOKUP(\"Egészségkárosodási és gyermekfelügyeleti támogatásban részesítettek havi átlagos létszáma (fő)\",Q!$A$1:$G$132,MATCH($AT5,Q!$A$1:$G$1,FALSE),FALSE),\"n.a.\")","v":1.23},null,{"$f":"$A5","v":2019},{"$f":"_xlfn.IFNA(VLOOKUP(\"Lakásállomány (db)\",Q!$A$1:$G$132,MATCH($BE5,Q!$A$1:$G$1,FALSE),FALSE),\"n.a.\")","v":887},{"$f":"_xlfn.IFNA(VLOOKUP(\"Épített lakások (üdülők nélkül) (db)\",Q!$A$1:$G$132,MATCH($BE5,Q!$A$1:$G$1,FALSE),FALSE),\"n.a.\")","v":45},{"$f":"_xlfn.IFNA(VLOOKUP(\"Az év folyamán épített lakás, 1000 lakásra (db)\",Q!$A$1:$G$132,MATCH($BE5,Q!$A$1:$G$1,FALSE),FALSE),\"n.a.\")","v":50.73},{"$f":"_xlfn.IFNA(VLOOKUP(\"Egy és két szobás lakások aránya (százalék)\",Q!$A$1:$G$132,MATCH($BE5,Q!$A$1:$G$1,FALSE),FALSE),\"n.a.\")","v":28.52},{"$f":"_xlfn.IFNA(VLOOKUP(\"Közcsatornahálózatba bekapcsolt lakások aránya (százalék)\",Q!$A$1:$G$132,MATCH($BE5,Q!$A$1:$G$1,FALSE),FALSE),\"n.a.\")","v":96.05},{"$f":"_xlfn.IFNA(VLOOKUP(\"Közüzemi ivóvízvezeték-hálózatba bekapcsolt lakások aránya (százalék)\",Q!$A$1:$G$132,MATCH($BE5,Q!$A$1:$G$1,FALSE),FALSE),\"n.a.\")","v":100},null,{"$f":"$A5","v":2019},887,"n.a.","n.a.","n.a.","n.a.","n.a.","n.a.",null,{"$f":"$A5","v":2019},46,{"$f":"_xlfn.IFNA(VLOOKUP(\"Egyéb önkormányzati támogatásban részesítettek\"&\"*\",Q!$A$1:$G$134,MATCH($BV5,Q!$A$1:$G$1,FALSE),FALSE),\"n.a.\")","v":417},null,{"$f":"$A5","v":2019},{"$f":"_xlfn.IFNA(VLOOKUP(\"Felnőttek és gyerekek részére szervezett háziorvosi szolgálatok (db)\",Q!$A$1:$G$132,MATCH($BZ5,Q!$A$1:$G$1,FALSE),FALSE),\"n.a.\")","v":1},{"$f":"_xlfn.IFNA(VLOOKUP(\"Csak felnőttek részére szervezett háziorvosi szolgálatok (db)\",Q!$A$1:$G$132,MATCH($BZ5,Q!$A$1:$G$1,FALSE),FALSE),\"n.a.\")","v":0},{"$f":"_xlfn.IFNA(VLOOKUP(\"Házi gyermekorvosok által ellátott szolgálatok (db)\",Q!$A$1:$G$132,MATCH($BZ5,Q!$A$1:$G$1,FALSE),FALSE),\"n.a.\")","v":0},{"$f":"_xlfn.IFNA(VLOOKUP(\"Gyógyszertárak és fiókgyógyszertárak (db)\",Q!$A$1:$G$132,MATCH($BZ5,Q!$A$1:$G$1,FALSE),FALSE),\"n.a.\")","v":1},{"$f":"_xlfn.IFNA(VLOOKUP(\"Közgyógyellátási igazolvánnyal rendelkezők (alanyi és normatív alapon kiadott) (fő)\",Q!$A$1:$G$132,MATCH($BZ5,Q!$A$1:$G$1,FALSE),FALSE),\"n.a.\")","v":23},{"$f":"_xlfn.IFNA(VLOOKUP(\"Alanyi jogon megállapított ápolási díjban részesítettek havi átlagos létszáma (fő)\",Q!$A$1:$G$132,MATCH($BZ5,Q!$A$1:$G$1,FALSE),FALSE),\"n.a.\")","v":1.04},null,{"$f":"$A6","v":2020},"n.a.",null,"Forrás: TeIR, KSH Tstar"]
[{"$f":"Q!$J$1-3","v":2020},{"$f":"_xlfn.IFNA(VLOOKUP(\"SZJA adófizető, 100 lakosra (fő)\",Q!$A$1:$G$132,MATCH($A6,Q!$A$1:$G$1,FALSE),FALSE),\"n.a.\")","v":42.14},{"$f":"_xlfn.IFNA(VLOOKUP(\"SZJA adófizetők aránya évi 1 millió Ft alatti jövedelmi sávban (százalék)\",Q!$A$1:$G$132,MATCH($A6,Q!$A$1:$G$1,FALSE),FALSE),\"n.a.\")","v":30.46},null,2020,{"$f":"_xlfn.IFNA(VLOOKUP(\"Nyilvántartott álláskereső férfi, 100 15-64 éves férfira (fő)\",Q!$A$1:$G$132,MATCH($E6,Q!$A$1:$G$1,FALSE),FALSE),\"n.a.\")","v":0.86},{"$f":"_xlfn.IFNA(VLOOKUP(\"Nyilvántartott álláskereső nő, 100 15-64 éves nőre (fő)\",Q!$A$1:$G$132,MATCH($E6,Q!$A$1:$G$1,FALSE),FALSE),\"n.a.\")","v":2.31},1.585E-2,null,"21-25 év (TS 038)","Fő",{"$f":"_xlfn.IFNA(VLOOKUP(\"Nyilvántartott álláskeresők: 21-25 éves (fő)\",Q!$A$1:$G$132,MATCH(L$2,Q!$A$1:$G$1,FALSE),FALSE),\"n.a.\")","v":2},{"$f":"_xlfn.IFNA(VLOOKUP(\"Nyilvántartott álláskeresők: 21-25 éves (fő)\",Q!$A$1:$G$132,MATCH(M$2,Q!$A$1:$G$1,FALSE),FALSE),\"n.a.\")","v":4},{"$f":"_xlfn.IFNA(VLOOKUP(\"Nyilvántartott álláskeresők: 21-25 éves (fő)\",Q!$A$1:$G$132,MATCH(N$2,Q!$A$1:$G$1,FALSE),FALSE),\"n.a.\")","v":0},{"$f":"_xlfn.IFNA(VLOOKUP(\"Nyilvántartott álláskeresők: 21-25 éves (fő)\",Q!$A$1:$G$132,MATCH(O$2,Q!$A$1:$G$1,FALSE),FALSE),\"n.a.\")","v":1},{"$f":"_xlfn.IFNA(VLOOKUP(\"Nyilvántartott álláskeresők: 21-25 éves (fő)\",Q!$A$1:$G$132,MATCH(P$2,Q!$A$1:$G$1,FALSE),FALSE),\"n.a.\")","v":1},{"$f":"_xlfn.IFNA(VLOOKUP(\"Nyilvántartott álláskeresők: 21-25 éves (fő)\",Q!$A$1:$G$132,MATCH(Q$2,Q!$A$1:$G$1,FALSE),FALSE),\"n.a.\")","v":1},null,{"$f":"$A5","v":2019},{"$f":"_xlfn.IFNA(VLOOKUP(\"180 napnál hosszabb ideje nyilvántartott álláskeresők aránya (százalék)\",Q!$A$1:$G$132,MATCH($S6,Q!$A$1:$G$1,FALSE),FALSE),\"n.a.\")","v":27.78},{"$f":"_xlfn.IFNA(VLOOKUP(\"Nők aránya a 180 napon túli nyilvántartott álláskeresőkön belül  (százalék)\",Q!$A$1:$G$132,MATCH($S6,Q!$A$1:$G$1,FALSE),FALSE),\"n.a.\")","v":60},null,{"$f":"$A5","v":2019},{"$f":"$M$3","v":18},{"$f":"_xlfn.IFNA(VLOOKUP(\"Általános iskola 8 osztályánál kevesebb végzettséggel rendelkező nyilvántartott álláskeresők (fő)\",Q!$A$1:$G$132,MATCH($W6,Q!$A$1:$G$1,FALSE),FALSE),\"n.a.\")","v":0},{"$f":"IF(ISERR((Y6/X6)*1),\"-\",(Y6/X6)*1)","v":0},{"$f":"_xlfn.IFNA(VLOOKUP(\"Általános iskolai végzettségű nyilvántartott álláskeresők (fő)\",Q!$A$1:$G$132,MATCH($W6,Q!$A$1:$G$1,FALSE),FALSE),\"n.a.\")","v":3},{"$f":"IF(ISERR((AA6/X6)*1),\"-\",(AA6/X6)*1)","v":0.16666666666666666},{"$f":"IFERROR(X6-(Y6+AA6),\"-\")","v":15},{"$f":"IF(ISERR((AC6/X6)*1),\"-\",(AC6/X6)*1)","v":0.83333333333333337},null,{"$f":"$A6","v":2020},{"$f":"_xlfn.IFNA(VLOOKUP(\"Aktív foglalkoztatáspolitikai eszközzel támogatottak (fő)\",Q!$A$1:$G$132,MATCH($AF6,Q!$A$1:$G$1,FALSE),FALSE),\"n.a.\")","v":23},{"$f":"_xlfn.IFNA(VLOOKUP(\"Közfoglalkoztatásban részt vevő (havi adatok éves átlaga) (fő)\",Q!$A$1:$G$132,MATCH($AF6,Q!$A$1:$G$1,FALSE),FALSE),\"n.a.\")","v":0},null,{"$f":"$A6","v":2020},{"$f":"_xlfn.IFNA(VLOOKUP(\"Nyilvántartott álláskeresők összesen (fő)\",Q!$A$1:$G$132,MATCH($AJ6,Q!$A$1:$G$1,FALSE),FALSE),\"n.a.\")","v":26},{"$f":"_xlfn.IFNA(VLOOKUP(\"Nyilvántartott pályakezdő álláskeresők (fő)\",Q!$A$1:$G$132,MATCH($AJ6,Q!$A$1:$G$1,FALSE),FALSE),\"n.a.\")","v":1},null,{"$f":"$A6","v":2020},26,{"$f":"IF(ISERR((AO6/('Település Bemutatása - Népesség'!B5-'Település Bemutatása - Népesség'!O5-'Település Bemutatása - Népesség'!P5))*1),\"-\",(AO6/('Település Bemutatása - Népesség'!B5-'Település Bemutatása - Népesség'!O5-'Település Bemutatása - Népesség'!P5))*1)","v":1.5691007845503924E-2},{"$f":"_xlfn.IFNA(VLOOKUP(\"Álláskeresési ellátásban részesülő nyilvántartott álláskeresők (fő)\",Q!$A$1:$G$132,MATCH($AN6,Q!$A$1:$G$1,FALSE),FALSE),\"n.a.\")","v":16},0.61538461538461542,null,{"$f":"$A6","v":2020},{"$f":"_xlfn.IFNA(VLOOKUP(\"Szociális támogatásban részesülő nyilvántartott álláskeresők (fő)\",Q!$A$1:$G$132,MATCH($AT6,Q!$A$1:$G$1,FALSE),FALSE),\"n.a.\")","v":0},0,{"$f":"_xlfn.IFNA(VLOOKUP(\"Foglalkoztatást helyettesítő támogatásban részesítettek havi átlagos létszáma (fő)\",Q!$A$1:$G$132,MATCH($AT6,Q!$A$1:$G$1,FALSE),FALSE),\"n.a.\")","v":0},0,{"$f":"_xlfn.IFNA(VLOOKUP(\"Ellátásban részesülő nyilvántartott álláskeresők (fő)\",Q!$A$1:$G$132,MATCH($AT6,Q!$A$1:$G$1,FALSE),FALSE),\"n.a.\")","v":16},0.61538461538461542,null,{"$f":"$A6","v":2020},{"$f":"_xlfn.IFNA(VLOOKUP(\"Egészségkárosodási és gyermekfelügyeleti támogatásban részesítettek havi átlagos létszáma (fő)\",Q!$A$1:$G$132,MATCH($AT6,Q!$A$1:$G$1,FALSE),FALSE),\"n.a.\")","v":1.7},null,{"$f":"$A6","v":2020},{"$f":"_xlfn.IFNA(VLOOKUP(\"Lakásállomány (db)\",Q!$A$1:$G$132,MATCH($BE6,Q!$A$1:$G$1,FALSE),FALSE),\"n.a.\")","v":989},{"$f":"_xlfn.IFNA(VLOOKUP(\"Épített lakások (üdülők nélkül) (db)\",Q!$A$1:$G$132,MATCH($BE6,Q!$A$1:$G$1,FALSE),FALSE),\"n.a.\")","v":102},{"$f":"_xlfn.IFNA(VLOOKUP(\"Az év folyamán épített lakás, 1000 lakásra (db)\",Q!$A$1:$G$132,MATCH($BE6,Q!$A$1:$G$1,FALSE),FALSE),\"n.a.\")","v":103.13},{"$f":"_xlfn.IFNA(VLOOKUP(\"Egy és két szobás lakások aránya (százalék)\",Q!$A$1:$G$132,MATCH($BE6,Q!$A$1:$G$1,FALSE),FALSE),\"n.a.\")","v":27.6},{"$f":"_xlfn.IFNA(VLOOKUP(\"Közcsatornahálózatba bekapcsolt lakások aránya (százalék)\",Q!$A$1:$G$132,MATCH($BE6,Q!$A$1:$G$1,FALSE),FALSE),\"n.a.\")","v":93.63},{"$f":"_xlfn.IFNA(VLOOKUP(\"Közüzemi ivóvízvezeték-hálózatba bekapcsolt lakások aránya (százalék)\",Q!$A$1:$G$132,MATCH($BE6,Q!$A$1:$G$1,FALSE),FALSE),\"n.a.\")","v":100},null,{"$f":"$A6","v":2020},989,"n.a.","n.a.","n.a.","n.a.","n.a.","n.a.",null,{"$f":"$A6","v":2020},24,{"$f":"_xlfn.IFNA(VLOOKUP(\"Egyéb önkormányzati támogatásban részesítettek\"&\"*\",Q!$A$1:$G$134,MATCH($BV6,Q!$A$1:$G$1,FALSE),FALSE),\"n.a.\")","v":8},null,{"$f":"$A6","v":2020},{"$f":"_xlfn.IFNA(VLOOKUP(\"Felnőttek és gyerekek részére szervezett háziorvosi szolgálatok (db)\",Q!$A$1:$G$132,MATCH($BZ6,Q!$A$1:$G$1,FALSE),FALSE),\"n.a.\")","v":1},{"$f":"_xlfn.IFNA(VLOOKUP(\"Csak felnőttek részére szervezett háziorvosi szolgálatok (db)\",Q!$A$1:$G$132,MATCH($BZ6,Q!$A$1:$G$1,FALSE),FALSE),\"n.a.\")","v":0},{"$f":"_xlfn.IFNA(VLOOKUP(\"Házi gyermekorvosok által ellátott szolgálatok (db)\",Q!$A$1:$G$132,MATCH($BZ6,Q!$A$1:$G$1,FALSE),FALSE),\"n.a.\")","v":0},{"$f":"_xlfn.IFNA(VLOOKUP(\"Gyógyszertárak és fiókgyógyszertárak (db)\",Q!$A$1:$G$132,MATCH($BZ6,Q!$A$1:$G$1,FALSE),FALSE),\"n.a.\")","v":1},{"$f":"_xlfn.IFNA(VLOOKUP(\"Közgyógyellátási igazolvánnyal rendelkezők (alanyi és normatív alapon kiadott) (fő)\",Q!$A$1:$G$132,MATCH($BZ6,Q!$A$1:$G$1,FALSE),FALSE),\"n.a.\")","v":18},{"$f":"_xlfn.IFNA(VLOOKUP(\"Alanyi jogon megállapított ápolási díjban részesítettek havi átlagos létszáma (fő)\",Q!$A$1:$G$132,MATCH($BZ6,Q!$A$1:$G$1,FALSE),FALSE),\"n.a.\")","v":1.31},null,2021,"n.a."]
[{"$f":"Q!$J$1-2","v":2021},{"$f":"_xlfn.IFNA(VLOOKUP(\"SZJA adófizető, 100 lakosra (fő)\",Q!$A$1:$G$132,MATCH($A7,Q!$A$1:$G$1,FALSE),FALSE),\"n.a.\")","v":42.58},{"$f":"_xlfn.IFNA(VLOOKUP(\"SZJA adófizetők aránya évi 1 millió Ft alatti jövedelmi sávban (százalék)\",Q!$A$1:$G$132,MATCH($A7,Q!$A$1:$G$1,FALSE),FALSE),\"n.a.\")","v":30.19},null,2021,{"$f":"_xlfn.IFNA(VLOOKUP(\"Nyilvántartott álláskereső férfi, 100 15-64 éves férfira (fő)\",Q!$A$1:$G$132,MATCH($E7,Q!$A$1:$G$1,FALSE),FALSE),\"n.a.\")","v":0.48},{"$f":"_xlfn.IFNA(VLOOKUP(\"Nyilvántartott álláskereső nő, 100 15-64 éves nőre (fő)\",Q!$A$1:$G$132,MATCH($E7,Q!$A$1:$G$1,FALSE),FALSE),\"n.a.\")","v":1.05},7.6500000000000005E-3,null,null,"%",{"$f":"IF(ISERR((L6/L$3)),\"-\",(L6/L$3))","v":0.11764705882352941},0.22222222222222221,0,7.6923076923076927E-2,5.5555555555555552E-2,3.8461538461538464E-2,null,2020,{"$f":"_xlfn.IFNA(VLOOKUP(\"180 napnál hosszabb ideje nyilvántartott álláskeresők aránya (százalék)\",Q!$A$1:$G$132,MATCH($S7,Q!$A$1:$G$1,FALSE),FALSE),\"n.a.\")","v":34.619999999999997},{"$f":"_xlfn.IFNA(VLOOKUP(\"Nők aránya a 180 napon túli nyilvántartott álláskeresőkön belül  (százalék)\",Q!$A$1:$G$132,MATCH($S7,Q!$A$1:$G$1,FALSE),FALSE),\"n.a.\")","v":66.67},null,2020,{"$f":"$N$3","v":26},{"$f":"_xlfn.IFNA(VLOOKUP(\"Általános iskola 8 osztályánál kevesebb végzettséggel rendelkező nyilvántartott álláskeresők (fő)\",Q!$A$1:$G$132,MATCH($W7,Q!$A$1:$G$1,FALSE),FALSE),\"n.a.\")","v":0},0,{"$f":"_xlfn.IFNA(VLOOKUP(\"Általános iskolai végzettségű nyilvántartott álláskeresők (fő)\",Q!$A$1:$G$132,MATCH($W7,Q!$A$1:$G$1,FALSE),FALSE),\"n.a.\")","v":5},0.19230769230769232,21,0.80769230769230771,null,2021,{"$f":"_xlfn.IFNA(VLOOKUP(\"Aktív foglalkoztatáspolitikai eszközzel támogatottak (fő)\",Q!$A$1:$G$132,MATCH($AF7,Q!$A$1:$G$1,FALSE),FALSE),\"n.a.\")","v":3},{"$f":"_xlfn.IFNA(VLOOKUP(\"Közfoglalkoztatásban részt vevő (havi adatok éves átlaga) (fő)\",Q!$A$1:$G$132,MATCH($AF7,Q!$A$1:$G$1,FALSE),FALSE),\"n.a.\")","v":0},null,2021,{"$f":"_xlfn.IFNA(VLOOKUP(\"Nyilvántartott álláskeresők összesen (fő)\",Q!$A$1:$G$132,MATCH($AJ7,Q!$A$1:$G$1,FALSE),FALSE),\"n.a.\")","v":13},{"$f":"_xlfn.IFNA(VLOOKUP(\"Nyilvántartott pályakezdő álláskeresők (fő)\",Q!$A$1:$G$132,MATCH($AJ7,Q!$A$1:$G$1,FALSE),FALSE),\"n.a.\")","v":0},null,2021,13,{"$f":"IF(ISERR((AO7/('Település Bemutatása - Népesség'!B6-'Település Bemutatása - Népesség'!O6-'Település Bemutatása - Népesség'!P6))*1),\"-\",(AO7/('Település Bemutatása - Népesség'!B6-'Település Bemutatása - Népesség'!O6-'Település Bemutatása - Népesség'!P6))*1)","v":7.4584050487664947E-3},{"$f":"_xlfn.IFNA(VLOOKUP(\"Álláskeresési ellátásban részesülő nyilvántartott álláskeresők (fő)\",Q!$A$1:$G$132,MATCH($AN7,Q!$A$1:$G$1,FALSE),FALSE),\"n.a.\")","v":10},0.76923076923076927,null,2021,{"$f":"_xlfn.IFNA(VLOOKUP(\"Szociális támogatásban részesülő nyilvántartott álláskeresők (fő)\",Q!$A$1:$G$132,MATCH($AT7,Q!$A$1:$G$1,FALSE),FALSE),\"n.a.\")","v":0},0,{"$f":"_xlfn.IFNA(VLOOKUP(\"Foglalkoztatást helyettesítő támogatásban részesítettek havi átlagos létszáma (fő)\",Q!$A$1:$G$132,MATCH($AT7,Q!$A$1:$G$1,FALSE),FALSE),\"n.a.\")","v":0.09},6.9230769230769224E-3,{"$f":"_xlfn.IFNA(VLOOKUP(\"Ellátásban részesülő nyilvántartott álláskeresők (fő)\",Q!$A$1:$G$132,MATCH($AT7,Q!$A$1:$G$1,FALSE),FALSE),\"n.a.\")","v":10},0.76923076923076927,null,2021,{"$f":"_xlfn.IFNA(VLOOKUP(\"Egészségkárosodási és gyermekfelügyeleti támogatásban részesítettek havi átlagos létszáma (fő)\",Q!$A$1:$G$132,MATCH($AT7,Q!$A$1:$G$1,FALSE),FALSE),\"n.a.\")","v":2},null,2021,{"$f":"_xlfn.IFNA(VLOOKUP(\"Lakásállomány (db)\",Q!$A$1:$G$132,MATCH($BE7,Q!$A$1:$G$1,FALSE),FALSE),\"n.a.\")","v":1016},{"$f":"_xlfn.IFNA(VLOOKUP(\"Épített lakások (üdülők nélkül) (db)\",Q!$A$1:$G$132,MATCH($BE7,Q!$A$1:$G$1,FALSE),FALSE),\"n.a.\")","v":28},{"$f":"_xlfn.IFNA(VLOOKUP(\"Az év folyamán épített lakás, 1000 lakásra (db)\",Q!$A$1:$G$132,MATCH($BE7,Q!$A$1:$G$1,FALSE),FALSE),\"n.a.\")","v":27.56},{"$f":"_xlfn.IFNA(VLOOKUP(\"Egy és két szobás lakások aránya (százalék)\",Q!$A$1:$G$132,MATCH($BE7,Q!$A$1:$G$1,FALSE),FALSE),\"n.a.\")","v":26.87},{"$f":"_xlfn.IFNA(VLOOKUP(\"Közcsatornahálózatba bekapcsolt lakások aránya (százalék)\",Q!$A$1:$G$132,MATCH($BE7,Q!$A$1:$G$1,FALSE),FALSE),\"n.a.\")","v":93.9},{"$f":"_xlfn.IFNA(VLOOKUP(\"Közüzemi ivóvízvezeték-hálózatba bekapcsolt lakások aránya (százalék)\",Q!$A$1:$G$132,MATCH($BE7,Q!$A$1:$G$1,FALSE),FALSE),\"n.a.\")","v":100},null,2021,1016,"n.a.","n.a.","n.a.","n.a.","n.a.","n.a.",null,2021,27,{"$f":"_xlfn.IFNA(VLOOKUP(\"Egyéb önkormányzati támogatásban részesítettek\"&\"*\",Q!$A$1:$G$134,MATCH($BV7,Q!$A$1:$G$1,FALSE),FALSE),\"n.a.\")","v":11},null,2021,{"$f":"_xlfn.IFNA(VLOOKUP(\"Felnőttek és gyerekek részére szervezett háziorvosi szolgálatok (db)\",Q!$A$1:$G$132,MATCH($BZ7,Q!$A$1:$G$1,FALSE),FALSE),\"n.a.\")","v":1},{"$f":"_xlfn.IFNA(VLOOKUP(\"Csak felnőttek részére szervezett háziorvosi szolgálatok (db)\",Q!$A$1:$G$132,MATCH($BZ7,Q!$A$1:$G$1,FALSE),FALSE),\"n.a.\")","v":0},{"$f":"_xlfn.IFNA(VLOOKUP(\"Házi gyermekorvosok által ellátott szolgálatok (db)\",Q!$A$1:$G$132,MATCH($BZ7,Q!$A$1:$G$1,FALSE),FALSE),\"n.a.\")","v":0},{"$f":"_xlfn.IFNA(VLOOKUP(\"Gyógyszertárak és fiókgyógyszertárak (db)\",Q!$A$1:$G$132,MATCH($BZ7,Q!$A$1:$G$1,FALSE),FALSE),\"n.a.\")","v":1},{"$f":"_xlfn.IFNA(VLOOKUP(\"Közgyógyellátási igazolvánnyal rendelkezők (alanyi és normatív alapon kiadott) (fő)\",Q!$A$1:$G$132,MATCH($BZ7,Q!$A$1:$G$1,FALSE),FALSE),\"n.a.\")","v":22},{"$f":"_xlfn.IFNA(VLOOKUP(\"Alanyi jogon megállapított ápolási díjban részesítettek havi átlagos létszáma (fő)\",Q!$A$1:$G$132,MATCH($BZ7,Q!$A$1:$G$1,FALSE),FALSE),\"n.a.\")","v":3.33},null,2022,"n.a."]
[{"$f":"Q!$J$1-1","v":2022},{"$f":"_xlfn.IFNA(VLOOKUP(\"SZJA adófizető, 100 lakosra (fő)\",Q!$A$1:$G$132,MATCH($A8,Q!$A$1:$G$1,FALSE),FALSE),\"n.a.\")","v":42.6},{"$f":"_xlfn.IFNA(VLOOKUP(\"SZJA adófizetők aránya évi 1 millió Ft alatti jövedelmi sávban (százalék)\",Q!$A$1:$G$132,MATCH($A8,Q!$A$1:$G$1,FALSE),FALSE),\"n.a.\")","v":28.06},null,2022,{"$f":"_xlfn.IFNA(VLOOKUP(\"Nyilvántartott álláskereső férfi, 100 15-64 éves férfira (fő)\",Q!$A$1:$G$132,MATCH($E8,Q!$A$1:$G$1,FALSE),FALSE),\"n.a.\")","v":1.03},{"$f":"_xlfn.IFNA(VLOOKUP(\"Nyilvántartott álláskereső nő, 100 15-64 éves nőre (fő)\",Q!$A$1:$G$132,MATCH($E8,Q!$A$1:$G$1,FALSE),FALSE),\"n.a.\")","v":1},1.0150000000000001E-2,null,"26-30 év (TS 039)","Fő",{"$f":"_xlfn.IFNA(VLOOKUP(\"Nyilvántartott álláskeresők: 26-30 éves (fő)\",Q!$A$1:$G$132,MATCH(L$2,Q!$A$1:$G$1,FALSE),FALSE),\"n.a.\")","v":2},{"$f":"_xlfn.IFNA(VLOOKUP(\"Nyilvántartott álláskeresők: 26-30 éves (fő)\",Q!$A$1:$G$132,MATCH(M$2,Q!$A$1:$G$1,FALSE),FALSE),\"n.a.\")","v":1},{"$f":"_xlfn.IFNA(VLOOKUP(\"Nyilvántartott álláskeresők: 26-30 éves (fő)\",Q!$A$1:$G$132,MATCH(N$2,Q!$A$1:$G$1,FALSE),FALSE),\"n.a.\")","v":1},{"$f":"_xlfn.IFNA(VLOOKUP(\"Nyilvántartott álláskeresők: 26-30 éves (fő)\",Q!$A$1:$G$132,MATCH(O$2,Q!$A$1:$G$1,FALSE),FALSE),\"n.a.\")","v":1},{"$f":"_xlfn.IFNA(VLOOKUP(\"Nyilvántartott álláskeresők: 26-30 éves (fő)\",Q!$A$1:$G$132,MATCH(P$2,Q!$A$1:$G$1,FALSE),FALSE),\"n.a.\")","v":0},{"$f":"_xlfn.IFNA(VLOOKUP(\"Nyilvántartott álláskeresők: 26-30 éves (fő)\",Q!$A$1:$G$132,MATCH(Q$2,Q!$A$1:$G$1,FALSE),FALSE),\"n.a.\")","v":3},null,2021,{"$f":"_xlfn.IFNA(VLOOKUP(\"180 napnál hosszabb ideje nyilvántartott álláskeresők aránya (százalék)\",Q!$A$1:$G$132,MATCH($S8,Q!$A$1:$G$1,FALSE),FALSE),\"n.a.\")","v":30.77},{"$f":"_xlfn.IFNA(VLOOKUP(\"Nők aránya a 180 napon túli nyilvántartott álláskeresőkön belül  (százalék)\",Q!$A$1:$G$132,MATCH($S8,Q!$A$1:$G$1,FALSE),FALSE),\"n.a.\")","v":75},null,2021,{"$f":"$O$3","v":13},{"$f":"_xlfn.IFNA(VLOOKUP(\"Általános iskola 8 osztályánál kevesebb végzettséggel rendelkező nyilvántartott álláskeresők (fő)\",Q!$A$1:$G$132,MATCH($W8,Q!$A$1:$G$1,FALSE),FALSE),\"n.a.\")","v":0},0,{"$f":"_xlfn.IFNA(VLOOKUP(\"Általános iskolai végzettségű nyilvántartott álláskeresők (fő)\",Q!$A$1:$G$132,MATCH($W8,Q!$A$1:$G$1,FALSE),FALSE),\"n.a.\")","v":2},0.15384615384615385,11,0.84615384615384615,null,2022,{"$f":"_xlfn.IFNA(VLOOKUP(\"Aktív foglalkoztatáspolitikai eszközzel támogatottak (fő)\",Q!$A$1:$G$132,MATCH($AF8,Q!$A$1:$G$1,FALSE),FALSE),\"n.a.\")","v":1},{"$f":"_xlfn.IFNA(VLOOKUP(\"Közfoglalkoztatásban részt vevő (havi adatok éves átlaga) (fő)\",Q!$A$1:$G$132,MATCH($AF8,Q!$A$1:$G$1,FALSE),FALSE),\"n.a.\")","v":0},null,2022,{"$f":"_xlfn.IFNA(VLOOKUP(\"Nyilvántartott álláskeresők összesen (fő)\",Q!$A$1:$G$132,MATCH($AJ8,Q!$A$1:$G$1,FALSE),FALSE),\"n.a.\")","v":18},{"$f":"_xlfn.IFNA(VLOOKUP(\"Nyilvántartott pályakezdő álláskeresők (fő)\",Q!$A$1:$G$132,MATCH($AJ8,Q!$A$1:$G$1,FALSE),FALSE),\"n.a.\")","v":0},null,2022,18,{"$f":"IF(ISERR((AO8/('Település Bemutatása - Népesség'!B7-'Település Bemutatása - Népesség'!O7-'Település Bemutatása - Népesség'!P7))*1),\"-\",(AO8/('Település Bemutatása - Népesség'!B7-'Település Bemutatása - Népesség'!O7-'Település Bemutatása - Népesség'!P7))*1)","v":1.0279840091376356E-2},{"$f":"_xlfn.IFNA(VLOOKUP(\"Álláskeresési ellátásban részesülő nyilvántartott álláskeresők (fő)\",Q!$A$1:$G$132,MATCH($AN8,Q!$A$1:$G$1,FALSE),FALSE),\"n.a.\")","v":14},0.77777777777777779,null,2022,{"$f":"_xlfn.IFNA(VLOOKUP(\"Szociális támogatásban részesülő nyilvántartott álláskeresők (fő)\",Q!$A$1:$G$132,MATCH($AT8,Q!$A$1:$G$1,FALSE),FALSE),\"n.a.\")","v":0},0,{"$f":"_xlfn.IFNA(VLOOKUP(\"Foglalkoztatást helyettesítő támogatásban részesítettek havi átlagos létszáma (fő)\",Q!$A$1:$G$132,MATCH($AT8,Q!$A$1:$G$1,FALSE),FALSE),\"n.a.\")","v":0},0,{"$f":"_xlfn.IFNA(VLOOKUP(\"Ellátásban részesülő nyilvántartott álláskeresők (fő)\",Q!$A$1:$G$132,MATCH($AT8,Q!$A$1:$G$1,FALSE),FALSE),\"n.a.\")","v":14},0.77777777777777779,null,2022,{"$f":"_xlfn.IFNA(VLOOKUP(\"Egészségkárosodási és gyermekfelügyeleti támogatásban részesítettek havi átlagos létszáma (fő)\",Q!$A$1:$G$132,MATCH($AT8,Q!$A$1:$G$1,FALSE),FALSE),\"n.a.\")","v":2},null,2022,{"$f":"_xlfn.IFNA(VLOOKUP(\"Lakásállomány (db)\",Q!$A$1:$G$132,MATCH($BE8,Q!$A$1:$G$1,FALSE),FALSE),\"n.a.\")","v":1027},{"$f":"_xlfn.IFNA(VLOOKUP(\"Épített lakások (üdülők nélkül) (db)\",Q!$A$1:$G$132,MATCH($BE8,Q!$A$1:$G$1,FALSE),FALSE),\"n.a.\")","v":21},{"$f":"_xlfn.IFNA(VLOOKUP(\"Az év folyamán épített lakás, 1000 lakásra (db)\",Q!$A$1:$G$132,MATCH($BE8,Q!$A$1:$G$1,FALSE),FALSE),\"n.a.\")","v":20.45},{"$f":"_xlfn.IFNA(VLOOKUP(\"Egy és két szobás lakások aránya (százalék)\",Q!$A$1:$G$132,MATCH($BE8,Q!$A$1:$G$1,FALSE),FALSE),\"n.a.\")","v":20.55},{"$f":"_xlfn.IFNA(VLOOKUP(\"Közcsatornahálózatba bekapcsolt lakások aránya (százalék)\",Q!$A$1:$G$132,MATCH($BE8,Q!$A$1:$G$1,FALSE),FALSE),\"n.a.\")","v":95.33},{"$f":"_xlfn.IFNA(VLOOKUP(\"Közüzemi ivóvízvezeték-hálózatba bekapcsolt lakások aránya (százalék)\",Q!$A$1:$G$132,MATCH($BE8,Q!$A$1:$G$1,FALSE),FALSE),\"n.a.\")","v":100},null,2022,1027,"n.a.","n.a.","n.a.","n.a.","n.a.","n.a.",null,2022,29,{"$f":"_xlfn.IFNA(VLOOKUP(\"Egyéb önkormányzati támogatásban részesítettek\"&\"*\",Q!$A$1:$G$134,MATCH($BV8,Q!$A$1:$G$1,FALSE),FALSE),\"n.a.\")","v":10},null,2022,{"$f":"_xlfn.IFNA(VLOOKUP(\"Felnőttek és gyerekek részére szervezett háziorvosi szolgálatok (db)\",Q!$A$1:$G$132,MATCH($BZ8,Q!$A$1:$G$1,FALSE),FALSE),\"n.a.\")","v":1},{"$f":"_xlfn.IFNA(VLOOKUP(\"Csak felnőttek részére szervezett háziorvosi szolgálatok (db)\",Q!$A$1:$G$132,MATCH($BZ8,Q!$A$1:$G$1,FALSE),FALSE),\"n.a.\")","v":0},{"$f":"_xlfn.IFNA(VLOOKUP(\"Házi gyermekorvosok által ellátott szolgálatok (db)\",Q!$A$1:$G$132,MATCH($BZ8,Q!$A$1:$G$1,FALSE),FALSE),\"n.a.\")","v":0},{"$f":"_xlfn.IFNA(VLOOKUP(\"Gyógyszertárak és fiókgyógyszertárak (db)\",Q!$A$1:$G$132,MATCH($BZ8,Q!$A$1:$G$1,FALSE),FALSE),\"n.a.\")","v":1},{"$f":"_xlfn.IFNA(VLOOKUP(\"Közgyógyellátási igazolvánnyal rendelkezők (alanyi és normatív alapon kiadott) (fő)\",Q!$A$1:$G$132,MATCH($BZ8,Q!$A$1:$G$1,FALSE),FALSE),\"n.a.\")","v":24},{"$f":"_xlfn.IFNA(VLOOKUP(\"Alanyi jogon megállapított ápolási díjban részesítettek havi átlagos létszáma (fő)\",Q!$A$1:$G$132,MATCH($BZ8,Q!$A$1:$G$1,FALSE),FALSE),\"n.a.\")","v":2.93},null,2023,"n.a."]
[{"$f":"Q!$J$1","v":2023},{"$f":"_xlfn.IFNA(VLOOKUP(\"SZJA adófizető, 100 lakosra (fő)\",Q!$A$1:$G$132,MATCH($A9,Q!$A$1:$G$1,FALSE),FALSE),\"n.a.\")","v":42.35},{"$f":"_xlfn.IFNA(VLOOKUP(\"SZJA adófizetők aránya évi 1 millió Ft alatti jövedelmi sávban (százalék)\",Q!$A$1:$G$132,MATCH($A9,Q!$A$1:$G$1,FALSE),FALSE),\"n.a.\")","v":26.13},null,2023,{"$f":"_xlfn.IFNA(VLOOKUP(\"Nyilvántartott álláskereső férfi, 100 15-64 éves férfira (fő)\",Q!$A$1:$G$132,MATCH($E9,Q!$A$1:$G$1,FALSE),FALSE),\"n.a.\")","v":1.47},{"$f":"_xlfn.IFNA(VLOOKUP(\"Nyilvántartott álláskereső nő, 100 15-64 éves nőre (fő)\",Q!$A$1:$G$132,MATCH($E9,Q!$A$1:$G$1,FALSE),FALSE),\"n.a.\")","v":1.41},1.44E-2,null,null,"%",{"$f":"IF(ISERR((L8/L$3)),\"-\",(L8/L$3))","v":0.11764705882352941},5.5555555555555552E-2,3.8461538461538464E-2,7.6923076923076927E-2,0,0.11538461538461539,null,2022,{"$f":"_xlfn.IFNA(VLOOKUP(\"180 napnál hosszabb ideje nyilvántartott álláskeresők aránya (százalék)\",Q!$A$1:$G$132,MATCH($S9,Q!$A$1:$G$1,FALSE),FALSE),\"n.a.\")","v":22.22},{"$f":"_xlfn.IFNA(VLOOKUP(\"Nők aránya a 180 napon túli nyilvántartott álláskeresőkön belül  (százalék)\",Q!$A$1:$G$132,MATCH($S9,Q!$A$1:$G$1,FALSE),FALSE),\"n.a.\")","v":75},null,2022,{"$f":"$P$3","v":18},{"$f":"_xlfn.IFNA(VLOOKUP(\"Általános iskola 8 osztályánál kevesebb végzettséggel rendelkező nyilvántartott álláskeresők (fő)\",Q!$A$1:$G$132,MATCH($W9,Q!$A$1:$G$1,FALSE),FALSE),\"n.a.\")","v":0},0,{"$f":"_xlfn.IFNA(VLOOKUP(\"Általános iskolai végzettségű nyilvántartott álláskeresők (fő)\",Q!$A$1:$G$132,MATCH($W9,Q!$A$1:$G$1,FALSE),FALSE),\"n.a.\")","v":1},5.5555555555555552E-2,17,0.94444444444444442,null,2023,{"$f":"_xlfn.IFNA(VLOOKUP(\"Aktív foglalkoztatáspolitikai eszközzel támogatottak (fő)\",Q!$A$1:$G$132,MATCH($AF9,Q!$A$1:$G$1,FALSE),FALSE),\"n.a.\")","v":0},{"$f":"_xlfn.IFNA(VLOOKUP(\"Közfoglalkoztatásban részt vevő (havi adatok éves átlaga) (fő)\",Q!$A$1:$G$132,MATCH($AF9,Q!$A$1:$G$1,FALSE),FALSE),\"n.a.\")","v":0},null,2023,{"$f":"_xlfn.IFNA(VLOOKUP(\"Nyilvántartott álláskeresők összesen (fő)\",Q!$A$1:$G$132,MATCH($AJ9,Q!$A$1:$G$1,FALSE),FALSE),\"n.a.\")","v":26},{"$f":"_xlfn.IFNA(VLOOKUP(\"Nyilvántartott pályakezdő álláskeresők (fő)\",Q!$A$1:$G$132,MATCH($AJ9,Q!$A$1:$G$1,FALSE),FALSE),\"n.a.\")","v":0},null,2023,26,{"$f":"IF(ISERR((AO9/('Település Bemutatása - Népesség'!B8-'Település Bemutatása - Népesség'!O8-'Település Bemutatása - Népesség'!P8))*1),\"-\",(AO9/('Település Bemutatása - Népesség'!B8-'Település Bemutatása - Népesség'!O8-'Település Bemutatása - Népesség'!P8))*1)","v":1.4396456256921373E-2},{"$f":"_xlfn.IFNA(VLOOKUP(\"Álláskeresési ellátásban részesülő nyilvántartott álláskeresők (fő)\",Q!$A$1:$G$132,MATCH($AN9,Q!$A$1:$G$1,FALSE),FALSE),\"n.a.\")","v":21},0.80769230769230771,null,2023,{"$f":"_xlfn.IFNA(VLOOKUP(\"Szociális támogatásban részesülő nyilvántartott álláskeresők (fő)\",Q!$A$1:$G$132,MATCH($AT9,Q!$A$1:$G$1,FALSE),FALSE),\"n.a.\")","v":0},0,{"$f":"_xlfn.IFNA(VLOOKUP(\"Foglalkoztatást helyettesítő támogatásban részesítettek havi átlagos létszáma (fő)\",Q!$A$1:$G$132,MATCH($AT9,Q!$A$1:$G$1,FALSE),FALSE),\"n.a.\")","v":0},0,{"$f":"_xlfn.IFNA(VLOOKUP(\"Ellátásban részesülő nyilvántartott álláskeresők (fő)\",Q!$A$1:$G$132,MATCH($AT9,Q!$A$1:$G$1,FALSE),FALSE),\"n.a.\")","v":21},0.80769230769230771,null,2023,{"$f":"_xlfn.IFNA(VLOOKUP(\"Egészségkárosodási és gyermekfelügyeleti támogatásban részesítettek havi átlagos létszáma (fő)\",Q!$A$1:$G$132,MATCH($AT9,Q!$A$1:$G$1,FALSE),FALSE),\"n.a.\")","v":2.39},null,2023,{"$f":"_xlfn.IFNA(VLOOKUP(\"Lakásállomány (db)\",Q!$A$1:$G$132,MATCH($BE9,Q!$A$1:$G$1,FALSE),FALSE),\"n.a.\")","v":1067},{"$f":"_xlfn.IFNA(VLOOKUP(\"Épített lakások (üdülők nélkül) (db)\",Q!$A$1:$G$132,MATCH($BE9,Q!$A$1:$G$1,FALSE),FALSE),\"n.a.\")","v":40},{"$f":"_xlfn.IFNA(VLOOKUP(\"Az év folyamán épített lakás, 1000 lakásra (db)\",Q!$A$1:$G$132,MATCH($BE9,Q!$A$1:$G$1,FALSE),FALSE),\"n.a.\")","v":37.49},{"$f":"_xlfn.IFNA(VLOOKUP(\"Egy és két szobás lakások aránya (százalék)\",Q!$A$1:$G$132,MATCH($BE9,Q!$A$1:$G$1,FALSE),FALSE),\"n.a.\")","v":19.87},{"$f":"_xlfn.IFNA(VLOOKUP(\"Közcsatornahálózatba bekapcsolt lakások aránya (százalék)\",Q!$A$1:$G$132,MATCH($BE9,Q!$A$1:$G$1,FALSE),FALSE),\"n.a.\")","v":95.22},{"$f":"_xlfn.IFNA(VLOOKUP(\"Közüzemi ivóvízvezeték-hálózatba bekapcsolt lakások aránya (százalék)\",Q!$A$1:$G$132,MATCH($BE9,Q!$A$1:$G$1,FALSE),FALSE),\"n.a.\")","v":100},null,2023,1067,"n.a.","n.a.","n.a.","n.a.","n.a.","n.a.",null,2023,48,{"$f":"_xlfn.IFNA(VLOOKUP(\"Egyéb önkormányzati támogatásban részesítettek\"&\"*\",Q!$A$1:$G$134,MATCH($BV9,Q!$A$1:$G$1,FALSE),FALSE),\"n.a.\")","v":11},null,2023,{"$f":"_xlfn.IFNA(VLOOKUP(\"Felnőttek és gyerekek részére szervezett háziorvosi szolgálatok (db)\",Q!$A$1:$G$132,MATCH($BZ9,Q!$A$1:$G$1,FALSE),FALSE),\"n.a.\")","v":1},{"$f":"_xlfn.IFNA(VLOOKUP(\"Csak felnőttek részére szervezett háziorvosi szolgálatok (db)\",Q!$A$1:$G$132,MATCH($BZ9,Q!$A$1:$G$1,FALSE),FALSE),\"n.a.\")","v":0},{"$f":"_xlfn.IFNA(VLOOKUP(\"Házi gyermekorvosok által ellátott szolgálatok (db)\",Q!$A$1:$G$132,MATCH($BZ9,Q!$A$1:$G$1,FALSE),FALSE),\"n.a.\")","v":0},{"$f":"_xlfn.IFNA(VLOOKUP(\"Gyógyszertárak és fiókgyógyszertárak (db)\",Q!$A$1:$G$132,MATCH($BZ9,Q!$A$1:$G$1,FALSE),FALSE),\"n.a.\")","v":1},{"$f":"_xlfn.IFNA(VLOOKUP(\"Közgyógyellátási igazolvánnyal rendelkezők (alanyi és normatív alapon kiadott) (fő)\",Q!$A$1:$G$132,MATCH($BZ9,Q!$A$1:$G$1,FALSE),FALSE),\"n.a.\")","v":27},{"$f":"_xlfn.IFNA(VLOOKUP(\"Alanyi jogon megállapított ápolási díjban részesítettek havi átlagos létszáma (fő)\",Q!$A$1:$G$132,MATCH($BZ9,Q!$A$1:$G$1,FALSE),FALSE),\"n.a.\")","v":3.48},null,"Forrás: Önkormányzati adat"]
["Forrás: TeIR, KSH Tstar",null,null,null,"Forrás: TeIR, Nemzeti Munkaügyi Hivatal",null,null,null,null,"31-35 év (TS 040)","Fő",{"$f":"_xlfn.IFNA(VLOOKUP(\"Nyilvántartott álláskeresők: 31-35 éves (fő)\",Q!$A$1:$G$132,MATCH(L$2,Q!$A$1:$G$1,FALSE),FALSE),\"n.a.\")","v":2},{"$f":"_xlfn.IFNA(VLOOKUP(\"Nyilvántartott álláskeresők: 31-35 éves (fő)\",Q!$A$1:$G$132,MATCH(M$2,Q!$A$1:$G$1,FALSE),FALSE),\"n.a.\")","v":0},{"$f":"_xlfn.IFNA(VLOOKUP(\"Nyilvántartott álláskeresők: 31-35 éves (fő)\",Q!$A$1:$G$132,MATCH(N$2,Q!$A$1:$G$1,FALSE),FALSE),\"n.a.\")","v":6},{"$f":"_xlfn.IFNA(VLOOKUP(\"Nyilvántartott álláskeresők: 31-35 éves (fő)\",Q!$A$1:$G$132,MATCH(O$2,Q!$A$1:$G$1,FALSE),FALSE),\"n.a.\")","v":0},{"$f":"_xlfn.IFNA(VLOOKUP(\"Nyilvántartott álláskeresők: 31-35 éves (fő)\",Q!$A$1:$G$132,MATCH(P$2,Q!$A$1:$G$1,FALSE),FALSE),\"n.a.\")","v":2},{"$f":"_xlfn.IFNA(VLOOKUP(\"Nyilvántartott álláskeresők: 31-35 éves (fő)\",Q!$A$1:$G$132,MATCH(Q$2,Q!$A$1:$G$1,FALSE),FALSE),\"n.a.\")","v":1},null,2023,{"$f":"_xlfn.IFNA(VLOOKUP(\"180 napnál hosszabb ideje nyilvántartott álláskeresők aránya (százalék)\",Q!$A$1:$G$132,MATCH($S10,Q!$A$1:$G$1,FALSE),FALSE),\"n.a.\")","v":19.23},{"$f":"_xlfn.IFNA(VLOOKUP(\"Nők aránya a 180 napon túli nyilvántartott álláskeresőkön belül  (százalék)\",Q!$A$1:$G$132,MATCH($S10,Q!$A$1:$G$1,FALSE),FALSE),\"n.a.\")","v":20},null,2023,{"$f":"$Q$3","v":26},{"$f":"_xlfn.IFNA(VLOOKUP(\"Általános iskola 8 osztályánál kevesebb végzettséggel rendelkező nyilvántartott álláskeresők (fő)\",Q!$A$1:$G$132,MATCH($W10,Q!$A$1:$G$1,FALSE),FALSE),\"n.a.\")","v":0},0,{"$f":"_xlfn.IFNA(VLOOKUP(\"Általános iskolai végzettségű nyilvántartott álláskeresők (fő)\",Q!$A$1:$G$132,MATCH($W10,Q!$A$1:$G$1,FALSE),FALSE),\"n.a.\")","v":3},0.11538461538461539,23,0.88461538461538458,null,"Forrás: TeIR, Nemzeti Munkaügyi Hivatal",null,null,null,"Forrás: TeIR, Nemzeti Munkaügyi Hivatal",null,null,null,"Forrás: TeIR, Nemzeti Munkaügyi Hivatal",null,null,null,null,null,"Forrás: TeIR, Nemzeti Munkaügyi Hivatal",null,null,null,null,null,null,null,"Forrás: TeIR, KSH",null,null,"Forrás: TeIR, KSH Tstar, önkormányzati adatok",null,null,null,null,null,null,null,"Forrás: TeIR, KSH Tstar, önkormányzati adatok",null,null,null,null,null,null,null,null,"Forrás: TeIR, KSH Tstar",null,null,null,"Forrás: TeIR, KSH Tstar"]
[null,null,null,null,null,null,null,null,null,null,"%",{"$f":"IF(ISERR((L10/L$3)),\"-\",(L10/L$3))","v":0.11764705882352941},0,0.23076923076923078,0,0.1111111111111111,3.8461538461538464E-2,null,"Forrás: TeIR, Nemzeti Munkaügyi Hivatal",null,null,null,"Forrás: TeIR, Nemzeti Munkaügyi Hivatal"]
[null,null,null,null,null,null,null,null,null,"36-40 év (TS 041)","Fő",{"$f":"_xlfn.IFNA(VLOOKUP(\"Nyilvántartott álláskeresők: 36-40 éves (fő)\",Q!$A$1:$G$132,MATCH(L$2,Q!$A$1:$G$1,FALSE),FALSE),\"n.a.\")","v":0},{"$f":"_xlfn.IFNA(VLOOKUP(\"Nyilvántartott álláskeresők: 36-40 éves (fő)\",Q!$A$1:$G$132,MATCH(M$2,Q!$A$1:$G$1,FALSE),FALSE),\"n.a.\")","v":0},{"$f":"_xlfn.IFNA(VLOOKUP(\"Nyilvántartott álláskeresők: 36-40 éves (fő)\",Q!$A$1:$G$132,MATCH(N$2,Q!$A$1:$G$1,FALSE),FALSE),\"n.a.\")","v":5},{"$f":"_xlfn.IFNA(VLOOKUP(\"Nyilvántartott álláskeresők: 36-40 éves (fő)\",Q!$A$1:$G$132,MATCH(O$2,Q!$A$1:$G$1,FALSE),FALSE),\"n.a.\")","v":2},{"$f":"_xlfn.IFNA(VLOOKUP(\"Nyilvántartott álláskeresők: 36-40 éves (fő)\",Q!$A$1:$G$132,MATCH(P$2,Q!$A$1:$G$1,FALSE),FALSE),\"n.a.\")","v":4},{"$f":"_xlfn.IFNA(VLOOKUP(\"Nyilvántartott álláskeresők: 36-40 éves (fő)\",Q!$A$1:$G$132,MATCH(Q$2,Q!$A$1:$G$1,FALSE),FALSE),\"n.a.\")","v":5}]
[null,null,null,null,null,null,null,null,null,null,"%",{"$f":"IF(ISERR((L12/L$3)),\"-\",(L12/L$3))","v":0},0,0.19230769230769232,0.15384615384615385,0.22222222222222221,0.19230769230769232]
[null,null,null,null,null,null,null,null,null,"41-45 év (TS 042)","Fő",{"$f":"_xlfn.IFNA(VLOOKUP(\"Nyilvántartott álláskeresők: 41-45 éves (fő)\",Q!$A$1:$G$132,MATCH(L$2,Q!$A$1:$G$1,FALSE),FALSE),\"n.a.\")","v":2},{"$f":"_xlfn.IFNA(VLOOKUP(\"Nyilvántartott álláskeresők: 41-45 éves (fő)\",Q!$A$1:$G$132,MATCH(M$2,Q!$A$1:$G$1,FALSE),FALSE),\"n.a.\")","v":2},{"$f":"_xlfn.IFNA(VLOOKUP(\"Nyilvántartott álláskeresők: 41-45 éves (fő)\",Q!$A$1:$G$132,MATCH(N$2,Q!$A$1:$G$1,FALSE),FALSE),\"n.a.\")","v":3},{"$f":"_xlfn.IFNA(VLOOKUP(\"Nyilvántartott álláskeresők: 41-45 éves (fő)\",Q!$A$1:$G$132,MATCH(O$2,Q!$A$1:$G$1,FALSE),FALSE),\"n.a.\")","v":1},{"$f":"_xlfn.IFNA(VLOOKUP(\"Nyilvántartott álláskeresők: 41-45 éves (fő)\",Q!$A$1:$G$132,MATCH(P$2,Q!$A$1:$G$1,FALSE),FALSE),\"n.a.\")","v":2},{"$f":"_xlfn.IFNA(VLOOKUP(\"Nyilvántartott álláskeresők: 41-45 éves (fő)\",Q!$A$1:$G$132,MATCH(Q$2,Q!$A$1:$G$1,FALSE),FALSE),\"n.a.\")","v":5}]
[null,null,null,null,null,null,null,null,null,null,"%",{"$f":"IF(ISERR((L14/L$3)),\"-\",(L14/L$3))","v":0.11764705882352941},0.1111111111111111,0.11538461538461539,7.6923076923076927E-2,0.1111111111111111,0.19230769230769232]
[null,null,null,null,null,null,null,null,null,"46-50 év (TS 043)","Fő",{"$f":"_xlfn.IFNA(VLOOKUP(\"Nyilvántartott álláskeresők: 46-50 éves (fő)\",Q!$A$1:$G$132,MATCH(L$2,Q!$A$1:$G$1,FALSE),FALSE),\"n.a.\")","v":0},{"$f":"_xlfn.IFNA(VLOOKUP(\"Nyilvántartott álláskeresők: 46-50 éves (fő)\",Q!$A$1:$G$132,MATCH(M$2,Q!$A$1:$G$1,FALSE),FALSE),\"n.a.\")","v":1},{"$f":"_xlfn.IFNA(VLOOKUP(\"Nyilvántartott álláskeresők: 46-50 éves (fő)\",Q!$A$1:$G$132,MATCH(N$2,Q!$A$1:$G$1,FALSE),FALSE),\"n.a.\")","v":1},{"$f":"_xlfn.IFNA(VLOOKUP(\"Nyilvántartott álláskeresők: 46-50 éves (fő)\",Q!$A$1:$G$132,MATCH(O$2,Q!$A$1:$G$1,FALSE),FALSE),\"n.a.\")","v":1},{"$f":"_xlfn.IFNA(VLOOKUP(\"Nyilvántartott álláskeresők: 46-50 éves (fő)\",Q!$A$1:$G$132,MATCH(P$2,Q!$A$1:$G$1,FALSE),FALSE),\"n.a.\")","v":1},{"$f":"_xlfn.IFNA(VLOOKUP(\"Nyilvántartott álláskeresők: 46-50 éves (fő)\",Q!$A$1:$G$132,MATCH(Q$2,Q!$A$1:$G$1,FALSE),FALSE),\"n.a.\")","v":2}]
[null,null,null,null,null,null,null,null,null,null,"%",{"$f":"IF(ISERR((L16/L$3)),\"-\",(L16/L$3))","v":0},5.5555555555555552E-2,3.8461538461538464E-2,7.6923076923076927E-2,5.5555555555555552E-2,7.6923076923076927E-2]
[null,null,null,null,null,null,null,null,null,"51-55 év (TS 044)","Fő",{"$f":"_xlfn.IFNA(VLOOKUP(\"Nyilvántartott álláskeresők: 51-55 éves (fő)\",Q!$A$1:$G$132,MATCH(L$2,Q!$A$1:$G$1,FALSE),FALSE),\"n.a.\")","v":1},{"$f":"_xlfn.IFNA(VLOOKUP(\"Nyilvántartott álláskeresők: 51-55 éves (fő)\",Q!$A$1:$G$132,MATCH(M$2,Q!$A$1:$G$1,FALSE),FALSE),\"n.a.\")","v":2},{"$f":"_xlfn.IFNA(VLOOKUP(\"Nyilvántartott álláskeresők: 51-55 éves (fő)\",Q!$A$1:$G$132,MATCH(N$2,Q!$A$1:$G$1,FALSE),FALSE),\"n.a.\")","v":2},{"$f":"_xlfn.IFNA(VLOOKUP(\"Nyilvántartott álláskeresők: 51-55 éves (fő)\",Q!$A$1:$G$132,MATCH(O$2,Q!$A$1:$G$1,FALSE),FALSE),\"n.a.\")","v":2},{"$f":"_xlfn.IFNA(VLOOKUP(\"Nyilvántartott álláskeresők: 51-55 éves (fő)\",Q!$A$1:$G$132,MATCH(P$2,Q!$A$1:$G$1,FALSE),FALSE),\"n.a.\")","v":1},{"$f":"_xlfn.IFNA(VLOOKUP(\"Nyilvántartott álláskeresők: 51-55 éves (fő)\",Q!$A$1:$G$132,MATCH(Q$2,Q!$A$1:$G$1,FALSE),FALSE),\"n.a.\")","v":3}]
[null,null,null,null,null,null,null,null,null,null,"%",{"$f":"IF(ISERR((L18/L$3)),\"-\",(L18/L$3))","v":5.8823529411764705E-2},0.1111111111111111,7.6923076923076927E-2,0.15384615384615385,5.5555555555555552E-2,0.11538461538461539]
[null,null,null,null,null,null,null,null,null,"56-60 év (TS 045)","Fő",{"$f":"_xlfn.IFNA(VLOOKUP(\"Nyilvántartott álláskeresők: 56-60 éves (fő)\",Q!$A$1:$G$132,MATCH(L$2,Q!$A$1:$G$1,FALSE),FALSE),\"n.a.\")","v":1},{"$f":"_xlfn.IFNA(VLOOKUP(\"Nyilvántartott álláskeresők: 56-60 éves (fő)\",Q!$A$1:$G$132,MATCH(M$2,Q!$A$1:$G$1,FALSE),FALSE),\"n.a.\")","v":2},{"$f":"_xlfn.IFNA(VLOOKUP(\"Nyilvántartott álláskeresők: 56-60 éves (fő)\",Q!$A$1:$G$132,MATCH(N$2,Q!$A$1:$G$1,FALSE),FALSE),\"n.a.\")","v":1},{"$f":"_xlfn.IFNA(VLOOKUP(\"Nyilvántartott álláskeresők: 56-60 éves (fő)\",Q!$A$1:$G$132,MATCH(O$2,Q!$A$1:$G$1,FALSE),FALSE),\"n.a.\")","v":0},{"$f":"_xlfn.IFNA(VLOOKUP(\"Nyilvántartott álláskeresők: 56-60 éves (fő)\",Q!$A$1:$G$132,MATCH(P$2,Q!$A$1:$G$1,FALSE),FALSE),\"n.a.\")","v":1},{"$f":"_xlfn.IFNA(VLOOKUP(\"Nyilvántartott álláskeresők: 56-60 éves (fő)\",Q!$A$1:$G$132,MATCH(Q$2,Q!$A$1:$G$1,FALSE),FALSE),\"n.a.\")","v":0}]
[null,null,null,null,null,null,null,null,null,null,"%",{"$f":"IF(ISERR((L20/L$3)),\"-\",(L20/L$3))","v":5.8823529411764705E-2},0.1111111111111111,3.8461538461538464E-2,0,5.5555555555555552E-2,0]
[null,null,null,null,null,null,null,null,null,"61 éves, vagy afeletti (TS 046)","Fő",{"$f":"_xlfn.IFNA(VLOOKUP(\"Nyilvántartott álláskeresők: 61-X éves (fő)\",Q!$A$1:$G$132,MATCH(L$2,Q!$A$1:$G$1,FALSE),FALSE),\"n.a.\")","v":6},{"$f":"_xlfn.IFNA(VLOOKUP(\"Nyilvántartott álláskeresők: 61-X éves (fő)\",Q!$A$1:$G$132,MATCH(M$2,Q!$A$1:$G$1,FALSE),FALSE),\"n.a.\")","v":5},{"$f":"_xlfn.IFNA(VLOOKUP(\"Nyilvántartott álláskeresők: 61-X éves (fő)\",Q!$A$1:$G$132,MATCH(N$2,Q!$A$1:$G$1,FALSE),FALSE),\"n.a.\")","v":6},{"$f":"_xlfn.IFNA(VLOOKUP(\"Nyilvántartott álláskeresők: 61-X éves (fő)\",Q!$A$1:$G$132,MATCH(O$2,Q!$A$1:$G$1,FALSE),FALSE),\"n.a.\")","v":5},{"$f":"_xlfn.IFNA(VLOOKUP(\"Nyilvántartott álláskeresők: 61-X éves (fő)\",Q!$A$1:$G$132,MATCH(P$2,Q!$A$1:$G$1,FALSE),FALSE),\"n.a.\")","v":6},{"$f":"_xlfn.IFNA(VLOOKUP(\"Nyilvántartott álláskeresők: 61-X éves (fő)\",Q!$A$1:$G$132,MATCH(Q$2,Q!$A$1:$G$1,FALSE),FALSE),\"n.a.\")","v":6}]
[null,null,null,null,null,null,null,null,null,null,"%",{"$f":"IF(ISERR((L22/L$3)),\"-\",(L22/L$3))","v":0.35294117647058826},0.27777777777777779,0.23076923076923078,0.38461538461538464,0.33333333333333331,0.23076923076923078]
[null,null,null,null,null,null,null,null,null,"Forrás: TeIR, Nemzeti Munkaügyi Hivatal"]

{"sheet":"4. Gyermekek","index":3,"n_rows":15,"n_cols":107,"rows_kept":15,"cut":false,"hidden":false,"merged":[[7,77,7,78],[1,98,2,98],[3,77,3,78],[4,77,4,78],[1,91,2,91],[1,80,2,80],[5,77,5,78],[1,102,2,102],[1,72,2,72],[1,64,2,64],[0,40,0,42],[2,77,2,78],[1,76,1,78],[0,80,0,88],[0,72,0,74],[0,28,0,31],[0,33,0,38],[0,1,0,6],[0,102,0,106],[0,98,0,99],[0,76,0,78],[0,91,0,96],[0,44,0,52],[0,8,0,10],[0,12,0,13],[0,20,0,26],[0,15,0,18],[1,33,2,33],[0,54,0,57],[0,59,0,62],[0,64,0,70],[1,40,2,40],[1,44,2,44],[1,54,2,54],[1,59,2,59],[1,15,2,15],[1,20,2,20],[1,2,1,4],[1,5,1,6],[1,28,2,28],[5,5,5,6],[5,2,5,3],[1,1,3,1],[1,8,2,8],[1,12,2,12]]}
[null,"4.1. számú táblázat - Gyermekkorú népesség összetétele nemek és korcsoportok szerint (2.számú táblázatból)",null,null,null,null,null,null,"4.1.1. számú táblázat - Védelembe vett és veszélyeztetett kiskorú gyermekek ",null,null,null,"4.1.2. számú táblázat - Rendszeres gyermekvédelmi kedvezményben részesítettek ",null,null,"4.1.3. számú táblázat - Árvaellátás",null,null,null,null,"4.1.4. számú táblázat – Kedvezményes óvodai - iskolai juttatásokban részesülők száma (A táblázat kitöltése és elemzése opcionális.)",null,null,null,null,null,null,null,"4.3.1. számú táblázat – Védőnői álláshelyek száma",null,null,null,null,"4.3.2. számú táblázat – Gyermekorvosi ellátás",null,null,null,null,null,null,"4.3.3. a.) számú táblázat - Bölcsődék és bölcsődébe beíratott gyermekek száma",null,null,null,"4.3.3. b.) számú táblázat - Bölcsődék és bölcsődébe beíratott gyermekek száma",null,null,null,null,null,null,null,null,null,"4.4. a) 1.számú táblázat -  Hátrányos és halmozottan hátrányos helyzetű óvodás gyermekek ",null,null,null,null,"4.4. a) 2. számú táblázat -   Hátrányos és halmozottan hátrányos helyzetű általános iskolai tanulók ",null,null,null,null,"4.4. a) 3. számú táblázat -   Hátrányos és halmozottan hátrányos helyzet a középszintű oktatásban ",null,null,null,null,null,null,null,"4.4. a) 4. számú táblázat -  Hátrányos és halmozottan hátrányos helyzet",null,null,null,"4.4.1. számú táblázat - Óvodai nevelés adatai\n (A táblázat kitöltése és elemzése opcionális.)",null,null,null,"4.4.2. számú táblázat - Óvodai nevelés adatai ",null,null,null,null,null,null,null,null,null,null,"4.4.4. számú táblázat - Általános iskolák adatai: osztályok, gyógypedagógiai osztályok, feladatellátási helyek",null,null,null,null,null,null,"4.4.5. számú táblázat - A 8. évfolyamot eredményesen befejeők a nappali oktatásban",null,null,null,"4.4.6. számú táblázat - Gyermekjóléti, hátránykompenzáló szolgáltatások"]
[null,"Korcsoport ","Fő",null,null,"Az állandó népességből a megfelelő korcsoportú nők és férfiak aránya (%)",null,null,"Év","Védelembe vett kiskorú gyermekek száma \n(TS 116)","Veszélyeztetett kiskorú gyermekek száma  (TS 115)",null,"Év","Rendszeres gyermekvédelmi kedvezményben részesítettek évi átlagos száma (TS 111)",null,"Év","Árvaellátásban részesülő \nférfiak száma (fő)\n(TS 065) ","Árvaellátásban részesülő \nnők száma (fő)\n(TS 066)","Árvaellátásban\n részesülők összesen",null,"Év"," Ingyenes étkezésben résztvevők száma óvoda","Ingyenes étkezésben résztvevők száma iskola 1-8. évfolyam","50 százalékos mértékű kedvezményes étkezésre jogosultak száma 1-13. évfolyam"," Ingyenes tankönyv-ellátásban részesülők száma","Óvodáztatási támogatásban részesülők száma ","Nyári étkeztetésben részesülők száma",null,"Év","Betöltött védőnői álláshelyek száma\n(TS 109)","0-3 év közötti gyermekek száma","Átlagos gyermekszám védőnőnként",null,"Év","Felnőttek és gyermekek részére szervezett háziorvosi szolgálatok száma\n(TS 107)","Csak felnőttek részére szervezett háziorvosi szolgáltatások száma\n(TS 106)","A házi gyermekorvosok által ellátott szolgálatok száma\n(TS 108)","Gyermekorvos által ellátott gyerekek száma ","Felnőtt házi orvos által ellátott gyerekek száma ",null,"Év","Működő, önkormányzati bölcsődei férőhelyek száma","Önkormányzati bölcsődébe beírt gyerekek száma\n",null,"Év","Működő munkahelyi bölcsődei férőhelyek száma (TS 126)","Munkahelyi bölcsődébe beírt gyerekek száma (TS 122)","Működő családi bölcsödei  férőhelyek száma \n(TS 125)","Családi bölcsődébe beírt gyerekek száma (TS 121)","Működő mini bölcsődei férőhelyek száma (TS 127)","Mini bölcsődébe beírt gyerekek száma (TS 123)","Működő (összes) bölcsődei férőhelyek száma (TS 124)","Bölcsődébe (összes) beírt gyermekek száma\n(TS 120)",null,"Év","Óvodába beírt gyermekek száma (gyógypedagógiai neveléssel együtt)\n(TS 087)","Hátrányos és halmozottan hátrányos helyzetű \nóvodás gyermekek száma (gyógypedagógiai neveléssel együtt) (TS 092)","Hátrányos és halmozottan hátrányos helyzetű óvodás gyermekek \naránya az óvodás gyermekeken belül (TS 093)",null,"Év","Általános iskolai tanulók száma a nappali oktatásban","Hátrányos és halmozottan hátrányos helyzetű \n általános iskolai tanulók száma  (gyógypedagógiai oktatással együtt) \n(TS 094)","Hátrányos és halmozottan hátrányos helyzetű  tanulók aránya az általános iskolai tanulókon belül (TS 095)",null,"Év","Hátrányos és halmozottan hátrányos helyzetű gimnáziumi tanulók száma  (TS 096)","Hátrányos és halmozottan hátrányos helyzetű  tanulók aránya a gimnáziumi tanulókon belül (TS 097)","Hátrányos és halmozottan hátrányos helyzetű szakközépiskolai tanulók\nés hátrányos helyzetű szakiskolai és \nkészségfejlesztő iskolai tanulók száma a nappali oktatásban (TS 098)","Hátrányos és halmozottan hátrányos helyzetű szakközépiskolai tanulók\nés hátrányos helyzetű szakiskolai és \nkészségfejlesztő iskolai tanulók aránya a tanulók számához viszonyítva\n(TS 099)","Hátrányos és halmozottan hátrányos helyzetű szakgimnáziumi tanulók száma  \n(TS 100)","Hátrányos és halmozottan hátrányos helyzetű  tanulók \naránya a szakgimnáziumi tanulókon belül\n(TS 101)",null,"Év","Megállapított hátrányos helyzetű gyermekek és nagykorúvá vált gyermekek száma (TS 114)","Megállapított halmozottan hátrányos helyzetű gyermekek és nagykorúvá vált gyermekek száma\n(TS 113)",null," ÓVODAI ELLÁTOTTSÁG",null,null,null,"Év","3-6 éves korú gyermekek száma","Óvodai gyermekcsoportok száma - gyógypedagógiai neveléssel együtt (TS 085) ","Óvodai férőhelyek száma (gyógypedagógiai neveléssel együtt)\n(TS 090)","Óvodai feladatellátási helyek száma (gyógypedagógiai neveléssel együtt)\n(TS 088)","Óvodába beírt gyermekek száma (gyógypedagógiai neveléssel együtt)\n(TS 087)","Óvodai gyógypedagógiai gyermekcsoportok száma\n(TS 086)","Gyógypedagógiai oktatásban részesülő óvodás gyermekek száma\naz integráltan oktatott SNI gyermekek nélkül (TS 091)","Egy óvodai gyermekcsoportra\n jutó gyermekek száma (TS 089)",null,null,"Tanév","Az általános iskolai osztályok száma a gyógypedagógiai oktatásban (a nappali oktatásban) (TS 080)","Az általános iskolai osztályok száma (a gyógypedagógiai oktatással együtt)\n(TS 081)","Általános iskolai feladat-ellátási helyek száma (gyógypedagógiai oktatással együtt)\n(TS 079)","Egy általános iskolai \nosztályra jutó tanulók \nszáma a nappali oktatásban \n(gyógypedagógiai oktatással együtt) (TS 082)","Más településről bejáró általános iskolai tanulók aránya a nappali oktatásban (TS 084)",null,"Tanév","A 8. évfolyamot eredményesen befejezte a nappali oktatásban (TS 083)",null,null,"Év","Biztos kezdet gyerekházat rendszeresen igénybe vevő gyermekek száma","Tanoda szolgáltatást rendszeresen igénybe vevő gyermekek száma","Család- és gyermekjóléti szolgáltatást igénybe vevő kiskorúak száma","Szünidei étkeztetésben részesülő gyermekek száma (TS 112)"]
[null,null,"Férfiak","Nők","Összesen\n(TS 003)","Férfiak\n(TS 005)","Nők\n(TS 007)",null,null,"Fő","Fő",null,null,"Fő",null,null,"Fő","Fő","Fő",null,null,"Fő","Fő","Fő","Fő","Fő","Fő",null,null,"db","Fő","Fő",null,null,"db","db","db","Fő","Fő",null,null,"db","Fő",null,null,"db","Fő","db","Fő","db","Fő","db","Fő",null,null,"Fő","Fő","%",null,null,"Fő","Fő","%",null,null,"Fő","%","Fő","%","Fő","%",null,null,"fő","fő",null,"Az óvoda telephelyeinek száma (db)","n.a.",null,null,null,"fő","db","db","db","fő","db","fő","fő",null,null,null,"db","db","db","fő","%",null,null,"Fő",null,null,null,"Fő","Fő","Fő","Fő"]
[null,null,"Fő","Fő","Fő","%","%",null,{"$f":"Q!$J$1-5","v":2018},{"$f":"_xlfn.IFNA(VLOOKUP(\"Védelembe vett gyermekek (2016-tól érvényes módszertan) (fő)\",Q!$A$1:$G$132,MATCH($I4,Q!$A$1:$G$1,FALSE),FALSE),\"n.a.\")","v":3},{"$f":"_xlfn.IFNA(VLOOKUP(\"Veszélyeztetett kiskorú gyermekek (2016-tól érvényes módszertan) (fő)\",Q!$A$1:$G$132,MATCH($I4,Q!$A$1:$G$1,FALSE),FALSE),\"n.a.\")","v":"n.a."},null,{"$f":"Q!$J$1-5","v":2018},{"$f":"_xlfn.IFNA(VLOOKUP(\"Rendszeres gyermekvédelmi kedvezményben részesítettek havi átlagos létszáma (fő)\",Q!$A$1:$G$132,MATCH($M4,Q!$A$1:$G$1,FALSE),FALSE),\"n.a.\")","v":4},null,{"$f":"Q!$J$1-5","v":2018},{"$f":"_xlfn.IFNA(VLOOKUP(\"Árvaellátásban részesülő férfiak (fő)\",Q!$A$1:$G$132,MATCH($P4,Q!$A$1:$G$1,FALSE),FALSE),\"n.a.\")","v":2},{"$f":"_xlfn.IFNA(VLOOKUP(\"Árvaellátásban részesülő nők (fő)\",Q!$A$1:$G$132,MATCH($P4,Q!$A$1:$G$1,FALSE),FALSE),\"n.a.\")","v":7},{"$f":"IF(SUM(Q4,R4)=0,\"-\",SUM(Q4,R4))","v":9},null,{"$f":"Q!$J$1-5","v":2018},"n.a.","n.a.","n.a.","n.a.","n.a.","n.a.",null,{"$f":"Q!$J$1-5","v":2018},{"$f":"_xlfn.IFNA(VLOOKUP(\"Betöltött védőnői álláshelyek (db)\",Q!$A$1:$G$132,MATCH($AC4,Q!$A$1:$G$1,FALSE),FALSE),\"n.a.\")","v":1},"n.a.",{"$f":"IF(ISERR((AE4/AD4)),\"-\",(AE4/AD4))","v":"-"},null,{"$f":"Q!$J$1-5","v":2018},{"$f":"'3. Mélyszegények-Romák'!CA4","v":1},{"$f":"'3. Mélyszegények-Romák'!CB4","v":0},{"$f":"'3. Mélyszegények-Romák'!CC4","v":0},"n.a.","n.a.",null,{"$f":"Q!$J$1-5","v":2018},"n.a.","n.a.",null,{"$f":"Q!$J$1-5","v":2018},{"$f":"_xlfn.IFNA(VLOOKUP(\"Működő bölcsődei férőhelyek a munkahelyi bölcsődékben (2017-tól érvényes módszertan) (db)\",Q!$A$1:$G$132,MATCH($AS4,Q!$A$1:$G$1,FALSE),FALSE),\"n.a.\")","v":0},{"$f":"_xlfn.IFNA(VLOOKUP(\"Bölcsődébe beíratott gyermekek a munkahelyi bölcsődékben (2017-tól érvényes módszertan) (fő)\",Q!$A$1:$G$132,MATCH($AS4,Q!$A$1:$G$1,FALSE),FALSE),\"n.a.\")","v":0},{"$f":"_xlfn.IFNA(VLOOKUP(\"Működő bölcsődei férőhelyek a családi bölcsődékben (2017-tól érvényes módszertan) (db)\",Q!$A$1:$G$132,MATCH($AS4,Q!$A$1:$G$1,FALSE),FALSE),\"n.a.\")","v":0},{"$f":"_xlfn.IFNA(VLOOKUP(\"Bölcsődébe beíratott gyermekek a családi bölcsődékben (2017-tól érvényes módszertan) (fő)\",Q!$A$1:$G$132,MATCH($AS4,Q!$A$1:$G$1,FALSE),FALSE),\"n.a.\")","v":0},{"$f":"_xlfn.IFNA(VLOOKUP(\"Működő bölcsődei férőhelyek a mini bölcsődékben (2017-tól érvényes módszertan) (db)\",Q!$A$1:$G$132,MATCH($AS4,Q!$A$1:$G$1,FALSE),FALSE),\"n.a.\")","v":0},{"$f":"_xlfn.IFNA(VLOOKUP(\"Bölcsődébe beíratott gyermekek a mini bölcsődékben (2017-tól érvényes módszertan) (fő)\",Q!$A$1:$G$132,MATCH($AS4,Q!$A$1:$G$1,FALSE),FALSE),\"n.a.\")","v":0},{"$f":"_xlfn.IFNA(VLOOKUP(\"Működő bölcsődei férőhelyek (2017-tól érvényes módszertan) (db)\",Q!$A$1:$G$132,MATCH($AS4,Q!$A$1:$G$1,FALSE),FALSE),\"n.a.\")","v":0},{"$f":"_xlfn.IFNA(VLOOKUP(\"Bölcsődébe beírt gyermekek (2017-tól érvényes módszertan) (fő)\",Q!$A$1:$G$132,MATCH($AS4,Q!$A$1:$G$1,FALSE),FALSE),\"n.a.\")","v":0},null,{"$f":"Q!$J$1-5","v":2018},{"$f":"_xlfn.IFNA(VLOOKUP(\"Óvodába beírt gyermekek (fő)\",Q!$A$1:$G$132,MATCH($BC4,Q!$A$1:$G$1,FALSE),FALSE),\"n.a.\")","v":75},{"$f":"_xlfn.IFNA(VLOOKUP(\"Hátrányos helyzetű óvodás gyermekek (fő)\",Q!$A$1:$G$132,MATCH($BC4,Q!$A$1:$G$1,FALSE),FALSE),\"n.a.\")","v":0},{"$f":"_xlfn.IFNA(VLOOKUP(\"Hátrányos helyzetű óvodás gyermekek aránya (százalék)\",Q!$A$1:$G$132,MATCH($BC4,Q!$A$1:$G$1,FALSE),FALSE),\"n.a.\")","v":0},null,{"$f":"Q!$J$1-5","v":2018},"n.a.",{"$f":"_xlfn.IFNA(VLOOKUP(\"Hátrányos helyzetű általános iskolai tanulók a nappali oktatásban (fő)\",Q!$A$1:$G$132,MATCH($BC4,Q!$A$1:$G$1,FALSE),FALSE),\"n.a.\")","v":6},{"$f":"_xlfn.IFNA(VLOOKUP(\"Hátrányos helyzetű általános iskolai tanulók aránya a nappali oktatásban (százalék)\",Q!$A$1:$G$132,MATCH($BC4,Q!$A$1:$G$1,FALSE),FALSE),\"n.a.\")","v":4.6500000000000004},null,{"$f":"Q!$J$1-5","v":2018},{"$f":"_xlfn.IFNA(VLOOKUP(\"Hátrányos helyzetű gimnáziumi tanulók a nappali oktatásban (fő)\",Q!$A$1:$G$132,MATCH($BC4,Q!$A$1:$G$1,FALSE),FALSE),\"n.a.\")","v":0},{"$f":"_xlfn.IFNA(VLOOKUP(\"Hátrányos helyzetű gimnáziumi tanulók aránya a nappali oktatásban (százalék)\",Q!$A$1:$G$132,MATCH($BC4,Q!$A$1:$G$1,FALSE),FALSE),\"n.a.\")","v":"n.a."},{"$f":"_xlfn.IFNA(VLOOKUP(\"Hátrányos helyzetű szakközépiskolai, szakiskolai és készségfejlesztő iskolai tanuló a nappali oktatásban (fő)\",Q!$A$1:$G$132,MATCH($BC4,Q!$A$1:$G$1,FALSE),FALSE),\"n.a.\")","v":0},{"$f":"_xlfn.IFNA(VLOOKUP(\"Hátrányos helyzetű szakközépiskolai, szakiskolai és készségfejlesztő iskolai tanulók aránya a nappali oktatásban (százalék)\",Q!$A$1:$G$132,MATCH($BC4,Q!$A$1:$G$1,FALSE),FALSE),\"n.a.\")","v":"n.a."},{"$f":"_xlfn.IFNA(VLOOKUP(\"Hátrányos helyzetű szakgimnáziumi tanulók a nappali oktatásban (fő)\",Q!$A$1:$G$132,MATCH($BC4,Q!$A$1:$G$1,FALSE),FALSE),\"n.a.\")","v":0},{"$f":"_xlfn.IFNA(VLOOKUP(\"Hátrányos helyzetű szakgimnáziumi tanulók aránya a nappali oktatásban (százalék)\",Q!$A$1:$G$132,MATCH($BC4,Q!$A$1:$G$1,FALSE),FALSE),\"n.a.\")","v":"n.a."},null,{"$f":"Q!$J$1-5","v":2018},{"$f":"_xlfn.IFNA(VLOOKUP(\"Megállapított hátrányos helyzetű gyermekek és nagykorúvá vált gyermekek (fő)\",Q!$A$1:$G$132,MATCH($BU4,Q!$A$1:$G$1,FALSE),FALSE),\"n.a.\")","v":0},{"$f":"_xlfn.IFNA(VLOOKUP(\"Megállapított halmozottan hátrányos helyzetű gyermekek és nagykorúvá vált gyermekek (fő)\",Q!$A$1:$G$132,MATCH($BU4,Q!$A$1:$G$1,FALSE),FALSE),\"n.a.\")","v":0},null,"Hány településről járnak be a gyermekek (db)","n.a.",null,null,{"$f":"Q!$J$1-5","v":2018},"n.a.",{"$f":"_xlfn.IFNA(VLOOKUP(\"Óvodai gyermekcsoportok (db)\",Q!$A$1:$G$132,MATCH($CC4,Q!$A$1:$G$1,FALSE),FALSE),\"n.a.\")","v":3},{"$f":"_xlfn.IFNA(VLOOKUP(\"Óvodai férőhelyek (fő)\",Q!$A$1:$G$132,MATCH($CC4,Q!$A$1:$G$1,FALSE),FALSE),\"n.a.\")","v":75},{"$f":"_xlfn.IFNA(VLOOKUP(\"Óvodai feladatellátási helyek (db)\",Q!$A$1:$G$132,MATCH($CC4,Q!$A$1:$G$1,FALSE),FALSE),\"n.a.\")","v":1},{"$f":"_xlfn.IFNA(VLOOKUP(\"Óvodába beírt gyermekek (fő)\",Q!$A$1:$G$132,MATCH($CC4,Q!$A$1:$G$1,FALSE),FALSE),\"n.a.\")","v":75},{"$f":"_xlfn.IFNA(VLOOKUP(\"Óvodai gyermekcsoportok a gyógypedagógiai nevelésben (db)\",Q!$A$1:$G$132,MATCH($CC4,Q!$A$1:$G$1,FALSE),FALSE),\"n.a.\")","v":0},{"$f":"_xlfn.IFNA(VLOOKUP(\"Gyógypedagógiai oktatásban részesülő óvodás gyermekek (integráltan oktatott sajátos nevelési igényű gyermekek nélkül) (fő)\",Q!$A$1:$G$132,MATCH($CC4,Q!$A$1:$G$1,FALSE),FALSE),\"n.a.\")","v":0},{"$f":"_xlfn.IFNA(VLOOKUP(\"Óvodába beírt gyermek, egy gyermekcsoportra (fő)\",Q!$A$1:$G$132,MATCH($CC4,Q!$A$1:$G$1,FALSE),FALSE),\"n.a.\")","v":25},null,null,{"$f":"Q!$J$1-5","v":2018},{"$f":"_xlfn.IFNA(VLOOKUP(\"Általános iskolai osztályok a gyógypedagógiai oktatásban (a nappali oktatásban) (db)\",Q!$A$1:$G$132,MATCH($CN4,Q!$A$1:$G$1,FALSE),FALSE),\"n.a.\")","v":0},{"$f":"_xlfn.IFNA(VLOOKUP(\"Általános iskolai osztályok a nappali oktatásban (db)\",Q!$A$1:$G$132,MATCH($CN4,Q!$A$1:$G$1,FALSE),FALSE),\"n.a.\")","v":8},{"$f":"_xlfn.IFNA(VLOOKUP(\"Általános iskolai feladatellátási helyek (db)\",Q!$A$1:$G$132,MATCH($CN4,Q!$A$1:$G$1,FALSE),FALSE),\"n.a.\")","v":1},{"$f":"_xlfn.IFNA(VLOOKUP(\"Egy osztályra jutó nappali tagozatos tanulók az általános iskolákban (fő)\",Q!$A$1:$G$132,MATCH($CN4,Q!$A$1:$G$1,FALSE),FALSE),\"n.a.\")","v":16.13},{"$f":"_xlfn.IFNA(VLOOKUP(\"Más településről bejáró általános iskolai tanulók aránya a nappali oktatásban (százalék)\",Q!$A$1:$G$132,MATCH($CN4,Q!$A$1:$G$1,FALSE),FALSE),\"n.a.\")","v":10.85},null,{"$f":"Q!$J$1-5","v":2018},{"$f":"_xlfn.IFNA(VLOOKUP(\"A 8. évfolyamot eredményesen befejezte a nappali oktatásban (fő)\",Q!$A$1:$G$132,MATCH($CN4,Q!$A$1:$G$1,FALSE),FALSE),\"n.a.\")","v":11},null,null,{"$f":"Q!$J$1-5","v":2018},"n.a.","n.a.","n.a.",{"$f":"_xlfn.IFNA(VLOOKUP(\"Szünidei étkeztetésben részesült gyermekek (fő)\",Q!$A$1:$G$132,MATCH($CN4,Q!$A$1:$G$1,FALSE),FALSE),\"n.a.\")","v":0}]
[null,"Állandó népesség száma (férfiak TS 004, nők TS 006)",{"$f":"'Település Bemutatása - Népesség'!G4","v":1249},{"$f":"'Település Bemutatása - Népesség'!H4","v":1318},{"$f":"IF(SUM(C5,D5)=0,\"-\",SUM(C5,D5))","v":2567},{"$f":"'Település Bemutatása - Népesség'!J4","v":0.48656018698870279},{"$f":"'Település Bemutatása - Népesség'!K4","v":0.51343981301129726},null,{"$f":"Q!$J$1-4","v":2019},{"$f":"_xlfn.IFNA(VLOOKUP(\"Védelembe vett gyermekek (2016-tól érvényes módszertan) (fő)\",Q!$A$1:$G$132,MATCH($I5,Q!$A$1:$G$1,FALSE),FALSE),\"n.a.\")","v":1},{"$f":"_xlfn.IFNA(VLOOKUP(\"Veszélyeztetett kiskorú gyermekek (2016-tól érvényes módszertan) (fő)\",Q!$A$1:$G$132,MATCH($I5,Q!$A$1:$G$1,FALSE),FALSE),\"n.a.\")","v":0},null,{"$f":"Q!$J$1-4","v":2019},{"$f":"_xlfn.IFNA(VLOOKUP(\"Rendszeres gyermekvédelmi kedvezményben részesítettek havi átlagos létszáma (fő)\",Q!$A$1:$G$132,MATCH($M5,Q!$A$1:$G$1,FALSE),FALSE),\"n.a.\")","v":0},null,{"$f":"Q!$J$1-4","v":2019},{"$f":"_xlfn.IFNA(VLOOKUP(\"Árvaellátásban részesülő férfiak (fő)\",Q!$A$1:$G$132,MATCH($P5,Q!$A$1:$G$1,FALSE),FALSE),\"n.a.\")","v":3},{"$f":"_xlfn.IFNA(VLOOKUP(\"Árvaellátásban részesülő nők (fő)\",Q!$A$1:$G$132,MATCH($P5,Q!$A$1:$G$1,FALSE),FALSE),\"n.a.\")","v":6},{"$f":"IF(SUM(Q5,R5)=0,\"-\",SUM(Q5,R5))","v":9},null,{"$f":"Q!$J$1-4","v":2019},"n.a.","n.a.","n.a.","n.a.","n.a.","n.a.",null,{"$f":"Q!$J$1-4","v":2019},{"$f":"_xlfn.IFNA(VLOOKUP(\"Betöltött védőnői álláshelyek (db)\",Q!$A$1:$G$132,MATCH($AC5,Q!$A$1:$G$1,FALSE),FALSE),\"n.a.\")","v":1},"n.a.",{"$f":"IF(ISERR((AE5/AD5)),\"-\",(AE5/AD5))","v":"-"},null,{"$f":"Q!$J$1-4","v":2019},{"$f":"'3. Mélyszegények-Romák'!CA5","v":1},{"$f":"'3. Mélyszegények-Romák'!CB5","v":0},{"$f":"'3. Mélyszegények-Romák'!CC5","v":0},"n.a.","n.a.",null,{"$f":"Q!$J$1-4","v":2019},"n.a.","n.a.",null,{"$f":"Q!$J$1-4","v":2019},{"$f":"_xlfn.IFNA(VLOOKUP(\"Működő bölcsődei férőhelyek a munkahelyi bölcsődékben (2017-tól érvényes módszertan) (db)\",Q!$A$1:$G$132,MATCH($AS5,Q!$A$1:$G$1,FALSE),FALSE),\"n.a.\")","v":0},{"$f":"_xlfn.IFNA(VLOOKUP(\"Bölcsődébe beíratott gyermekek a munkahelyi bölcsődékben (2017-tól érvényes módszertan) (fő)\",Q!$A$1:$G$132,MATCH($AS5,Q!$A$1:$G$1,FALSE),FALSE),\"n.a.\")","v":0},{"$f":"_xlfn.IFNA(VLOOKUP(\"Működő bölcsődei férőhelyek a családi bölcsődékben (2017-tól érvényes módszertan) (db)\",Q!$A$1:$G$132,MATCH($AS5,Q!$A$1:$G$1,FALSE),FALSE),\"n.a.\")","v":0},{"$f":"_xlfn.IFNA(VLOOKUP(\"Bölcsődébe beíratott gyermekek a családi bölcsődékben (2017-tól érvényes módszertan) (fő)\",Q!$A$1:$G$132,MATCH($AS5,Q!$A$1:$G$1,FALSE),FALSE),\"n.a.\")","v":0},{"$f":"_xlfn.IFNA(VLOOKUP(\"Működő bölcsődei férőhelyek a mini bölcsődékben (2017-tól érvényes módszertan) (db)\",Q!$A$1:$G$132,MATCH($AS5,Q!$A$1:$G$1,FALSE),FALSE),\"n.a.\")","v":7},{"$f":"_xlfn.IFNA(VLOOKUP(\"Bölcsődébe beíratott gyermekek a mini bölcsődékben (2017-tól érvényes módszertan) (fő)\",Q!$A$1:$G$132,MATCH($AS5,Q!$A$1:$G$1,FALSE),FALSE),\"n.a.\")","v":7},{"$f":"_xlfn.IFNA(VLOOKUP(\"Működő bölcsődei férőhelyek (2017-tól érvényes módszertan) (db)\",Q!$A$1:$G$132,MATCH($AS5,Q!$A$1:$G$1,FALSE),FALSE),\"n.a.\")","v":0},{"$f":"_xlfn.IFNA(VLOOKUP(\"Bölcsődébe beírt gyermekek (2017-tól érvényes módszertan) (fő)\",Q!$A$1:$G$132,MATCH($AS5,Q!$A$1:$G$1,FALSE),FALSE),\"n.a.\")","v":0},null,{"$f":"Q!$J$1-4","v":2019},{"$f":"_xlfn.IFNA(VLOOKUP(\"Óvodába beírt gyermekek (fő)\",Q!$A$1:$G$132,MATCH($BC5,Q!$A$1:$G$1,FALSE),FALSE),\"n.a.\")","v":91},{"$f":"_xlfn.IFNA(VLOOKUP(\"Hátrányos helyzetű óvodás gyermekek (fő)\",Q!$A$1:$G$132,MATCH($BC5,Q!$A$1:$G$1,FALSE),FALSE),\"n.a.\")","v":0},{"$f":"_xlfn.IFNA(VLOOKUP(\"Hátrányos helyzetű óvodás gyermekek aránya (százalék)\",Q!$A$1:$G$132,MATCH($BC5,Q!$A$1:$G$1,FALSE),FALSE),\"n.a.\")","v":0},null,{"$f":"Q!$J$1-4","v":2019},"n.a.",{"$f":"_xlfn.IFNA(VLOOKUP(\"Hátrányos helyzetű általános iskolai tanulók a nappali oktatásban (fő)\",Q!$A$1:$G$132,MATCH($BC5,Q!$A$1:$G$1,FALSE),FALSE),\"n.a.\")","v":4},{"$f":"_xlfn.IFNA(VLOOKUP(\"Hátrányos helyzetű általános iskolai tanulók aránya a nappali oktatásban (százalék)\",Q!$A$1:$G$132,MATCH($BC5,Q!$A$1:$G$1,FALSE),FALSE),\"n.a.\")","v":2.96},null,{"$f":"Q!$J$1-4","v":2019},{"$f":"_xlfn.IFNA(VLOOKUP(\"Hátrányos helyzetű gimnáziumi tanulók a nappali oktatásban (fő)\",Q!$A$1:$G$132,MATCH($BC5,Q!$A$1:$G$1,FALSE),FALSE),\"n.a.\")","v":0},{"$f":"_xlfn.IFNA(VLOOKUP(\"Hátrányos helyzetű gimnáziumi tanulók aránya a nappali oktatásban (százalék)\",Q!$A$1:$G$132,MATCH($BC5,Q!$A$1:$G$1,FALSE),FALSE),\"n.a.\")","v":"n.a."},{"$f":"_xlfn.IFNA(VLOOKUP(\"Hátrányos helyzetű szakközépiskolai, szakiskolai és készségfejlesztő iskolai tanuló a nappali oktatásban (fő)\",Q!$A$1:$G$132,MATCH($BC5,Q!$A$1:$G$1,FALSE),FALSE),\"n.a.\")","v":0},{"$f":"_xlfn.IFNA(VLOOKUP(\"Hátrányos helyzetű szakközépiskolai, szakiskolai és készségfejlesztő iskolai tanulók aránya a nappali oktatásban (százalék)\",Q!$A$1:$G$132,MATCH($BC5,Q!$A$1:$G$1,FALSE),FALSE),\"n.a.\")","v":"n.a."},{"$f":"_xlfn.IFNA(VLOOKUP(\"Hátrányos helyzetű szakgimnáziumi tanulók a nappali oktatásban (fő)\",Q!$A$1:$G$132,MATCH($BC5,Q!$A$1:$G$1,FALSE),FALSE),\"n.a.\")","v":0},{"$f":"_xlfn.IFNA(VLOOKUP(\"Hátrányos helyzetű szakgimnáziumi tanulók aránya a nappali oktatásban (százalék)\",Q!$A$1:$G$132,MATCH($BC5,Q!$A$1:$G$1,FALSE),FALSE),\"n.a.\")","v":"n.a."},null,{"$f":"Q!$J$1-4","v":2019},{"$f":"_xlfn.IFNA(VLOOKUP(\"Megállapított hátrányos helyzetű gyermekek és nagykorúvá vált gyermekek (fő)\",Q!$A$1:$G$132,MATCH($BU5,Q!$A$1:$G$1,FALSE),FALSE),\"n.a.\")","v":0},{"$f":"_xlfn.IFNA(VLOOKUP(\"Megállapított halmozottan hátrányos helyzetű gyermekek és nagykorúvá vált gyermekek (fő)\",Q!$A$1:$G$132,MATCH($BU5,Q!$A$1:$G$1,FALSE),FALSE),\"n.a.\")","v":0},null,"Óvodai férőhelyek száma (fő)","n.a.",null,null,{"$f":"Q!$J$1-4","v":2019},"n.a.",{"$f":"_xlfn.IFNA(VLOOKUP(\"Óvodai gyermekcsoportok (db)\",Q!$A$1:$G$132,MATCH($CC5,Q!$A$1:$G$1,FALSE),FALSE),\"n.a.\")","v":4},{"$f":"_xlfn.IFNA(VLOOKUP(\"Óvodai férőhelyek (fő)\",Q!$A$1:$G$132,MATCH($CC5,Q!$A$1:$G$1,FALSE),FALSE),\"n.a.\")","v":100},{"$f":"_xlfn.IFNA(VLOOKUP(\"Óvodai feladatellátási helyek (db)\",Q!$A$1:$G$132,MATCH($CC5,Q!$A$1:$G$1,FALSE),FALSE),\"n.a.\")","v":1},{"$f":"_xlfn.IFNA(VLOOKUP(\"Óvodába beírt gyermekek (fő)\",Q!$A$1:$G$132,MATCH($CC5,Q!$A$1:$G$1,FALSE),FALSE),\"n.a.\")","v":91},{"$f":"_xlfn.IFNA(VLOOKUP(\"Óvodai gyermekcsoportok a gyógypedagógiai nevelésben (db)\",Q!$A$1:$G$132,MATCH($CC5,Q!$A$1:$G$1,FALSE),FALSE),\"n.a.\")","v":0},{"$f":"_xlfn.IFNA(VLOOKUP(\"Gyógypedagógiai oktatásban részesülő óvodás gyermekek (integráltan oktatott sajátos nevelési igényű gyermekek nélkül) (fő)\",Q!$A$1:$G$132,MATCH($CC5,Q!$A$1:$G$1,FALSE),FALSE),\"n.a.\")","v":0},{"$f":"_xlfn.IFNA(VLOOKUP(\"Óvodába beírt gyermek, egy gyermekcsoportra (fő)\",Q!$A$1:$G$132,MATCH($CC5,Q!$A$1:$G$1,FALSE),FALSE),\"n.a.\")","v":22.75},null,null,{"$f":"Q!$J$1-4","v":2019},{"$f":"_xlfn.IFNA(VLOOKUP(\"Általános iskolai osztályok a gyógypedagógiai oktatásban (a nappali oktatásban) (db)\",Q!$A$1:$G$132,MATCH($CN5,Q!$A$1:$G$1,FALSE),FALSE),\"n.a.\")","v":0},{"$f":"_xlfn.IFNA(VLOOKUP(\"Általános iskolai osztályok a nappali oktatásban (db)\",Q!$A$1:$G$132,MATCH($CN5,Q!$A$1:$G$1,FALSE),FALSE),\"n.a.\")","v":8},{"$f":"_xlfn.IFNA(VLOOKUP(\"Általános iskolai feladatellátási helyek (db)\",Q!$A$1:$G$132,MATCH($CN5,Q!$A$1:$G$1,FALSE),FALSE),\"n.a.\")","v":1},{"$f":"_xlfn.IFNA(VLOOKUP(\"Egy osztályra jutó nappali tagozatos tanulók az általános iskolákban (fő)\",Q!$A$1:$G$132,MATCH($CN5,Q!$A$1:$G$1,FALSE),FALSE),\"n.a.\")","v":16.88},{"$f":"_xlfn.IFNA(VLOOKUP(\"Más településről bejáró általános iskolai tanulók aránya a nappali oktatásban (százalék)\",Q!$A$1:$G$132,MATCH($CN5,Q!$A$1:$G$1,FALSE),FALSE),\"n.a.\")","v":12.59},null,{"$f":"Q!$J$1-4","v":2019},{"$f":"_xlfn.IFNA(VLOOKUP(\"A 8. évfolyamot eredményesen befejezte a nappali oktatásban (fő)\",Q!$A$1:$G$132,MATCH($CN5,Q!$A$1:$G$1,FALSE),FALSE),\"n.a.\")","v":10},null,null,{"$f":"Q!$J$1-4","v":2019},"n.a.","n.a.","n.a.",{"$f":"_xlfn.IFNA(VLOOKUP(\"Szünidei étkeztetésben részesült gyermekek (fő)\",Q!$A$1:$G$132,MATCH($CN5,Q!$A$1:$G$1,FALSE),FALSE),\"n.a.\")","v":0}]
[null,"0-2 évesek (összes száma TS 008, aránya TS 009)",null,null,{"$f":"'Település Bemutatása - Népesség'!I5","v":105},{"$f":"'Település Bemutatása - Népesség'!J5","v":4.0903778730035062E-2},null,null,{"$f":"Q!$J$1-3","v":2020},{"$f":"_xlfn.IFNA(VLOOKUP(\"Védelembe vett gyermekek (2016-tól érvényes módszertan) (fő)\",Q!$A$1:$G$132,MATCH($I6,Q!$A$1:$G$1,FALSE),FALSE),\"n.a.\")","v":2},{"$f":"_xlfn.IFNA(VLOOKUP(\"Veszélyeztetett kiskorú gyermekek (2016-tól érvényes módszertan) (fő)\",Q!$A$1:$G$132,MATCH($I6,Q!$A$1:$G$1,FALSE),FALSE),\"n.a.\")","v":0},null,{"$f":"Q!$J$1-3","v":2020},{"$f":"_xlfn.IFNA(VLOOKUP(\"Rendszeres gyermekvédelmi kedvezményben részesítettek havi átlagos létszáma (fő)\",Q!$A$1:$G$132,MATCH($M6,Q!$A$1:$G$1,FALSE),FALSE),\"n.a.\")","v":0},null,{"$f":"Q!$J$1-3","v":2020},{"$f":"_xlfn.IFNA(VLOOKUP(\"Árvaellátásban részesülő férfiak (fő)\",Q!$A$1:$G$132,MATCH($P6,Q!$A$1:$G$1,FALSE),FALSE),\"n.a.\")","v":4},{"$f":"_xlfn.IFNA(VLOOKUP(\"Árvaellátásban részesülő nők (fő)\",Q!$A$1:$G$132,MATCH($P6,Q!$A$1:$G$1,FALSE),FALSE),\"n.a.\")","v":7},11,null,{"$f":"Q!$J$1-3","v":2020},"n.a.","n.a.","n.a.","n.a.","n.a.","n.a.",null,{"$f":"Q!$J$1-3","v":2020},{"$f":"_xlfn.IFNA(VLOOKUP(\"Betöltött védőnői álláshelyek (db)\",Q!$A$1:$G$132,MATCH($AC6,Q!$A$1:$G$1,FALSE),FALSE),\"n.a.\")","v":1},"n.a.","-",null,{"$f":"Q!$J$1-3","v":2020},{"$f":"'3. Mélyszegények-Romák'!CA6","v":1},{"$f":"'3. Mélyszegények-Romák'!CB6","v":0},{"$f":"'3. Mélyszegények-Romák'!CC6","v":0},"n.a.","n.a.",null,{"$f":"Q!$J$1-3","v":2020},"n.a.","n.a.",null,{"$f":"Q!$J$1-3","v":2020},{"$f":"_xlfn.IFNA(VLOOKUP(\"Működő bölcsődei férőhelyek a munkahelyi bölcsődékben (2017-tól érvényes módszertan) (db)\",Q!$A$1:$G$132,MATCH($AS6,Q!$A$1:$G$1,FALSE),FALSE),\"n.a.\")","v":0},{"$f":"_xlfn.IFNA(VLOOKUP(\"Bölcsődébe beíratott gyermekek a munkahelyi bölcsődékben (2017-tól érvényes módszertan) (fő)\",Q!$A$1:$G$132,MATCH($AS6,Q!$A$1:$G$1,FALSE),FALSE),\"n.a.\")","v":0},{"$f":"_xlfn.IFNA(VLOOKUP(\"Működő bölcsődei férőhelyek a családi bölcsődékben (2017-tól érvényes módszertan) (db)\",Q!$A$1:$G$132,MATCH($AS6,Q!$A$1:$G$1,FALSE),FALSE),\"n.a.\")","v":0},{"$f":"_xlfn.IFNA(VLOOKUP(\"Bölcsődébe beíratott gyermekek a családi bölcsődékben (2017-tól érvényes módszertan) (fő)\",Q!$A$1:$G$132,MATCH($AS6,Q!$A$1:$G$1,FALSE),FALSE),\"n.a.\")","v":0},{"$f":"_xlfn.IFNA(VLOOKUP(\"Működő bölcsődei férőhelyek a mini bölcsődékben (2017-tól érvényes módszertan) (db)\",Q!$A$1:$G$132,MATCH($AS6,Q!$A$1:$G$1,FALSE),FALSE),\"n.a.\")","v":8},{"$f":"_xlfn.IFNA(VLOOKUP(\"Bölcsődébe beíratott gyermekek a mini bölcsődékben (2017-tól érvényes módszertan) (fő)\",Q!$A$1:$G$132,MATCH($AS6,Q!$A$1:$G$1,FALSE),FALSE),\"n.a.\")","v":8},{"$f":"_xlfn.IFNA(VLOOKUP(\"Működő bölcsődei férőhelyek (2017-tól érvényes módszertan) (db)\",Q!$A$1:$G$132,MATCH($AS6,Q!$A$1:$G$1,FALSE),FALSE),\"n.a.\")","v":0},{"$f":"_xlfn.IFNA(VLOOKUP(\"Bölcsődébe beírt gyermekek (2017-tól érvényes módszertan) (fő)\",Q!$A$1:$G$132,MATCH($AS6,Q!$A$1:$G$1,FALSE),FALSE),\"n.a.\")","v":0},null,{"$f":"Q!$J$1-3","v":2020},{"$f":"_xlfn.IFNA(VLOOKUP(\"Óvodába beírt gyermekek (fő)\",Q!$A$1:$G$132,MATCH($BC6,Q!$A$1:$G$1,FALSE),FALSE),\"n.a.\")","v":98},{"$f":"_xlfn.IFNA(VLOOKUP(\"Hátrányos helyzetű óvodás gyermekek (fő)\",Q!$A$1:$G$132,MATCH($BC6,Q!$A$1:$G$1,FALSE),FALSE),\"n.a.\")","v":0},{"$f":"_xlfn.IFNA(VLOOKUP(\"Hátrányos helyzetű óvodás gyermekek aránya (százalék)\",Q!$A$1:$G$132,MATCH($BC6,Q!$A$1:$G$1,FALSE),FALSE),\"n.a.\")","v":0},null,{"$f":"Q!$J$1-3","v":2020},"n.a.",{"$f":"_xlfn.IFNA(VLOOKUP(\"Hátrányos helyzetű általános iskolai tanulók a nappali oktatásban (fő)\",Q!$A$1:$G$132,MATCH($BC6,Q!$A$1:$G$1,FALSE),FALSE),\"n.a.\")","v":0},{"$f":"_xlfn.IFNA(VLOOKUP(\"Hátrányos helyzetű általános iskolai tanulók aránya a nappali oktatásban (százalék)\",Q!$A$1:$G$132,MATCH($BC6,Q!$A$1:$G$1,FALSE),FALSE),\"n.a.\")","v":0},null,{"$f":"Q!$J$1-3","v":2020},{"$f":"_xlfn.IFNA(VLOOKUP(\"Hátrányos helyzetű gimnáziumi tanulók a nappali oktatásban (fő)\",Q!$A$1:$G$132,MATCH($BC6,Q!$A$1:$G$1,FALSE),FALSE),\"n.a.\")","v":0},{"$f":"_xlfn.IFNA(VLOOKUP(\"Hátrányos helyzetű gimnáziumi tanulók aránya a nappali oktatásban (százalék)\",Q!$A$1:$G$132,MATCH($BC6,Q!$A$1:$G$1,FALSE),FALSE),\"n.a.\")","v":"n.a."},{"$f":"_xlfn.IFNA(VLOOKUP(\"Hátrányos helyzetű szakközépiskolai, szakiskolai és készségfejlesztő iskolai tanuló a nappali oktatásban (fő)\",Q!$A$1:$G$132,MATCH($BC6,Q!$A$1:$G$1,FALSE),FALSE),\"n.a.\")","v":"n.a."},{"$f":"_xlfn.IFNA(VLOOKUP(\"Hátrányos helyzetű szakközépiskolai, szakiskolai és készségfejlesztő iskolai tanulók aránya a nappali oktatásban (százalék)\",Q!$A$1:$G$132,MATCH($BC6,Q!$A$1:$G$1,FALSE),FALSE),\"n.a.\")","v":"n.a."},{"$f":"_xlfn.IFNA(VLOOKUP(\"Hátrányos helyzetű szakgimnáziumi tanulók a nappali oktatásban (fő)\",Q!$A$1:$G$132,MATCH($BC6,Q!$A$1:$G$1,FALSE),FALSE),\"n.a.\")","v":"n.a."},{"$f":"_xlfn.IFNA(VLOOKUP(\"Hátrányos helyzetű szakgimnáziumi tanulók aránya a nappali oktatásban (százalék)\",Q!$A$1:$G$132,MATCH($BC6,Q!$A$1:$G$1,FALSE),FALSE),\"n.a.\")","v":"n.a."},null,{"$f":"Q!$J$1-3","v":2020},{"$f":"_xlfn.IFNA(VLOOKUP(\"Megállapított hátrányos helyzetű gyermekek és nagykorúvá vált gyermekek (fő)\",Q!$A$1:$G$132,MATCH($BU6,Q!$A$1:$G$1,FALSE),FALSE),\"n.a.\")","v":0},{"$f":"_xlfn.IFNA(VLOOKUP(\"Megállapított halmozottan hátrányos helyzetű gyermekek és nagykorúvá vált gyermekek (fő)\",Q!$A$1:$G$132,MATCH($BU6,Q!$A$1:$G$1,FALSE),FALSE),\"n.a.\")","v":0},null,"Óvodai gyermekcsoportok száma (gyógypedagógiai neveléssel együtt) (db)","n.a.",null,null,{"$f":"Q!$J$1-3","v":2020},"n.a.",{"$f":"_xlfn.IFNA(VLOOKUP(\"Óvodai gyermekcsoportok (db)\",Q!$A$1:$G$132,MATCH($CC6,Q!$A$1:$G$1,FALSE),FALSE),\"n.a.\")","v":4},{"$f":"_xlfn.IFNA(VLOOKUP(\"Óvodai férőhelyek (fő)\",Q!$A$1:$G$132,MATCH($CC6,Q!$A$1:$G$1,FALSE),FALSE),\"n.a.\")","v":100},{"$f":"_xlfn.IFNA(VLOOKUP(\"Óvodai feladatellátási helyek (db)\",Q!$A$1:$G$132,MATCH($CC6,Q!$A$1:$G$1,FALSE),FALSE),\"n.a.\")","v":1},{"$f":"_xlfn.IFNA(VLOOKUP(\"Óvodába beírt gyermekek (fő)\",Q!$A$1:$G$132,MATCH($CC6,Q!$A$1:$G$1,FALSE),FALSE),\"n.a.\")","v":98},{"$f":"_xlfn.IFNA(VLOOKUP(\"Óvodai gyermekcsoportok a gyógypedagógiai nevelésben (db)\",Q!$A$1:$G$132,MATCH($CC6,Q!$A$1:$G$1,FALSE),FALSE),\"n.a.\")","v":0},{"$f":"_xlfn.IFNA(VLOOKUP(\"Gyógypedagógiai oktatásban részesülő óvodás gyermekek (integráltan oktatott sajátos nevelési igényű gyermekek nélkül) (fő)\",Q!$A$1:$G$132,MATCH($CC6,Q!$A$1:$G$1,FALSE),FALSE),\"n.a.\")","v":0},{"$f":"_xlfn.IFNA(VLOOKUP(\"Óvodába beírt gyermek, egy gyermekcsoportra (fő)\",Q!$A$1:$G$132,MATCH($CC6,Q!$A$1:$G$1,FALSE),FALSE),\"n.a.\")","v":24.5},null,null,{"$f":"Q!$J$1-3","v":2020},{"$f":"_xlfn.IFNA(VLOOKUP(\"Általános iskolai osztályok a gyógypedagógiai oktatásban (a nappali oktatásban) (db)\",Q!$A$1:$G$132,MATCH($CN6,Q!$A$1:$G$1,FALSE),FALSE),\"n.a.\")","v":0},{"$f":"_xlfn.IFNA(VLOOKUP(\"Általános iskolai osztályok a nappali oktatásban (db)\",Q!$A$1:$G$132,MATCH($CN6,Q!$A$1:$G$1,FALSE),FALSE),\"n.a.\")","v":8},{"$f":"_xlfn.IFNA(VLOOKUP(\"Általános iskolai feladatellátási helyek (db)\",Q!$A$1:$G$132,MATCH($CN6,Q!$A$1:$G$1,FALSE),FALSE),\"n.a.\")","v":1},{"$f":"_xlfn.IFNA(VLOOKUP(\"Egy osztályra jutó nappali tagozatos tanulók az általános iskolákban (fő)\",Q!$A$1:$G$132,MATCH($CN6,Q!$A$1:$G$1,FALSE),FALSE),\"n.a.\")","v":18.88},{"$f":"_xlfn.IFNA(VLOOKUP(\"Más településről bejáró általános iskolai tanulók aránya a nappali oktatásban (százalék)\",Q!$A$1:$G$132,MATCH($CN6,Q!$A$1:$G$1,FALSE),FALSE),\"n.a.\")","v":13.25},null,{"$f":"Q!$J$1-3","v":2020},{"$f":"_xlfn.IFNA(VLOOKUP(\"A 8. évfolyamot eredményesen befejezte a nappali oktatásban (fő)\",Q!$A$1:$G$132,MATCH($CN6,Q!$A$1:$G$1,FALSE),FALSE),\"n.a.\")","v":12},null,null,{"$f":"Q!$J$1-3","v":2020},"n.a.","n.a.","n.a.",{"$f":"_xlfn.IFNA(VLOOKUP(\"Szünidei étkeztetésben részesült gyermekek (fő)\",Q!$A$1:$G$132,MATCH($CN6,Q!$A$1:$G$1,FALSE),FALSE),\"n.a.\")","v":0}]
[null,"0-14 éves (férfiak TS 010, aránya TS 011; nők TS 012, aránya TS 013)",{"$f":"'Település Bemutatása - Népesség'!G6","v":248},{"$f":"'Település Bemutatása - Népesség'!H6","v":228},{"$f":"IF(SUM(C7,D7)=0,\"-\",SUM(C7,D7))","v":476},{"$f":"'Település Bemutatása - Népesség'!J6","v":9.6610829762368525E-2},{"$f":"'Település Bemutatása - Népesség'!K6","v":8.8819633813790419E-2},null,{"$f":"Q!$J$1-2","v":2021},{"$f":"_xlfn.IFNA(VLOOKUP(\"Védelembe vett gyermekek (2016-tól érvényes módszertan) (fő)\",Q!$A$1:$G$132,MATCH($I7,Q!$A$1:$G$1,FALSE),FALSE),\"n.a.\")","v":0},{"$f":"_xlfn.IFNA(VLOOKUP(\"Veszélyeztetett kiskorú gyermekek (2016-tól érvényes módszertan) (fő)\",Q!$A$1:$G$132,MATCH($I7,Q!$A$1:$G$1,FALSE),FALSE),\"n.a.\")","v":1},null,{"$f":"Q!$J$1-2","v":2021},{"$f":"_xlfn.IFNA(VLOOKUP(\"Rendszeres gyermekvédelmi kedvezményben részesítettek havi átlagos létszáma (fő)\",Q!$A$1:$G$132,MATCH($M7,Q!$A$1:$G$1,FALSE),FALSE),\"n.a.\")","v":0},null,{"$f":"Q!$J$1-2","v":2021},{"$f":"_xlfn.IFNA(VLOOKUP(\"Árvaellátásban részesülő férfiak (fő)\",Q!$A$1:$G$132,MATCH($P7,Q!$A$1:$G$1,FALSE),FALSE),\"n.a.\")","v":3},{"$f":"_xlfn.IFNA(VLOOKUP(\"Árvaellátásban részesülő nők (fő)\",Q!$A$1:$G$132,MATCH($P7,Q!$A$1:$G$1,FALSE),FALSE),\"n.a.\")","v":5},8,null,{"$f":"Q!$J$1-2","v":2021},"n.a.","n.a.","n.a.","n.a.","n.a.","n.a.",null,{"$f":"Q!$J$1-2","v":2021},{"$f":"_xlfn.IFNA(VLOOKUP(\"Betöltött védőnői álláshelyek (db)\",Q!$A$1:$G$132,MATCH($AC7,Q!$A$1:$G$1,FALSE),FALSE),\"n.a.\")","v":1},"n.a.","-",null,{"$f":"Q!$J$1-2","v":2021},{"$f":"'3. Mélyszegények-Romák'!CA7","v":1},{"$f":"'3. Mélyszegények-Romák'!CB7","v":0},{"$f":"'3. Mélyszegények-Romák'!CC7","v":0},"n.a.","n.a.",null,{"$f":"Q!$J$1-2","v":2021},"n.a.","n.a.",null,{"$f":"Q!$J$1-2","v":2021},{"$f":"_xlfn.IFNA(VLOOKUP(\"Működő bölcsődei férőhelyek a munkahelyi bölcsődékben (2017-tól érvényes módszertan) (db)\",Q!$A$1:$G$132,MATCH($AS7,Q!$A$1:$G$1,FALSE),FALSE),\"n.a.\")","v":0},{"$f":"_xlfn.IFNA(VLOOKUP(\"Bölcsődébe beíratott gyermekek a munkahelyi bölcsődékben (2017-tól érvényes módszertan) (fő)\",Q!$A$1:$G$132,MATCH($AS7,Q!$A$1:$G$1,FALSE),FALSE),\"n.a.\")","v":0},{"$f":"_xlfn.IFNA(VLOOKUP(\"Működő bölcsődei férőhelyek a családi bölcsődékben (2017-tól érvényes módszertan) (db)\",Q!$A$1:$G$132,MATCH($AS7,Q!$A$1:$G$1,FALSE),FALSE),\"n.a.\")","v":0},{"$f":"_xlfn.IFNA(VLOOKUP(\"Bölcsődébe beíratott gyermekek a családi bölcsődékben (2017-tól érvényes módszertan) (fő)\",Q!$A$1:$G$132,MATCH($AS7,Q!$A$1:$G$1,FALSE),FALSE),\"n.a.\")","v":0},{"$f":"_xlfn.IFNA(VLOOKUP(\"Működő bölcsődei férőhelyek a mini bölcsődékben (2017-tól érvényes módszertan) (db)\",Q!$A$1:$G$132,MATCH($AS7,Q!$A$1:$G$1,FALSE),FALSE),\"n.a.\")","v":8},{"$f":"_xlfn.IFNA(VLOOKUP(\"Bölcsődébe beíratott gyermekek a mini bölcsődékben (2017-tól érvényes módszertan) (fő)\",Q!$A$1:$G$132,MATCH($AS7,Q!$A$1:$G$1,FALSE),FALSE),\"n.a.\")","v":8},{"$f":"_xlfn.IFNA(VLOOKUP(\"Működő bölcsődei férőhelyek (2017-tól érvényes módszertan) (db)\",Q!$A$1:$G$132,MATCH($AS7,Q!$A$1:$G$1,FALSE),FALSE),\"n.a.\")","v":0},{"$f":"_xlfn.IFNA(VLOOKUP(\"Bölcsődébe beírt gyermekek (2017-tól érvényes módszertan) (fő)\",Q!$A$1:$G$132,MATCH($AS7,Q!$A$1:$G$1,FALSE),FALSE),\"n.a.\")","v":0},null,{"$f":"Q!$J$1-2","v":2021},{"$f":"_xlfn.IFNA(VLOOKUP(\"Óvodába beírt gyermekek (fő)\",Q!$A$1:$G$132,MATCH($BC7,Q!$A$1:$G$1,FALSE),FALSE),\"n.a.\")","v":99},{"$f":"_xlfn.IFNA(VLOOKUP(\"Hátrányos helyzetű óvodás gyermekek (fő)\",Q!$A$1:$G$132,MATCH($BC7,Q!$A$1:$G$1,FALSE),FALSE),\"n.a.\")","v":0},{"$f":"_xlfn.IFNA(VLOOKUP(\"Hátrányos helyzetű óvodás gyermekek aránya (százalék)\",Q!$A$1:$G$132,MATCH($BC7,Q!$A$1:$G$1,FALSE),FALSE),\"n.a.\")","v":0},null,{"$f":"Q!$J$1-2","v":2021},"n.a.",{"$f":"_xlfn.IFNA(VLOOKUP(\"Hátrányos helyzetű általános iskolai tanulók a nappali oktatásban (fő)\",Q!$A$1:$G$132,MATCH($BC7,Q!$A$1:$G$1,FALSE),FALSE),\"n.a.\")","v":0},{"$f":"_xlfn.IFNA(VLOOKUP(\"Hátrányos helyzetű általános iskolai tanulók aránya a nappali oktatásban (százalék)\",Q!$A$1:$G$132,MATCH($BC7,Q!$A$1:$G$1,FALSE),FALSE),\"n.a.\")","v":0},null,{"$f":"Q!$J$1-2","v":2021},{"$f":"_xlfn.IFNA(VLOOKUP(\"Hátrányos helyzetű gimnáziumi tanulók a nappali oktatásban (fő)\",Q!$A$1:$G$132,MATCH($BC7,Q!$A$1:$G$1,FALSE),FALSE),\"n.a.\")","v":0},{"$f":"_xlfn.IFNA(VLOOKUP(\"Hátrányos helyzetű gimnáziumi tanulók aránya a nappali oktatásban (százalék)\",Q!$A$1:$G$132,MATCH($BC7,Q!$A$1:$G$1,FALSE),FALSE),\"n.a.\")","v":"n.a."},{"$f":"_xlfn.IFNA(VLOOKUP(\"Hátrányos helyzetű szakközépiskolai, szakiskolai és készségfejlesztő iskolai tanuló a nappali oktatásban (fő)\",Q!$A$1:$G$132,MATCH($BC7,Q!$A$1:$G$1,FALSE),FALSE),\"n.a.\")","v":"n.a."},{"$f":"_xlfn.IFNA(VLOOKUP(\"Hátrányos helyzetű szakközépiskolai, szakiskolai és készségfejlesztő iskolai tanulók aránya a nappali oktatásban (százalék)\",Q!$A$1:$G$132,MATCH($BC7,Q!$A$1:$G$1,FALSE),FALSE),\"n.a.\")","v":"n.a."},{"$f":"_xlfn.IFNA(VLOOKUP(\"Hátrányos helyzetű szakgimnáziumi tanulók a nappali oktatásban (fő)\",Q!$A$1:$G$132,MATCH($BC7,Q!$A$1:$G$1,FALSE),FALSE),\"n.a.\")","v":"n.a."},{"$f":"_xlfn.IFNA(VLOOKUP(\"Hátrányos helyzetű szakgimnáziumi tanulók aránya a nappali oktatásban (százalék)\",Q!$A$1:$G$132,MATCH($BC7,Q!$A$1:$G$1,FALSE),FALSE),\"n.a.\")","v":"n.a."},null,{"$f":"Q!$J$1-2","v":2021},{"$f":"_xlfn.IFNA(VLOOKUP(\"Megállapított hátrányos helyzetű gyermekek és nagykorúvá vált gyermekek (fő)\",Q!$A$1:$G$132,MATCH($BU7,Q!$A$1:$G$1,FALSE),FALSE),\"n.a.\")","v":0},{"$f":"_xlfn.IFNA(VLOOKUP(\"Megállapított halmozottan hátrányos helyzetű gyermekek és nagykorúvá vált gyermekek (fő)\",Q!$A$1:$G$132,MATCH($BU7,Q!$A$1:$G$1,FALSE),FALSE),\"n.a.\")","v":0},null,"Az óvoda nyitvatartási ideje (...h-tól ...h-ig):","n.a.","n.a.",null,{"$f":"Q!$J$1-2","v":2021},"n.a.",{"$f":"_xlfn.IFNA(VLOOKUP(\"Óvodai gyermekcsoportok (db)\",Q!$A$1:$G$132,MATCH($CC7,Q!$A$1:$G$1,FALSE),FALSE),\"n.a.\")","v":4},{"$f":"_xlfn.IFNA(VLOOKUP(\"Óvodai férőhelyek (fő)\",Q!$A$1:$G$132,MATCH($CC7,Q!$A$1:$G$1,FALSE),FALSE),\"n.a.\")","v":100},{"$f":"_xlfn.IFNA(VLOOKUP(\"Óvodai feladatellátási helyek (db)\",Q!$A$1:$G$132,MATCH($CC7,Q!$A$1:$G$1,FALSE),FALSE),\"n.a.\")","v":1},{"$f":"_xlfn.IFNA(VLOOKUP(\"Óvodába beírt gyermekek (fő)\",Q!$A$1:$G$132,MATCH($CC7,Q!$A$1:$G$1,FALSE),FALSE),\"n.a.\")","v":99},{"$f":"_xlfn.IFNA(VLOOKUP(\"Óvodai gyermekcsoportok a gyógypedagógiai nevelésben (db)\",Q!$A$1:$G$132,MATCH($CC7,Q!$A$1:$G$1,FALSE),FALSE),\"n.a.\")","v":0},{"$f":"_xlfn.IFNA(VLOOKUP(\"Gyógypedagógiai oktatásban részesülő óvodás gyermekek (integráltan oktatott sajátos nevelési igényű gyermekek nélkül) (fő)\",Q!$A$1:$G$132,MATCH($CC7,Q!$A$1:$G$1,FALSE),FALSE),\"n.a.\")","v":0},{"$f":"_xlfn.IFNA(VLOOKUP(\"Óvodába beírt gyermek, egy gyermekcsoportra (fő)\",Q!$A$1:$G$132,MATCH($CC7,Q!$A$1:$G$1,FALSE),FALSE),\"n.a.\")","v":24.75},null,null,{"$f":"Q!$J$1-2","v":2021},{"$f":"_xlfn.IFNA(VLOOKUP(\"Általános iskolai osztályok a gyógypedagógiai oktatásban (a nappali oktatásban) (db)\",Q!$A$1:$G$132,MATCH($CN7,Q!$A$1:$G$1,FALSE),FALSE),\"n.a.\")","v":0},{"$f":"_xlfn.IFNA(VLOOKUP(\"Általános iskolai osztályok a nappali oktatásban (db)\",Q!$A$1:$G$132,MATCH($CN7,Q!$A$1:$G$1,FALSE),FALSE),\"n.a.\")","v":8},{"$f":"_xlfn.IFNA(VLOOKUP(\"Általános iskolai feladatellátási helyek (db)\",Q!$A$1:$G$132,MATCH($CN7,Q!$A$1:$G$1,FALSE),FALSE),\"n.a.\")","v":1},{"$f":"_xlfn.IFNA(VLOOKUP(\"Egy osztályra jutó nappali tagozatos tanulók az általános iskolákban (fő)\",Q!$A$1:$G$132,MATCH($CN7,Q!$A$1:$G$1,FALSE),FALSE),\"n.a.\")","v":18.5},{"$f":"_xlfn.IFNA(VLOOKUP(\"Más településről bejáró általános iskolai tanulók aránya a nappali oktatásban (százalék)\",Q!$A$1:$G$132,MATCH($CN7,Q!$A$1:$G$1,FALSE),FALSE),\"n.a.\")","v":6.08},null,{"$f":"Q!$J$1-2","v":2021},{"$f":"_xlfn.IFNA(VLOOKUP(\"A 8. évfolyamot eredményesen befejezte a nappali oktatásban (fő)\",Q!$A$1:$G$132,MATCH($CN7,Q!$A$1:$G$1,FALSE),FALSE),\"n.a.\")","v":21},null,null,{"$f":"Q!$J$1-2","v":2021},"n.a.","n.a.","n.a.",{"$f":"_xlfn.IFNA(VLOOKUP(\"Szünidei étkeztetésben részesült gyermekek (fő)\",Q!$A$1:$G$132,MATCH($CN7,Q!$A$1:$G$1,FALSE),FALSE),\"n.a.\")","v":0}]
[null,"15-17 éves (férfiak TS 014, aránya TS 015; nők TS 016, aránya TS 017)",{"$f":"'Település Bemutatása - Népesség'!G7","v":38},{"$f":"'Település Bemutatása - Népesség'!H7","v":36},74,{"$f":"'Település Bemutatása - Népesség'!J7","v":1.4803272302298403E-2},{"$f":"'Település Bemutatása - Népesség'!K7","v":1.4024152707440592E-2},null,{"$f":"Q!$J$1-1","v":2022},{"$f":"_xlfn.IFNA(VLOOKUP(\"Védelembe vett gyermekek (2016-tól érvényes módszertan) (fő)\",Q!$A$1:$G$132,MATCH($I8,Q!$A$1:$G$1,FALSE),FALSE),\"n.a.\")","v":2},{"$f":"_xlfn.IFNA(VLOOKUP(\"Veszélyeztetett kiskorú gyermekek (2016-tól érvényes módszertan) (fő)\",Q!$A$1:$G$132,MATCH($I8,Q!$A$1:$G$1,FALSE),FALSE),\"n.a.\")","v":0},null,{"$f":"Q!$J$1-1","v":2022},{"$f":"_xlfn.IFNA(VLOOKUP(\"Rendszeres gyermekvédelmi kedvezményben részesítettek havi átlagos létszáma (fő)\",Q!$A$1:$G$132,MATCH($M8,Q!$A$1:$G$1,FALSE),FALSE),\"n.a.\")","v":0},null,{"$f":"Q!$J$1-1","v":2022},{"$f":"_xlfn.IFNA(VLOOKUP(\"Árvaellátásban részesülő férfiak (fő)\",Q!$A$1:$G$132,MATCH($P8,Q!$A$1:$G$1,FALSE),FALSE),\"n.a.\")","v":5},{"$f":"_xlfn.IFNA(VLOOKUP(\"Árvaellátásban részesülő nők (fő)\",Q!$A$1:$G$132,MATCH($P8,Q!$A$1:$G$1,FALSE),FALSE),\"n.a.\")","v":7},12,null,{"$f":"Q!$J$1-1","v":2022},"n.a.","n.a.","n.a.","n.a.","n.a.","n.a.",null,{"$f":"Q!$J$1-1","v":2022},{"$f":"_xlfn.IFNA(VLOOKUP(\"Betöltött védőnői álláshelyek (db)\",Q!$A$1:$G$132,MATCH($AC8,Q!$A$1:$G$1,FALSE),FALSE),\"n.a.\")","v":1},"n.a.","-",null,{"$f":"Q!$J$1-1","v":2022},{"$f":"'3. Mélyszegények-Romák'!CA8","v":1},{"$f":"'3. Mélyszegények-Romák'!CB8","v":0},{"$f":"'3. Mélyszegények-Romák'!CC8","v":0},"n.a.","n.a.",null,{"$f":"Q!$J$1-1","v":2022},"n.a.","n.a.",null,{"$f":"Q!$J$1-1","v":2022},{"$f":"_xlfn.IFNA(VLOOKUP(\"Működő bölcsődei férőhelyek a munkahelyi bölcsődékben (2017-tól érvényes módszertan) (db)\",Q!$A$1:$G$132,MATCH($AS8,Q!$A$1:$G$1,FALSE),FALSE),\"n.a.\")","v":0},{"$f":"_xlfn.IFNA(VLOOKUP(\"Bölcsődébe beíratott gyermekek a munkahelyi bölcsődékben (2017-tól érvényes módszertan) (fő)\",Q!$A$1:$G$132,MATCH($AS8,Q!$A$1:$G$1,FALSE),FALSE),\"n.a.\")","v":0},{"$f":"_xlfn.IFNA(VLOOKUP(\"Működő bölcsődei férőhelyek a családi bölcsődékben (2017-tól érvényes módszertan) (db)\",Q!$A$1:$G$132,MATCH($AS8,Q!$A$1:$G$1,FALSE),FALSE),\"n.a.\")","v":0},{"$f":"_xlfn.IFNA(VLOOKUP(\"Bölcsődébe beíratott gyermekek a családi bölcsődékben (2017-tól érvényes módszertan) (fő)\",Q!$A$1:$G$132,MATCH($AS8,Q!$A$1:$G$1,FALSE),FALSE),\"n.a.\")","v":0},{"$f":"_xlfn.IFNA(VLOOKUP(\"Működő bölcsődei férőhelyek a mini bölcsődékben (2017-tól érvényes módszertan) (db)\",Q!$A$1:$G$132,MATCH($AS8,Q!$A$1:$G$1,FALSE),FALSE),\"n.a.\")","v":8},{"$f":"_xlfn.IFNA(VLOOKUP(\"Bölcsődébe beíratott gyermekek a mini bölcsődékben (2017-tól érvényes módszertan) (fő)\",Q!$A$1:$G$132,MATCH($AS8,Q!$A$1:$G$1,FALSE),FALSE),\"n.a.\")","v":8},{"$f":"_xlfn.IFNA(VLOOKUP(\"Működő bölcsődei férőhelyek (2017-tól érvényes módszertan) (db)\",Q!$A$1:$G$132,MATCH($AS8,Q!$A$1:$G$1,FALSE),FALSE),\"n.a.\")","v":0},{"$f":"_xlfn.IFNA(VLOOKUP(\"Bölcsődébe beírt gyermekek (2017-tól érvényes módszertan) (fő)\",Q!$A$1:$G$132,MATCH($AS8,Q!$A$1:$G$1,FALSE),FALSE),\"n.a.\")","v":0},null,{"$f":"Q!$J$1-1","v":2022},{"$f":"_xlfn.IFNA(VLOOKUP(\"Óvodába beírt gyermekek (fő)\",Q!$A$1:$G$132,MATCH($BC8,Q!$A$1:$G$1,FALSE),FALSE),\"n.a.\")","v":109},{"$f":"_xlfn.IFNA(VLOOKUP(\"Hátrányos helyzetű óvodás gyermekek (fő)\",Q!$A$1:$G$132,MATCH($BC8,Q!$A$1:$G$1,FALSE),FALSE),\"n.a.\")","v":0},{"$f":"_xlfn.IFNA(VLOOKUP(\"Hátrányos helyzetű óvodás gyermekek aránya (százalék)\",Q!$A$1:$G$132,MATCH($BC8,Q!$A$1:$G$1,FALSE),FALSE),\"n.a.\")","v":0},null,{"$f":"Q!$J$1-1","v":2022},"n.a.",{"$f":"_xlfn.IFNA(VLOOKUP(\"Hátrányos helyzetű általános iskolai tanulók a nappali oktatásban (fő)\",Q!$A$1:$G$132,MATCH($BC8,Q!$A$1:$G$1,FALSE),FALSE),\"n.a.\")","v":0},{"$f":"_xlfn.IFNA(VLOOKUP(\"Hátrányos helyzetű általános iskolai tanulók aránya a nappali oktatásban (százalék)\",Q!$A$1:$G$132,MATCH($BC8,Q!$A$1:$G$1,FALSE),FALSE),\"n.a.\")","v":0},null,{"$f":"Q!$J$1-1","v":2022},{"$f":"_xlfn.IFNA(VLOOKUP(\"Hátrányos helyzetű gimnáziumi tanulók a nappali oktatásban (fő)\",Q!$A$1:$G$132,MATCH($BC8,Q!$A$1:$G$1,FALSE),FALSE),\"n.a.\")","v":0},{"$f":"_xlfn.IFNA(VLOOKUP(\"Hátrányos helyzetű gimnáziumi tanulók aránya a nappali oktatásban (százalék)\",Q!$A$1:$G$132,MATCH($BC8,Q!$A$1:$G$1,FALSE),FALSE),\"n.a.\")","v":"n.a."},{"$f":"_xlfn.IFNA(VLOOKUP(\"Hátrányos helyzetű szakközépiskolai, szakiskolai és készségfejlesztő iskolai tanuló a nappali oktatásban (fő)\",Q!$A$1:$G$132,MATCH($BC8,Q!$A$1:$G$1,FALSE),FALSE),\"n.a.\")","v":"n.a."},{"$f":"_xlfn.IFNA(VLOOKUP(\"Hátrányos helyzetű szakközépiskolai, szakiskolai és készségfejlesztő iskolai tanulók aránya a nappali oktatásban (százalék)\",Q!$A$1:$G$132,MATCH($BC8,Q!$A$1:$G$1,FALSE),FALSE),\"n.a.\")","v":"n.a."},{"$f":"_xlfn.IFNA(VLOOKUP(\"Hátrányos helyzetű szakgimnáziumi tanulók a nappali oktatásban (fő)\",Q!$A$1:$G$132,MATCH($BC8,Q!$A$1:$G$1,FALSE),FALSE),\"n.a.\")","v":"n.a."},{"$f":"_xlfn.IFNA(VLOOKUP(\"Hátrányos helyzetű szakgimnáziumi tanulók aránya a nappali oktatásban (százalék)\",Q!$A$1:$G$132,MATCH($BC8,Q!$A$1:$G$1,FALSE),FALSE),\"n.a.\")","v":"n.a."},null,{"$f":"Q!$J$1-1","v":2022},{"$f":"_xlfn.IFNA(VLOOKUP(\"Megállapított hátrányos helyzetű gyermekek és nagykorúvá vált gyermekek (fő)\",Q!$A$1:$G$132,MATCH($BU8,Q!$A$1:$G$1,FALSE),FALSE),\"n.a.\")","v":0},{"$f":"_xlfn.IFNA(VLOOKUP(\"Megállapított halmozottan hátrányos helyzetű gyermekek és nagykorúvá vált gyermekek (fő)\",Q!$A$1:$G$132,MATCH($BU8,Q!$A$1:$G$1,FALSE),FALSE),\"n.a.\")","v":0},null,"A nyári óvoda-bezárás időtartama (nap)","n.a.",null,null,{"$f":"Q!$J$1-1","v":2022},"n.a.",{"$f":"_xlfn.IFNA(VLOOKUP(\"Óvodai gyermekcsoportok (db)\",Q!$A$1:$G$132,MATCH($CC8,Q!$A$1:$G$1,FALSE),FALSE),\"n.a.\")","v":4},{"$f":"_xlfn.IFNA(VLOOKUP(\"Óvodai férőhelyek (fő)\",Q!$A$1:$G$132,MATCH($CC8,Q!$A$1:$G$1,FALSE),FALSE),\"n.a.\")","v":100},{"$f":"_xlfn.IFNA(VLOOKUP(\"Óvodai feladatellátási helyek (db)\",Q!$A$1:$G$132,MATCH($CC8,Q!$A$1:$G$1,FALSE),FALSE),\"n.a.\")","v":1},{"$f":"_xlfn.IFNA(VLOOKUP(\"Óvodába beírt gyermekek (fő)\",Q!$A$1:$G$132,MATCH($CC8,Q!$A$1:$G$1,FALSE),FALSE),\"n.a.\")","v":109},{"$f":"_xlfn.IFNA(VLOOKUP(\"Óvodai gyermekcsoportok a gyógypedagógiai nevelésben (db)\",Q!$A$1:$G$132,MATCH($CC8,Q!$A$1:$G$1,FALSE),FALSE),\"n.a.\")","v":0},{"$f":"_xlfn.IFNA(VLOOKUP(\"Gyógypedagógiai oktatásban részesülő óvodás gyermekek (integráltan oktatott sajátos nevelési igényű gyermekek nélkül) (fő)\",Q!$A$1:$G$132,MATCH($CC8,Q!$A$1:$G$1,FALSE),FALSE),\"n.a.\")","v":0},{"$f":"_xlfn.IFNA(VLOOKUP(\"Óvodába beírt gyermek, egy gyermekcsoportra (fő)\",Q!$A$1:$G$132,MATCH($CC8,Q!$A$1:$G$1,FALSE),FALSE),\"n.a.\")","v":27.25},null,null,{"$f":"Q!$J$1-1","v":2022},{"$f":"_xlfn.IFNA(VLOOKUP(\"Általános iskolai osztályok a gyógypedagógiai oktatásban (a nappali oktatásban) (db)\",Q!$A$1:$G$132,MATCH($CN8,Q!$A$1:$G$1,FALSE),FALSE),\"n.a.\")","v":0},{"$f":"_xlfn.IFNA(VLOOKUP(\"Általános iskolai osztályok a nappali oktatásban (db)\",Q!$A$1:$G$132,MATCH($CN8,Q!$A$1:$G$1,FALSE),FALSE),\"n.a.\")","v":8},{"$f":"_xlfn.IFNA(VLOOKUP(\"Általános iskolai feladatellátási helyek (db)\",Q!$A$1:$G$132,MATCH($CN8,Q!$A$1:$G$1,FALSE),FALSE),\"n.a.\")","v":1},{"$f":"_xlfn.IFNA(VLOOKUP(\"Egy osztályra jutó nappali tagozatos tanulók az általános iskolákban (fő)\",Q!$A$1:$G$132,MATCH($CN8,Q!$A$1:$G$1,FALSE),FALSE),\"n.a.\")","v":19.38},{"$f":"_xlfn.IFNA(VLOOKUP(\"Más településről bejáró általános iskolai tanulók aránya a nappali oktatásban (százalék)\",Q!$A$1:$G$132,MATCH($CN8,Q!$A$1:$G$1,FALSE),FALSE),\"n.a.\")","v":7.74},null,{"$f":"Q!$J$1-1","v":2022},{"$f":"_xlfn.IFNA(VLOOKUP(\"A 8. évfolyamot eredményesen befejezte a nappali oktatásban (fő)\",Q!$A$1:$G$132,MATCH($CN8,Q!$A$1:$G$1,FALSE),FALSE),\"n.a.\")","v":15},null,null,{"$f":"Q!$J$1-1","v":2022},"n.a.","n.a.","n.a.",{"$f":"_xlfn.IFNA(VLOOKUP(\"Szünidei étkeztetésben részesült gyermekek (fő)\",Q!$A$1:$G$132,MATCH($CN8,Q!$A$1:$G$1,FALSE),FALSE),\"n.a.\")","v":0}]
[null,"Forrás: TeIR, KSH Tstar",null,null,null,null,null,null,{"$f":"Q!$J$1","v":2023},{"$f":"_xlfn.IFNA(VLOOKUP(\"Védelembe vett gyermekek (2016-tól érvényes módszertan) (fő)\",Q!$A$1:$G$132,MATCH($I9,Q!$A$1:$G$1,FALSE),FALSE),\"n.a.\")","v":7},{"$f":"_xlfn.IFNA(VLOOKUP(\"Veszélyeztetett kiskorú gyermekek (2016-tól érvényes módszertan) (fő)\",Q!$A$1:$G$132,MATCH($I9,Q!$A$1:$G$1,FALSE),FALSE),\"n.a.\")","v":1},null,{"$f":"Q!$J$1","v":2023},{"$f":"_xlfn.IFNA(VLOOKUP(\"Rendszeres gyermekvédelmi kedvezményben részesítettek havi átlagos létszáma (fő)\",Q!$A$1:$G$132,MATCH($M9,Q!$A$1:$G$1,FALSE),FALSE),\"n.a.\")","v":0},null,{"$f":"Q!$J$1","v":2023},{"$f":"_xlfn.IFNA(VLOOKUP(\"Árvaellátásban részesülő férfiak (fő)\",Q!$A$1:$G$132,MATCH($P9,Q!$A$1:$G$1,FALSE),FALSE),\"n.a.\")","v":4},{"$f":"_xlfn.IFNA(VLOOKUP(\"Árvaellátásban részesülő nők (fő)\",Q!$A$1:$G$132,MATCH($P9,Q!$A$1:$G$1,FALSE),FALSE),\"n.a.\")","v":8},12,null,{"$f":"Q!$J$1","v":2023},"n.a.","n.a.","n.a.","n.a.","n.a.","n.a.",null,{"$f":"Q!$J$1","v":2023},{"$f":"_xlfn.IFNA(VLOOKUP(\"Betöltött védőnői álláshelyek (db)\",Q!$A$1:$G$132,MATCH($AC9,Q!$A$1:$G$1,FALSE),FALSE),\"n.a.\")","v":"n.a."},"n.a.",{"$f":"IF(ISERR((AE9/AD9)),\"-\",(AE9/AD9))","v":"-"},null,{"$f":"Q!$J$1","v":2023},{"$f":"'3. Mélyszegények-Romák'!CA9","v":1},{"$f":"'3. Mélyszegények-Romák'!CB9","v":0},{"$f":"'3. Mélyszegények-Romák'!CC9","v":0},"n.a.","n.a.",null,{"$f":"Q!$J$1","v":2023},"n.a.","n.a.",null,{"$f":"Q!$J$1","v":2023},{"$f":"_xlfn.IFNA(VLOOKUP(\"Működő bölcsődei férőhelyek a munkahelyi bölcsődékben (2017-tól érvényes módszertan) (db)\",Q!$A$1:$G$132,MATCH($AS9,Q!$A$1:$G$1,FALSE),FALSE),\"n.a.\")","v":0},{"$f":"_xlfn.IFNA(VLOOKUP(\"Bölcsődébe beíratott gyermekek a munkahelyi bölcsődékben (2017-tól érvényes módszertan) (fő)\",Q!$A$1:$G$132,MATCH($AS9,Q!$A$1:$G$1,FALSE),FALSE),\"n.a.\")","v":0},{"$f":"_xlfn.IFNA(VLOOKUP(\"Működő bölcsődei férőhelyek a családi bölcsődékben (2017-tól érvényes módszertan) (db)\",Q!$A$1:$G$132,MATCH($AS9,Q!$A$1:$G$1,FALSE),FALSE),\"n.a.\")","v":0},{"$f":"_xlfn.IFNA(VLOOKUP(\"Bölcsődébe beíratott gyermekek a családi bölcsődékben (2017-tól érvényes módszertan) (fő)\",Q!$A$1:$G$132,MATCH($AS9,Q!$A$1:$G$1,FALSE),FALSE),\"n.a.\")","v":0},{"$f":"_xlfn.IFNA(VLOOKUP(\"Működő bölcsődei férőhelyek a mini bölcsődékben (2017-tól érvényes módszertan) (db)\",Q!$A$1:$G$132,MATCH($AS9,Q!$A$1:$G$1,FALSE),FALSE),\"n.a.\")","v":8},{"$f":"_xlfn.IFNA(VLOOKUP(\"Bölcsődébe beíratott gyermekek a mini bölcsődékben (2017-tól érvényes módszertan) (fő)\",Q!$A$1:$G$132,MATCH($AS9,Q!$A$1:$G$1,FALSE),FALSE),\"n.a.\")","v":8},{"$f":"_xlfn.IFNA(VLOOKUP(\"Működő bölcsődei férőhelyek (2017-tól érvényes módszertan) (db)\",Q!$A$1:$G$132,MATCH($AS9,Q!$A$1:$G$1,FALSE),FALSE),\"n.a.\")","v":0},{"$f":"_xlfn.IFNA(VLOOKUP(\"Bölcsődébe beírt gyermekek (2017-tól érvényes módszertan) (fő)\",Q!$A$1:$G$132,MATCH($AS9,Q!$A$1:$G$1,FALSE),FALSE),\"n.a.\")","v":0},null,{"$f":"Q!$J$1","v":2023},{"$f":"_xlfn.IFNA(VLOOKUP(\"Óvodába beírt gyermekek (fő)\",Q!$A$1:$G$132,MATCH($BC9,Q!$A$1:$G$1,FALSE),FALSE),\"n.a.\")","v":120},{"$f":"_xlfn.IFNA(VLOOKUP(\"Hátrányos helyzetű óvodás gyermekek (fő)\",Q!$A$1:$G$132,MATCH($BC9,Q!$A$1:$G$1,FALSE),FALSE),\"n.a.\")","v":0},{"$f":"_xlfn.IFNA(VLOOKUP(\"Hátrányos helyzetű óvodás gyermekek aránya (százalék)\",Q!$A$1:$G$132,MATCH($BC9,Q!$A$1:$G$1,FALSE),FALSE),\"n.a.\")","v":0},null,{"$f":"Q!$J$1","v":2023},"n.a.",{"$f":"_xlfn.IFNA(VLOOKUP(\"Hátrányos helyzetű általános iskolai tanulók a nappali oktatásban (fő)\",Q!$A$1:$G$132,MATCH($BC9,Q!$A$1:$G$1,FALSE),FALSE),\"n.a.\")","v":0},{"$f":"_xlfn.IFNA(VLOOKUP(\"Hátrányos helyzetű általános iskolai tanulók aránya a nappali oktatásban (százalék)\",Q!$A$1:$G$132,MATCH($BC9,Q!$A$1:$G$1,FALSE),FALSE),\"n.a.\")","v":0},null,{"$f":"Q!$J$1","v":2023},{"$f":"_xlfn.IFNA(VLOOKUP(\"Hátrányos helyzetű gimnáziumi tanulók a nappali oktatásban (fő)\",Q!$A$1:$G$132,MATCH($BC9,Q!$A$1:$G$1,FALSE),FALSE),\"n.a.\")","v":0},{"$f":"_xlfn.IFNA(VLOOKUP(\"Hátrányos helyzetű gimnáziumi tanulók aránya a nappali oktatásban (százalék)\",Q!$A$1:$G$132,MATCH($BC9,Q!$A$1:$G$1,FALSE),FALSE),\"n.a.\")","v":"n.a."},{"$f":"_xlfn.IFNA(VLOOKUP(\"Hátrányos helyzetű szakközépiskolai, szakiskolai és készségfejlesztő iskolai tanuló a nappali oktatásban (fő)\",Q!$A$1:$G$132,MATCH($BC9,Q!$A$1:$G$1,FALSE),FALSE),\"n.a.\")","v":"n.a."},{"$f":"_xlfn.IFNA(VLOOKUP(\"Hátrányos helyzetű szakközépiskolai, szakiskolai és készségfejlesztő iskolai tanulók aránya a nappali oktatásban (százalék)\",Q!$A$1:$G$132,MATCH($BC9,Q!$A$1:$G$1,FALSE),FALSE),\"n.a.\")","v":"n.a."},{"$f":"_xlfn.IFNA(VLOOKUP(\"Hátrányos helyzetű szakgimnáziumi tanulók a nappali oktatásban (fő)\",Q!$A$1:$G$132,MATCH($BC9,Q!$A$1:$G$1,FALSE),FALSE),\"n.a.\")","v":"n.a."},{"$f":"_xlfn.IFNA(VLOOKUP(\"Hátrányos helyzetű szakgimnáziumi tanulók aránya a nappali oktatásban (százalék)\",Q!$A$1:$G$132,MATCH($BC9,Q!$A$1:$G$1,FALSE),FALSE),\"n.a.\")","v":"n.a."},null,{"$f":"Q!$J$1","v":2023},{"$f":"_xlfn.IFNA(VLOOKUP(\"Megállapított hátrányos helyzetű gyermekek és nagykorúvá vált gyermekek (fő)\",Q!$A$1:$G$132,MATCH($BU9,Q!$A$1:$G$1,FALSE),FALSE),\"n.a.\")","v":0},{"$f":"_xlfn.IFNA(VLOOKUP(\"Megállapított halmozottan hátrányos helyzetű gyermekek és nagykorúvá vált gyermekek (fő)\",Q!$A$1:$G$132,MATCH($BU9,Q!$A$1:$G$1,FALSE),FALSE),\"n.a.\")","v":0},null,"Személyi feltételek","Fő","Hiányzó létszám",null,{"$f":"Q!$J$1","v":2023},"n.a.",{"$f":"_xlfn.IFNA(VLOOKUP(\"Óvodai gyermekcsoportok (db)\",Q!$A$1:$G$132,MATCH($CC9,Q!$A$1:$G$1,FALSE),FALSE),\"n.a.\")","v":4},{"$f":"_xlfn.IFNA(VLOOKUP(\"Óvodai férőhelyek (fő)\",Q!$A$1:$G$132,MATCH($CC9,Q!$A$1:$G$1,FALSE),FALSE),\"n.a.\")","v":120},{"$f":"_xlfn.IFNA(VLOOKUP(\"Óvodai feladatellátási helyek (db)\",Q!$A$1:$G$132,MATCH($CC9,Q!$A$1:$G$1,FALSE),FALSE),\"n.a.\")","v":1},{"$f":"_xlfn.IFNA(VLOOKUP(\"Óvodába beírt gyermekek (fő)\",Q!$A$1:$G$132,MATCH($CC9,Q!$A$1:$G$1,FALSE),FALSE),\"n.a.\")","v":120},{"$f":"_xlfn.IFNA(VLOOKUP(\"Óvodai gyermekcsoportok a gyógypedagógiai nevelésben (db)\",Q!$A$1:$G$132,MATCH($CC9,Q!$A$1:$G$1,FALSE),FALSE),\"n.a.\")","v":0},{"$f":"_xlfn.IFNA(VLOOKUP(\"Gyógypedagógiai oktatásban részesülő óvodás gyermekek (integráltan oktatott sajátos nevelési igényű gyermekek nélkül) (fő)\",Q!$A$1:$G$132,MATCH($CC9,Q!$A$1:$G$1,FALSE),FALSE),\"n.a.\")","v":0},{"$f":"_xlfn.IFNA(VLOOKUP(\"Óvodába beírt gyermek, egy gyermekcsoportra (fő)\",Q!$A$1:$G$132,MATCH($CC9,Q!$A$1:$G$1,FALSE),FALSE),\"n.a.\")","v":30},null,null,{"$f":"Q!$J$1","v":2023},{"$f":"_xlfn.IFNA(VLOOKUP(\"Általános iskolai osztályok a gyógypedagógiai oktatásban (a nappali oktatásban) (db)\",Q!$A$1:$G$132,MATCH($CN9,Q!$A$1:$G$1,FALSE),FALSE),\"n.a.\")","v":0},{"$f":"_xlfn.IFNA(VLOOKUP(\"Általános iskolai osztályok a nappali oktatásban (db)\",Q!$A$1:$G$132,MATCH($CN9,Q!$A$1:$G$1,FALSE),FALSE),\"n.a.\")","v":8},{"$f":"_xlfn.IFNA(VLOOKUP(\"Általános iskolai feladatellátási helyek (db)\",Q!$A$1:$G$132,MATCH($CN9,Q!$A$1:$G$1,FALSE),FALSE),\"n.a.\")","v":1},{"$f":"_xlfn.IFNA(VLOOKUP(\"Egy osztályra jutó nappali tagozatos tanulók az általános iskolákban (fő)\",Q!$A$1:$G$132,MATCH($CN9,Q!$A$1:$G$1,FALSE),FALSE),\"n.a.\")","v":18.88},{"$f":"_xlfn.IFNA(VLOOKUP(\"Más településről bejáró általános iskolai tanulók aránya a nappali oktatásban (százalék)\",Q!$A$1:$G$132,MATCH($CN9,Q!$A$1:$G$1,FALSE),FALSE),\"n.a.\")","v":5.3},null,{"$f":"Q!$J$1","v":2023},{"$f":"_xlfn.IFNA(VLOOKUP(\"A 8. évfolyamot eredményesen befejezte a nappali oktatásban (fő)\",Q!$A$1:$G$132,MATCH($CN9,Q!$A$1:$G$1,FALSE),FALSE),\"n.a.\")","v":19},null,null,{"$f":"Q!$J$1","v":2023},"n.a.","n.a.","n.a.",{"$f":"_xlfn.IFNA(VLOOKUP(\"Szünidei étkeztetésben részesült gyermekek (fő)\",Q!$A$1:$G$132,MATCH($CN9,Q!$A$1:$G$1,FALSE),FALSE),\"n.a.\")","v":0}]
[null,null,null,null,null,null,null,null,"Forrás: TeIR, KSH Tstar",null,null,null,"Forrás: TeIR, KSH Tstar, Önkormányzati adatok",null,null,"Forrás: TeIR, KSH Tstar, Önkormányzati adatok",null,null,null,null,"Forrás: TeIR, KSH Tstar, Önkormányzati adatok",null,null,null,null,null,null,null,"Forrás: TeIR, KSH Tstar, Önkormányzati adatok",null,null,null,null,"Forrás: TeIR, KSH Tstar, Önkormányzati adatok",null,null,null,null,null,null,"Forrás: Önkormányzati és intézményi adatgyűjtés",null,null,null,null,"Forrás: TeIR, KSH Tstar",null,null,null,null,null,null,null,null,"Forrás: TeIR, KSH Tstar",null,null,null,null,"Forrás: TeIR, KSH Tstar, Önkormányzati és intézményi adatgyűjtés",null,null,null,null,"Forrás: TeIR, KSH Tstar",null,null,null,null,null,null,null,"Forrás: TeIR, KSH Tstar",null,null,null,"Óvodapedagógusok száma","n.a.","n.a.",null,"Forrás: TeIR, KSH Tstar, Önkormányzati adatgyűjtés",null,null,null,null,null,null,null,null,null,null,"Forrás: TeIR, KSH Tstar",null,null,null,null,null,null,"Forrás: TeIR, KSH Tstar  ",null,null,null,"Forrás: TeIR, KSH Tstar, Önkormányzati és intézményfenntartói adatok"]
[null,null,null,null,null,null,null,null,null,null,null,null,null,null,null,null,null,null,null,null,null,null,null,null,null,null,null,null,null,null,null,null,null,null,null,null,null,null,null,null,null,null,null,null,null,null,null,null,null,null,null,null,null,null,null,null,null,null,null,null,null,null,null,null,null,null,null,null,null,null,null,null,null,null,null,null,"Ebből diplomás óvodapedagógusok száma","n.a.","n.a."]
[null,null,null,null,null,null,null,null,null,null,null,null,null,null,null,null,null,null,null,null,null,null,null,null,null,null,null,null,null,null,null,null,null,null,null,null,null,null,null,null,null,null,null,null,null,null,null,null,null,null,null,null,null,null,null,null,null,null,null,null,null,null,null,null,null,null,null,null,null,null,null,null,null,null,null,null,"Gyógypedagógusok létszáma","n.a.","n.a."]
[null,null,null,null,null,null,null,null,null,null,null,null,null,null,null,null,null,null,null,null,null,null,null,null,null,null,null,null,null,null,null,null,null,null,null,null,null,null,null,null,null,null,null,null,null,null,null,null,null,null,null,null,null,null,null,null,null,null,null,null,null,null,null,null,null,null,null,null,null,null,null,null,null,null,null,null,"Dajka/gondozónő","n.a.","n.a."]
[null,null,null,null,null,null,null,null,null,null,null,null,null,null,null,null,null,null,null,null,null,null,null,null,null,null,null,null,null,null,null,null,null,null,null,null,null,null,null,null,null,null,null,null,null,null,null,null,null,null,null,null,null,null,null,null,null,null,null,null,null,null,null,null,null,null,null,null,null,null,null,null,null,null,null,null,"Kisegítő személyzet","n.a.","n.a."]
[null,null,null,null,null,null,null,null,null,null,null,null,null,null,null,null,null,null,null,null,null,null,null,null,null,null,null,null,null,null,null,null,null,null,null,null,null,null,null,null,null,null,null,null,null,null,null,null,null,null,null,null,null,null,null,null,null,null,null,null,null,null,null,null,null,null,null,null,null,null,null,null,null,null,null,null,"Forrás: Önkormányzati, intézményi adatgyűjtés"]

{"sheet":"5. Nők","index":4,"n_rows":11,"n_cols":32,"rows_kept":11,"cut":false,"hidden":false,"merged":[[1,1,3,1],[1,2,1,4],[0,1,0,4],[1,6,3,6],[1,7,2,7],[1,8,2,8],[0,19,0,21],[0,23,0,31],[1,19,2,19],[1,23,2,23],[0,10,0,12],[1,14,2,14],[0,14,0,17],[1,10,2,10],[0,6,0,8]]}
[null,"5.1.1. számú táblázat - Munkanélküliségi ráta nemek szerint\n(a 3.2.1. táblával azonos) ",null,null,null,null,"5.1.2.  számú tábla - A 180 napnál hosszabb ideje nyilvántartott álláskeresők  (a 3.2.3. táblával azonos)",null,null,null,"5.1.3. számú táblázat - Pályakezdő álláskeresők száma \n(a 3.2.6. táblával azonos)",null,null,null,"5. 2. 1. számú táblázat – Védőnői álláshelyek száma (a 4.3.1. táblával azonos)",null,null,null,null,"5.2.2. a) Bölcsődék és bölcsődébe beíratott gyermekek száma (4.3.3. a.) számú táblázatból",null,null,null,"5.2.2. b) Bölcsődék és bölcsődébe beíratott gyermekek száma (4.3.3. b.) számú táblázatból"]
[null,"Év ","Nyilvántartott álláskeresők aránya az \nállandó népességben a 15-64 évesek körében",null,null,null,"Év ","180 napnál hosszabb ideje regisztrált munkanélküliek aránya (TS 057)","Nők aránya a 180 napon túli nyilvántartott álláskeresőkön belül (TS 058)",null,"Év ","Nyilvántartott álláskeresők száma\n(TS 052)","Nyilvántartott pályakezdő álláskeresők száma\n(TS 053)",null,"Év","Betöltött védőnői álláshelyek száma\n(TS 109)","0-3 év közötti gyermekek száma","Átlagos gyermekszám védőnőnként",null,"Év","Működő, önkormányzati bölcsődei férőhelyek száma","Önkormányzati bölcsődébe beírt gyerekek száma\n",null,"Év","Működő munkahelyi bölcsődei férőhelyek száma (TS 126)","Munkahelyi bölcsődébe beírt gyerekek száma (TS 122)","Működő családi bölcsödei  férőhelyek száma \n(TS 125)","Családi bölcsődébe beírt gyerekek száma (TS 121)","Működő mini bölcsődei férőhelyek száma (TS 127)","Mini bölcsődébe beírt gyerekek száma (TS 123)","Működő (összes) bölcsődei férőhelyek száma (TS 124)","Bölcsődébe (összes) beírt gyermekek száma\n(TS 120)"]
[null,null,"Férfiak aránya \n(TS 033)","Nők aránya \n(TS 034)","Összesen",null,null,null,null,null,null,"fő","Fő",null,null,"db","fő","fő",null,null,"db","Fő",null,null,"db","Fő","db","Fő","db","Fő","db","Fő"]
[null,null,"%","%","%",null,null,"%","%",null,{"$f":"$B5","v":2018},{"$f":"'3. Mélyszegények-Romák'!AK4","v":17},{"$f":"'3. Mélyszegények-Romák'!AL4","v":0},null,{"$f":"$B5","v":2018},{"$f":"'4. Gyermekek'!AD4","v":1},{"$f":"'4. Gyermekek'!AE4","v":"n.a."},{"$f":"'4. Gyermekek'!AF4","v":"-"},null,{"$f":"$B5","v":2018},{"$f":"'4. Gyermekek'!AP4","v":"n.a."},{"$f":"'4. Gyermekek'!AQ4","v":"n.a."},null,{"$f":"$B5","v":2018},{"$f":"'4. Gyermekek'!AT4","v":0},{"$f":"'4. Gyermekek'!AU4","v":0},{"$f":"'4. Gyermekek'!AV4","v":0},{"$f":"'4. Gyermekek'!AW4","v":0},{"$f":"'4. Gyermekek'!AX4","v":0},{"$f":"'4. Gyermekek'!AY4","v":0},{"$f":"'4. Gyermekek'!AZ4","v":0},{"$f":"'4. Gyermekek'!BA4","v":0}]
[null,{"$f":"Q!$J$1-5","v":2018},{"$f":"'3. Mélyszegények-Romák'!F4","v":0.95},{"$f":"'3. Mélyszegények-Romák'!G4","v":1.33},{"$f":"'3. Mélyszegények-Romák'!H4","v":1.14E-2},null,{"$f":"$B5","v":2018},{"$f":"'3. Mélyszegények-Romák'!T5","v":41.18},{"$f":"'3. Mélyszegények-Romák'!U5","v":57.14},null,{"$f":"$B6","v":2019},{"$f":"'3. Mélyszegények-Romák'!AK5","v":18},{"$f":"'3. Mélyszegények-Romák'!AL5","v":0},null,{"$f":"$B6","v":2019},{"$f":"'4. Gyermekek'!AD5","v":1},{"$f":"'4. Gyermekek'!AE5","v":"n.a."},{"$f":"'4. Gyermekek'!AF5","v":"-"},null,{"$f":"$B6","v":2019},{"$f":"'4. Gyermekek'!AP5","v":"n.a."},{"$f":"'4. Gyermekek'!AQ5","v":"n.a."},null,{"$f":"$B6","v":2019},{"$f":"'4. Gyermekek'!AT5","v":0},{"$f":"'4. Gyermekek'!AU5","v":0},{"$f":"'4. Gyermekek'!AV5","v":0},{"$f":"'4. Gyermekek'!AW5","v":0},{"$f":"'4. Gyermekek'!AX5","v":7},{"$f":"'4. Gyermekek'!AY5","v":7},{"$f":"'4. Gyermekek'!AZ5","v":0},{"$f":"'4. Gyermekek'!BA5","v":0}]
[null,{"$f":"Q!$J$1-4","v":2019},{"$f":"'3. Mélyszegények-Romák'!F5","v":1.19},{"$f":"'3. Mélyszegények-Romák'!G5","v":1.1599999999999999},{"$f":"'3. Mélyszegények-Romák'!H5","v":1.1749999999999998E-2},null,{"$f":"$B6","v":2019},{"$f":"'3. Mélyszegények-Romák'!T6","v":27.78},{"$f":"'3. Mélyszegények-Romák'!U6","v":60},null,2020,{"$f":"'3. Mélyszegények-Romák'!AK6","v":26},{"$f":"'3. Mélyszegények-Romák'!AL6","v":1},null,2020,{"$f":"'4. Gyermekek'!AD6","v":1},{"$f":"'4. Gyermekek'!AE6","v":"n.a."},{"$f":"'4. Gyermekek'!AF6","v":"-"},null,2020,{"$f":"'4. Gyermekek'!AP6","v":"n.a."},{"$f":"'4. Gyermekek'!AQ6","v":"n.a."},null,2020,{"$f":"'4. Gyermekek'!AT6","v":0},{"$f":"'4. Gyermekek'!AU6","v":0},{"$f":"'4. Gyermekek'!AV6","v":0},{"$f":"'4. Gyermekek'!AW6","v":0},{"$f":"'4. Gyermekek'!AX6","v":8},{"$f":"'4. Gyermekek'!AY6","v":8},{"$f":"'4. Gyermekek'!AZ6","v":0},{"$f":"'4. Gyermekek'!BA6","v":0}]
[null,{"$f":"Q!$J$1-3","v":2020},{"$f":"'3. Mélyszegények-Romák'!F6","v":0.86},{"$f":"'3. Mélyszegények-Romák'!G6","v":2.31},{"$f":"'3. Mélyszegények-Romák'!H6","v":1.585E-2},null,2020,{"$f":"'3. Mélyszegények-Romák'!T7","v":34.619999999999997},{"$f":"'3. Mélyszegények-Romák'!U7","v":66.67},null,2021,{"$f":"'3. Mélyszegények-Romák'!AK7","v":13},{"$f":"'3. Mélyszegények-Romák'!AL7","v":0},null,2021,{"$f":"'4. Gyermekek'!AD7","v":1},{"$f":"'4. Gyermekek'!AE7","v":"n.a."},{"$f":"'4. Gyermekek'!AF7","v":"-"},null,2021,{"$f":"'4. Gyermekek'!AP7","v":"n.a."},{"$f":"'4. Gyermekek'!AQ7","v":"n.a."},null,2021,{"$f":"'4. Gyermekek'!AT7","v":0},{"$f":"'4. Gyermekek'!AU7","v":0},{"$f":"'4. Gyermekek'!AV7","v":0},{"$f":"'4. Gyermekek'!AW7","v":0},{"$f":"'4. Gyermekek'!AX7","v":8},{"$f":"'4. Gyermekek'!AY7","v":8},{"$f":"'4. Gyermekek'!AZ7","v":0},{"$f":"'4. Gyermekek'!BA7","v":0}]
[null,{"$f":"Q!$J$1-2","v":2021},{"$f":"'3. Mélyszegények-Romák'!F7","v":0.48},{"$f":"'3. Mélyszegények-Romák'!G7","v":1.05},{"$f":"'3. Mélyszegények-Romák'!H7","v":7.6500000000000005E-3},null,2021,{"$f":"'3. Mélyszegények-Romák'!T8","v":30.77},{"$f":"'3. Mélyszegények-Romák'!U8","v":75},null,2022,{"$f":"'3. Mélyszegények-Romák'!AK8","v":18},{"$f":"'3. Mélyszegények-Romák'!AL8","v":0},null,2022,{"$f":"'4. Gyermekek'!AD8","v":1},{"$f":"'4. Gyermekek'!AE8","v":"n.a."},{"$f":"'4. Gyermekek'!AF8","v":"-"},null,2022,{"$f":"'4. Gyermekek'!AP8","v":"n.a."},{"$f":"'4. Gyermekek'!AQ8","v":"n.a."},null,2022,{"$f":"'4. Gyermekek'!AT8","v":0},{"$f":"'4. Gyermekek'!AU8","v":0},{"$f":"'4. Gyermekek'!AV8","v":0},{"$f":"'4. Gyermekek'!AW8","v":0},{"$f":"'4. Gyermekek'!AX8","v":8},{"$f":"'4. Gyermekek'!AY8","v":8},{"$f":"'4. Gyermekek'!AZ8","v":0},{"$f":"'4. Gyermekek'!BA8","v":0}]
[null,{"$f":"Q!$J$1-1","v":2022},{"$f":"'3. Mélyszegények-Romák'!F8","v":1.03},{"$f":"'3. Mélyszegények-Romák'!G8","v":1},{"$f":"'3. Mélyszegények-Romák'!H8","v":1.0150000000000001E-2},null,2022,{"$f":"'3. Mélyszegények-Romák'!T9","v":22.22},{"$f":"'3. Mélyszegények-Romák'!U9","v":75},null,2023,{"$f":"'3. Mélyszegények-Romák'!AK9","v":26},{"$f":"'3. Mélyszegények-Romák'!AL9","v":0},null,2023,{"$f":"'4. Gyermekek'!AD9","v":"n.a."},{"$f":"'4. Gyermekek'!AE9","v":"n.a."},{"$f":"'4. Gyermekek'!AF9","v":"-"},null,2023,{"$f":"'4. Gyermekek'!AP9","v":"n.a."},{"$f":"'4. Gyermekek'!AQ9","v":"n.a."},null,2023,{"$f":"'4. Gyermekek'!AT9","v":0},{"$f":"'4. Gyermekek'!AU9","v":0},{"$f":"'4. Gyermekek'!AV9","v":0},{"$f":"'4. Gyermekek'!AW9","v":0},{"$f":"'4. Gyermekek'!AX9","v":8},{"$f":"'4. Gyermekek'!AY9","v":8},{"$f":"'4. Gyermekek'!AZ9","v":0},{"$f":"'4. Gyermekek'!BA9","v":0}]
[null,{"$f":"Q!$J$1","v":2023},{"$f":"'3. Mélyszegények-Romák'!F9","v":1.47},{"$f":"'3. Mélyszegények-Romák'!G9","v":1.41},{"$f":"'3. Mélyszegények-Romák'!H9","v":1.44E-2},null,2023,{"$f":"'3. Mélyszegények-Romák'!T10","v":19.23},{"$f":"'3. Mélyszegények-Romák'!U10","v":20},null,"Forrás: TeIR, Nemzeti Munkaügyi Hivatal",null,null,null,"Forrás: TeIR, KSH Tstar, Önkormányzati adatok",null,null,null,null,"Forrás: Önkormányzati és intézményi adatgyűjtés",null,null,null,null,"Forrás: TeIR, KSH Tstar"]
[null,"Forrás: TeIR, Nemzeti Munkaügyi Hivatal",null,null,null,null,"Forrás: TeIR, Nemzeti Munkaügyi Hivatal"]

{"sheet":"6. Idősek","index":5,"n_rows":14,"n_cols":40,"rows_kept":14,"cut":false,"hidden":false,"merged":[[0,1,0,4],[0,6,0,9],[0,11,0,18],[1,20,2,20],[0,20,0,27],[0,35,0,39],[0,29,0,32],[1,35,2,35],[9,20,10,20],[11,20,12,20],[3,20,4,20],[5,20,6,20],[7,20,8,20]]}
[null,"6.1. számú táblázat - Öregedési index (3. táblával azonos)",null,null,null,null,"6.1.1. számú táblázat – Nyugdíjban, ellátásban, járadékban és egyéb járandóságban részesülők száma",null,null,null,null,"6.1.2. számú táblázat - Nyugdíjszerű ellátások",null,null,null,null,null,null,null,null,"6.2. számú táblázat - Hátrányos megkülönböztetés a foglalkoztatás terén (a 3.2.2. táblázatból)",null,null,null,null,null,null,null,null,"6.3. számú táblázat – Nyugdíjban, ellátásban, járadékban és egyéb járandóságban részesülők száma (Megegyezik a 6.1.1-es táblázattal)",null,null,null,null,null,"6.3.1. számú táblázat - 65 évnél idősebb népesség és nappali ellátásban részesülő időskorúak száma"]
[null,"Év","65 év feletti állandó lakosok száma (fő)\n(TS 026 és TS 028 összesen)","0-14 éves korú állandó lakosok száma (fő)\n(TS 010 és TS 012 összesen)","Öregedési index\n% \n(TS 030)",null,"Év","Nyugdíjban, ellátásban, járadékban és egyéb járandóságban részesülő férfiak száma (TS 063)","Nyugdíjban, ellátásban, járadékban és egyéb járandóságban részesülő nők száma (TS 064)","Összes nyugdíjas",null,"Év","Életkoron alapuló ellátásban részesülő férfiak száma\n(TS 067)","Életkoron alapuló ellátásban részesülő nők száma\n(TS 068)","Öregségi nyugdíjban részesülő férfiak száma\n(TS 069)","Öregségi nyugdíjban részesülő nők száma\n(TS 070)","Özvegyi és szülői nyugdíjban részesülő férfiak száma\n(TS 071)","Özvegyi és szülői nyugdíjban részesülő nők száma\n(TS 072)","Időskorúak járadékában részesítettek havi átlagos száma (fő)\n (TS 134)",null,"Nyilvántartott álláskeresők száma összesen","Év",{"$f":"'3. Mélyszegények-Romák'!L2","v":2018},{"$f":"'3. Mélyszegények-Romák'!M2","v":2019},{"$f":"'3. Mélyszegények-Romák'!N2","v":2020},{"$f":"'3. Mélyszegények-Romák'!O2","v":2021},{"$f":"'3. Mélyszegények-Romák'!P2","v":2022},{"$f":"'3. Mélyszegények-Romák'!Q2","v":2023},null,"Év","Nyugdíjban, ellátásban, járadékban és egyéb járandóságban részesülő férfiak száma (TS 063)","Nyugdíjban, ellátásban, járadékban és egyéb járandóságban részesülő nők száma (TS 064)","Összes nyugdíjas",null,null,"Év","65 év feletti lakosság száma\n(férfiak TS 026, \nnők TS 028)","Nappali ellátásban részesülő \nidőskorúak száma (TS 129)","Házi segítségnyújtásban \nrészesülők száma\n(TS 130)","Szociális étkeztetésben \nrészesülők száma \n(TS 131)"]
[null,{"$f":"Q!$J$1-5","v":2018},{"$f":"'Település Bemutatása - Népesség'!O3","v":327},{"$f":"'Település Bemutatása - Népesség'!P3","v":346},{"$f":"'Település Bemutatása - Népesség'!Q3","v":0.94508670520231219},null,{"$f":"$B3","v":2018},{"$f":"_xlfn.IFNA(VLOOKUP(\"Nyugdíjban, ellátásban, járadékban és egyéb járandóságban részesülő férfiak (fő)\",Q!$A$1:$G$132,MATCH($G3,Q!$A$1:$G$1,FALSE),FALSE),\"n.a.\")","v":179},{"$f":"_xlfn.IFNA(VLOOKUP(\"Nyugdíjban, ellátásban, járadékban és egyéb járandóságban részesülő nők (fő)\",Q!$A$1:$G$132,MATCH($G3,Q!$A$1:$G$1,FALSE),FALSE),\"n.a.\")","v":300},{"$f":"IF(ISERR((H3+I3)*1),\"-\",(H3+I3)*1)","v":479},null,{"$f":"$B3","v":2018},{"$f":"_xlfn.IFNA(VLOOKUP(\"Életkoron alapuló ellátásban részesülő férfiak (fő)\",Q!$A$1:$G$132,MATCH($L3,Q!$A$1:$G$1,FALSE),FALSE),\"n.a.\")","v":11},{"$f":"_xlfn.IFNA(VLOOKUP(\"Életkoron alapuló ellátásban részesülő nők (fő)\",Q!$A$1:$G$132,MATCH($L3,Q!$A$1:$G$1,FALSE),FALSE),\"n.a.\")","v":2},{"$f":"_xlfn.IFNA(VLOOKUP(\"Öregségi nyugdíjban részesülő férfiak (fő)\",Q!$A$1:$G$132,MATCH($L3,Q!$A$1:$G$1,FALSE),FALSE),\"n.a.\")","v":139},{"$f":"_xlfn.IFNA(VLOOKUP(\"Öregségi nyugdíjban részesülő nők (fő)\",Q!$A$1:$G$132,MATCH($L3,Q!$A$1:$G$1,FALSE),FALSE),\"n.a.\")","v":257},{"$f":"_xlfn.IFNA(VLOOKUP(\"Özvegyi és szülői nyugdíjban részesülő férfiak (fő)\",Q!$A$1:$G$132,MATCH($L3,Q!$A$1:$G$1,FALSE),FALSE),\"n.a.\")","v":1},{"$f":"_xlfn.IFNA(VLOOKUP(\"Özvegyi és szülői nyugdíjban részesülő nők (fő)\",Q!$A$1:$G$132,MATCH($L3,Q!$A$1:$G$1,FALSE),FALSE),\"n.a.\")","v":4},{"$f":"_xlfn.IFNA(VLOOKUP(\"Időskorúak járadékában részesítettek havi átlagos létszáma (fő)\",Q!$A$1:$G$132,MATCH($L3,Q!$A$1:$G$1,FALSE),FALSE),\"n.a.\")","v":0},null,null,"Fő összesen",{"$f":"'3. Mélyszegények-Romák'!L3","v":17},{"$f":"'3. Mélyszegények-Romák'!M3","v":18},{"$f":"'3. Mélyszegények-Romák'!N3","v":26},{"$f":"'3. Mélyszegények-Romák'!O3","v":13},{"$f":"'3. Mélyszegények-Romák'!P3","v":18},{"$f":"'3. Mélyszegények-Romák'!Q3","v":26},null,{"$f":"$B3","v":2018},{"$f":"H3","v":179},{"$f":"I3","v":300},{"$f":"J3","v":479},null,null,null,"Fő","Fő","fő","fő"]
[null,{"$f":"Q!$J$1-4","v":2019},{"$f":"'Település Bemutatása - Népesség'!O4","v":354},{"$f":"'Település Bemutatása - Népesség'!P4","v":385},{"$f":"'Település Bemutatása - Népesség'!Q4","v":0.91948051948051945},null,{"$f":"$B4","v":2019},{"$f":"_xlfn.IFNA(VLOOKUP(\"Nyugdíjban, ellátásban, járadékban és egyéb járandóságban részesülő férfiak (fő)\",Q!$A$1:$G$132,MATCH($G4,Q!$A$1:$G$1,FALSE),FALSE),\"n.a.\")","v":184},{"$f":"_xlfn.IFNA(VLOOKUP(\"Nyugdíjban, ellátásban, járadékban és egyéb járandóságban részesülő nők (fő)\",Q!$A$1:$G$132,MATCH($G4,Q!$A$1:$G$1,FALSE),FALSE),\"n.a.\")","v":307},491,null,{"$f":"$B4","v":2019},{"$f":"_xlfn.IFNA(VLOOKUP(\"Életkoron alapuló ellátásban részesülő férfiak (fő)\",Q!$A$1:$G$132,MATCH($L4,Q!$A$1:$G$1,FALSE),FALSE),\"n.a.\")","v":10},{"$f":"_xlfn.IFNA(VLOOKUP(\"Életkoron alapuló ellátásban részesülő nők (fő)\",Q!$A$1:$G$132,MATCH($L4,Q!$A$1:$G$1,FALSE),FALSE),\"n.a.\")","v":0},{"$f":"_xlfn.IFNA(VLOOKUP(\"Öregségi nyugdíjban részesülő férfiak (fő)\",Q!$A$1:$G$132,MATCH($L4,Q!$A$1:$G$1,FALSE),FALSE),\"n.a.\")","v":143},{"$f":"_xlfn.IFNA(VLOOKUP(\"Öregségi nyugdíjban részesülő nők (fő)\",Q!$A$1:$G$132,MATCH($L4,Q!$A$1:$G$1,FALSE),FALSE),\"n.a.\")","v":269},{"$f":"_xlfn.IFNA(VLOOKUP(\"Özvegyi és szülői nyugdíjban részesülő férfiak (fő)\",Q!$A$1:$G$132,MATCH($L4,Q!$A$1:$G$1,FALSE),FALSE),\"n.a.\")","v":1},{"$f":"_xlfn.IFNA(VLOOKUP(\"Özvegyi és szülői nyugdíjban részesülő nők (fő)\",Q!$A$1:$G$132,MATCH($L4,Q!$A$1:$G$1,FALSE),FALSE),\"n.a.\")","v":4},{"$f":"_xlfn.IFNA(VLOOKUP(\"Időskorúak járadékában részesítettek havi átlagos létszáma (fő)\",Q!$A$1:$G$132,MATCH($L4,Q!$A$1:$G$1,FALSE),FALSE),\"n.a.\")","v":0},null,"41-45 év (TS 042)","Fő",{"$f":"'3. Mélyszegények-Romák'!L14","v":2},{"$f":"'3. Mélyszegények-Romák'!M14","v":2},{"$f":"'3. Mélyszegények-Romák'!N14","v":3},{"$f":"'3. Mélyszegények-Romák'!O14","v":1},{"$f":"'3. Mélyszegények-Romák'!P14","v":2},{"$f":"'3. Mélyszegények-Romák'!Q14","v":5},null,{"$f":"$B4","v":2019},{"$f":"H4","v":184},307,491,null,null,{"$f":"$B3","v":2018},{"$f":"C3","v":327},{"$f":"_xlfn.IFNA(VLOOKUP(\"Idősek nappali ellátásában részesülők (fő)\",Q!$A$1:$G$132,MATCH($AJ4,Q!$A$1:$G$1,FALSE),FALSE),\"n.a.\")","v":0},{"$f":"_xlfn.IFNA(VLOOKUP(\"Házi segítségnyújtásban részesülők (fő)\",Q!$A$1:$G$132,MATCH($AJ4,Q!$A$1:$G$1,FALSE),FALSE),\"n.a.\")","v":1},{"$f":"_xlfn.IFNA(VLOOKUP(\"Szociális étkeztetésben részesülők (fő)\",Q!$A$1:$G$132,MATCH($AJ4,Q!$A$1:$G$1,FALSE),FALSE),\"n.a.\")","v":22}]
[null,{"$f":"Q!$J$1-3","v":2020},{"$f":"'Település Bemutatása - Népesség'!O5","v":380},{"$f":"'Település Bemutatása - Népesség'!P5","v":439},{"$f":"'Település Bemutatása - Népesség'!Q5","v":0.86560364464692485},null,2020,{"$f":"_xlfn.IFNA(VLOOKUP(\"Nyugdíjban, ellátásban, járadékban és egyéb járandóságban részesülő férfiak (fő)\",Q!$A$1:$G$132,MATCH($G5,Q!$A$1:$G$1,FALSE),FALSE),\"n.a.\")","v":187},{"$f":"_xlfn.IFNA(VLOOKUP(\"Nyugdíjban, ellátásban, járadékban és egyéb járandóságban részesülő nők (fő)\",Q!$A$1:$G$132,MATCH($G5,Q!$A$1:$G$1,FALSE),FALSE),\"n.a.\")","v":300},487,null,2020,{"$f":"_xlfn.IFNA(VLOOKUP(\"Életkoron alapuló ellátásban részesülő férfiak (fő)\",Q!$A$1:$G$132,MATCH($L5,Q!$A$1:$G$1,FALSE),FALSE),\"n.a.\")","v":9},{"$f":"_xlfn.IFNA(VLOOKUP(\"Életkoron alapuló ellátásban részesülő nők (fő)\",Q!$A$1:$G$132,MATCH($L5,Q!$A$1:$G$1,FALSE),FALSE),\"n.a.\")","v":0},{"$f":"_xlfn.IFNA(VLOOKUP(\"Öregségi nyugdíjban részesülő férfiak (fő)\",Q!$A$1:$G$132,MATCH($L5,Q!$A$1:$G$1,FALSE),FALSE),\"n.a.\")","v":145},{"$f":"_xlfn.IFNA(VLOOKUP(\"Öregségi nyugdíjban részesülő nők (fő)\",Q!$A$1:$G$132,MATCH($L5,Q!$A$1:$G$1,FALSE),FALSE),\"n.a.\")","v":261},{"$f":"_xlfn.IFNA(VLOOKUP(\"Özvegyi és szülői nyugdíjban részesülő férfiak (fő)\",Q!$A$1:$G$132,MATCH($L5,Q!$A$1:$G$1,FALSE),FALSE),\"n.a.\")","v":2},{"$f":"_xlfn.IFNA(VLOOKUP(\"Özvegyi és szülői nyugdíjban részesülő nők (fő)\",Q!$A$1:$G$132,MATCH($L5,Q!$A$1:$G$1,FALSE),FALSE),\"n.a.\")","v":2},{"$f":"_xlfn.IFNA(VLOOKUP(\"Időskorúak járadékában részesítettek havi átlagos létszáma (fő)\",Q!$A$1:$G$132,MATCH($L5,Q!$A$1:$G$1,FALSE),FALSE),\"n.a.\")","v":0},null,null,"%",{"$f":"'3. Mélyszegények-Romák'!L15","v":0.11764705882352941},{"$f":"'3. Mélyszegények-Romák'!M15","v":0.1111111111111111},{"$f":"'3. Mélyszegények-Romák'!N15","v":0.11538461538461539},{"$f":"'3. Mélyszegények-Romák'!O15","v":7.6923076923076927E-2},{"$f":"'3. Mélyszegények-Romák'!P15","v":0.1111111111111111},{"$f":"'3. Mélyszegények-Romák'!Q15","v":0.19230769230769232},null,2020,187,300,487,null,null,{"$f":"$B4","v":2019},{"$f":"C4","v":354},{"$f":"_xlfn.IFNA(VLOOKUP(\"Idősek nappali ellátásában részesülők (fő)\",Q!$A$1:$G$132,MATCH($AJ5,Q!$A$1:$G$1,FALSE),FALSE),\"n.a.\")","v":0},{"$f":"_xlfn.IFNA(VLOOKUP(\"Házi segítségnyújtásban részesülők (fő)\",Q!$A$1:$G$132,MATCH($AJ5,Q!$A$1:$G$1,FALSE),FALSE),\"n.a.\")","v":1},{"$f":"_xlfn.IFNA(VLOOKUP(\"Szociális étkeztetésben részesülők (fő)\",Q!$A$1:$G$132,MATCH($AJ5,Q!$A$1:$G$1,FALSE),FALSE),\"n.a.\")","v":25}]
[null,{"$f":"Q!$J$1-2","v":2021},{"$f":"'Település Bemutatása - Népesség'!O6","v":394},{"$f":"'Település Bemutatása - Népesség'!P6","v":476},{"$f":"'Település Bemutatása - Népesség'!Q6","v":0.82773109243697474},null,2021,{"$f":"_xlfn.IFNA(VLOOKUP(\"Nyugdíjban, ellátásban, járadékban és egyéb járandóságban részesülő férfiak (fő)\",Q!$A$1:$G$132,MATCH($G6,Q!$A$1:$G$1,FALSE),FALSE),\"n.a.\")","v":186},{"$f":"_xlfn.IFNA(VLOOKUP(\"Nyugdíjban, ellátásban, járadékban és egyéb járandóságban részesülő nők (fő)\",Q!$A$1:$G$132,MATCH($G6,Q!$A$1:$G$1,FALSE),FALSE),\"n.a.\")","v":297},483,null,2021,{"$f":"_xlfn.IFNA(VLOOKUP(\"Életkoron alapuló ellátásban részesülő férfiak (fő)\",Q!$A$1:$G$132,MATCH($L6,Q!$A$1:$G$1,FALSE),FALSE),\"n.a.\")","v":10},{"$f":"_xlfn.IFNA(VLOOKUP(\"Életkoron alapuló ellátásban részesülő nők (fő)\",Q!$A$1:$G$132,MATCH($L6,Q!$A$1:$G$1,FALSE),FALSE),\"n.a.\")","v":0},{"$f":"_xlfn.IFNA(VLOOKUP(\"Öregségi nyugdíjban részesülő férfiak (fő)\",Q!$A$1:$G$132,MATCH($L6,Q!$A$1:$G$1,FALSE),FALSE),\"n.a.\")","v":145},{"$f":"_xlfn.IFNA(VLOOKUP(\"Öregségi nyugdíjban részesülő nők (fő)\",Q!$A$1:$G$132,MATCH($L6,Q!$A$1:$G$1,FALSE),FALSE),\"n.a.\")","v":260},{"$f":"_xlfn.IFNA(VLOOKUP(\"Özvegyi és szülői nyugdíjban részesülő férfiak (fő)\",Q!$A$1:$G$132,MATCH($L6,Q!$A$1:$G$1,FALSE),FALSE),\"n.a.\")","v":0},{"$f":"_xlfn.IFNA(VLOOKUP(\"Özvegyi és szülői nyugdíjban részesülő nők (fő)\",Q!$A$1:$G$132,MATCH($L6,Q!$A$1:$G$1,FALSE),FALSE),\"n.a.\")","v":3},{"$f":"_xlfn.IFNA(VLOOKUP(\"Időskorúak járadékában részesítettek havi átlagos létszáma (fő)\",Q!$A$1:$G$132,MATCH($L6,Q!$A$1:$G$1,FALSE),FALSE),\"n.a.\")","v":0},null,"46-50 év (TS 043)","Fő",{"$f":"'3. Mélyszegények-Romák'!L16","v":0},{"$f":"'3. Mélyszegények-Romák'!M16","v":1},{"$f":"'3. Mélyszegények-Romák'!N16","v":1},{"$f":"'3. Mélyszegények-Romák'!O16","v":1},{"$f":"'3. Mélyszegények-Romák'!P16","v":1},{"$f":"'3. Mélyszegények-Romák'!Q16","v":2},null,2021,186,297,483,null,null,2020,380,{"$f":"_xlfn.IFNA(VLOOKUP(\"Idősek nappali ellátásában részesülők (fő)\",Q!$A$1:$G$132,MATCH($AJ6,Q!$A$1:$G$1,FALSE),FALSE),\"n.a.\")","v":0},{"$f":"_xlfn.IFNA(VLOOKUP(\"Házi segítségnyújtásban részesülők (fő)\",Q!$A$1:$G$132,MATCH($AJ6,Q!$A$1:$G$1,FALSE),FALSE),\"n.a.\")","v":1},{"$f":"_xlfn.IFNA(VLOOKUP(\"Szociális étkeztetésben részesülők (fő)\",Q!$A$1:$G$132,MATCH($AJ6,Q!$A$1:$G$1,FALSE),FALSE),\"n.a.\")","v":28}]
[null,{"$f":"Q!$J$1-1","v":2022},{"$f":"'Település Bemutatása - Népesség'!O7","v":407},{"$f":"'Település Bemutatása - Népesség'!P7","v":526},{"$f":"'Település Bemutatása - Népesség'!Q7","v":0.77376425855513309},null,2022,{"$f":"_xlfn.IFNA(VLOOKUP(\"Nyugdíjban, ellátásban, járadékban és egyéb járandóságban részesülő férfiak (fő)\",Q!$A$1:$G$132,MATCH($G7,Q!$A$1:$G$1,FALSE),FALSE),\"n.a.\")","v":191},{"$f":"_xlfn.IFNA(VLOOKUP(\"Nyugdíjban, ellátásban, járadékban és egyéb járandóságban részesülő nők (fő)\",Q!$A$1:$G$132,MATCH($G7,Q!$A$1:$G$1,FALSE),FALSE),\"n.a.\")","v":291},482,null,2022,{"$f":"_xlfn.IFNA(VLOOKUP(\"Életkoron alapuló ellátásban részesülő férfiak (fő)\",Q!$A$1:$G$132,MATCH($L7,Q!$A$1:$G$1,FALSE),FALSE),\"n.a.\")","v":9},{"$f":"_xlfn.IFNA(VLOOKUP(\"Életkoron alapuló ellátásban részesülő nők (fő)\",Q!$A$1:$G$132,MATCH($L7,Q!$A$1:$G$1,FALSE),FALSE),\"n.a.\")","v":0},{"$f":"_xlfn.IFNA(VLOOKUP(\"Öregségi nyugdíjban részesülő férfiak (fő)\",Q!$A$1:$G$132,MATCH($L7,Q!$A$1:$G$1,FALSE),FALSE),\"n.a.\")","v":150},{"$f":"_xlfn.IFNA(VLOOKUP(\"Öregségi nyugdíjban részesülő nők (fő)\",Q!$A$1:$G$132,MATCH($L7,Q!$A$1:$G$1,FALSE),FALSE),\"n.a.\")","v":258},{"$f":"_xlfn.IFNA(VLOOKUP(\"Özvegyi és szülői nyugdíjban részesülő férfiak (fő)\",Q!$A$1:$G$132,MATCH($L7,Q!$A$1:$G$1,FALSE),FALSE),\"n.a.\")","v":1},{"$f":"_xlfn.IFNA(VLOOKUP(\"Özvegyi és szülői nyugdíjban részesülő nők (fő)\",Q!$A$1:$G$132,MATCH($L7,Q!$A$1:$G$1,FALSE),FALSE),\"n.a.\")","v":2},{"$f":"_xlfn.IFNA(VLOOKUP(\"Időskorúak járadékában részesítettek havi átlagos létszáma (fő)\",Q!$A$1:$G$132,MATCH($L7,Q!$A$1:$G$1,FALSE),FALSE),\"n.a.\")","v":0},null,null,"%",{"$f":"'3. Mélyszegények-Romák'!L17","v":0},{"$f":"'3. Mélyszegények-Romák'!M17","v":5.5555555555555552E-2},{"$f":"'3. Mélyszegények-Romák'!N17","v":3.8461538461538464E-2},{"$f":"'3. Mélyszegények-Romák'!O17","v":7.6923076923076927E-2},{"$f":"'3. Mélyszegények-Romák'!P17","v":5.5555555555555552E-2},{"$f":"'3. Mélyszegények-Romák'!Q17","v":7.6923076923076927E-2},null,2022,191,291,482,null,null,2021,394,{"$f":"_xlfn.IFNA(VLOOKUP(\"Idősek nappali ellátásában részesülők (fő)\",Q!$A$1:$G$132,MATCH($AJ7,Q!$A$1:$G$1,FALSE),FALSE),\"n.a.\")","v":0},{"$f":"_xlfn.IFNA(VLOOKUP(\"Házi segítségnyújtásban részesülők (fő)\",Q!$A$1:$G$132,MATCH($AJ7,Q!$A$1:$G$1,FALSE),FALSE),\"n.a.\")","v":2},{"$f":"_xlfn.IFNA(VLOOKUP(\"Szociális étkeztetésben részesülők (fő)\",Q!$A$1:$G$132,MATCH($AJ7,Q!$A$1:$G$1,FALSE),FALSE),\"n.a.\")","v":17}]
[null,{"$f":"Q!$J$1","v":2023},{"$f":"'Település Bemutatása - Népesség'!O8","v":406},{"$f":"'Település Bemutatása - Népesség'!P8","v":551},{"$f":"'Település Bemutatása - Népesség'!Q8","v":0.73684210526315785},null,2023,{"$f":"_xlfn.IFNA(VLOOKUP(\"Nyugdíjban, ellátásban, járadékban és egyéb járandóságban részesülő férfiak (fő)\",Q!$A$1:$G$132,MATCH($G8,Q!$A$1:$G$1,FALSE),FALSE),\"n.a.\")","v":193},{"$f":"_xlfn.IFNA(VLOOKUP(\"Nyugdíjban, ellátásban, járadékban és egyéb járandóságban részesülő nők (fő)\",Q!$A$1:$G$132,MATCH($G8,Q!$A$1:$G$1,FALSE),FALSE),\"n.a.\")","v":287},480,null,2023,{"$f":"_xlfn.IFNA(VLOOKUP(\"Életkoron alapuló ellátásban részesülő férfiak (fő)\",Q!$A$1:$G$132,MATCH($L8,Q!$A$1:$G$1,FALSE),FALSE),\"n.a.\")","v":9},{"$f":"_xlfn.IFNA(VLOOKUP(\"Életkoron alapuló ellátásban részesülő nők (fő)\",Q!$A$1:$G$132,MATCH($L8,Q!$A$1:$G$1,FALSE),FALSE),\"n.a.\")","v":0},{"$f":"_xlfn.IFNA(VLOOKUP(\"Öregségi nyugdíjban részesülő férfiak (fő)\",Q!$A$1:$G$132,MATCH($L8,Q!$A$1:$G$1,FALSE),FALSE),\"n.a.\")","v":152},{"$f":"_xlfn.IFNA(VLOOKUP(\"Öregségi nyugdíjban részesülő nők (fő)\",Q!$A$1:$G$132,MATCH($L8,Q!$A$1:$G$1,FALSE),FALSE),\"n.a.\")","v":251},{"$f":"_xlfn.IFNA(VLOOKUP(\"Özvegyi és szülői nyugdíjban részesülő férfiak (fő)\",Q!$A$1:$G$132,MATCH($L8,Q!$A$1:$G$1,FALSE),FALSE),\"n.a.\")","v":1},{"$f":"_xlfn.IFNA(VLOOKUP(\"Özvegyi és szülői nyugdíjban részesülő nők (fő)\",Q!$A$1:$G$132,MATCH($L8,Q!$A$1:$G$1,FALSE),FALSE),\"n.a.\")","v":4},{"$f":"_xlfn.IFNA(VLOOKUP(\"Időskorúak járadékában részesítettek havi átlagos létszáma (fő)\",Q!$A$1:$G$132,MATCH($L8,Q!$A$1:$G$1,FALSE),FALSE),\"n.a.\")","v":0},null,"51-55 év (TS 044)","Fő",{"$f":"'3. Mélyszegények-Romák'!L18","v":1},{"$f":"'3. Mélyszegények-Romák'!M18","v":2},{"$f":"'3. Mélyszegények-Romák'!N18","v":2},{"$f":"'3. Mélyszegények-Romák'!O18","v":2},{"$f":"'3. Mélyszegények-Romák'!P18","v":1},{"$f":"'3. Mélyszegények-Romák'!Q18","v":3},null,2023,193,287,480,null,null,2022,407,{"$f":"_xlfn.IFNA(VLOOKUP(\"Idősek nappali ellátásában részesülők (fő)\",Q!$A$1:$G$132,MATCH($AJ8,Q!$A$1:$G$1,FALSE),FALSE),\"n.a.\")","v":0},{"$f":"_xlfn.IFNA(VLOOKUP(\"Házi segítségnyújtásban részesülők (fő)\",Q!$A$1:$G$132,MATCH($AJ8,Q!$A$1:$G$1,FALSE),FALSE),\"n.a.\")","v":2},{"$f":"_xlfn.IFNA(VLOOKUP(\"Szociális étkeztetésben részesülők (fő)\",Q!$A$1:$G$132,MATCH($AJ8,Q!$A$1:$G$1,FALSE),FALSE),\"n.a.\")","v":16}]
[null,"Forrás: TeIR, KSH-TSTAR",null,null,null,null,"Forrás: TeIR, KSH Tstar",null,null,null,null,"Forrás: TeIR, KSH Tstar",null,null,null,null,null,null,null,null,null,"%",{"$f":"'3. Mélyszegények-Romák'!L19","v":5.8823529411764705E-2},{"$f":"'3. Mélyszegények-Romák'!M19","v":0.1111111111111111},{"$f":"'3. Mélyszegények-Romák'!N19","v":7.6923076923076927E-2},{"$f":"'3. Mélyszegények-Romák'!O19","v":0.15384615384615385},{"$f":"'3. Mélyszegények-Romák'!P19","v":5.5555555555555552E-2},{"$f":"'3. Mélyszegények-Romák'!Q19","v":0.11538461538461539},null,"Forrás: TeIR, KSH Tstar",null,null,null,null,null,2023,406,{"$f":"_xlfn.IFNA(VLOOKUP(\"Idősek nappali ellátásában részesülők (fő)\",Q!$A$1:$G$132,MATCH($AJ9,Q!$A$1:$G$1,FALSE),FALSE),\"n.a.\")","v":0},{"$f":"_xlfn.IFNA(VLOOKUP(\"Házi segítségnyújtásban részesülők (fő)\",Q!$A$1:$G$132,MATCH($AJ9,Q!$A$1:$G$1,FALSE),FALSE),\"n.a.\")","v":3},{"$f":"_xlfn.IFNA(VLOOKUP(\"Szociális étkeztetésben részesülők (fő)\",Q!$A$1:$G$132,MATCH($AJ9,Q!$A$1:$G$1,FALSE),FALSE),\"n.a.\")","v":21}]
[null,null,null,null,null,null,null,null,null,null,null,null,null,null,null,null,null,null,null,null,"56-60 év (TS 045)","Fő",{"$f":"'3. Mélyszegények-Romák'!L20","v":1},{"$f":"'3. Mélyszegények-Romák'!M20","v":2},{"$f":"'3. Mélyszegények-Romák'!N20","v":1},{"$f":"'3. Mélyszegények-Romák'!O20","v":0},{"$f":"'3. Mélyszegények-Romák'!P20","v":1},{"$f":"'3. Mélyszegények-Romák'!Q20","v":0},null,null,null,null,null,null,null,"Forrás: TeIR, KSH Tstar"]
[null,null,null,null,null,null,null,null,null,null,null,null,null,null,null,null,null,null,null,null,null,"%",{"$f":"'3. Mélyszegények-Romák'!L21","v":5.8823529411764705E-2},{"$f":"'3. Mélyszegények-Romák'!M21","v":0.1111111111111111},{"$f":"'3. Mélyszegények-Romák'!N21","v":3.8461538461538464E-2},{"$f":"'3. Mélyszegények-Romák'!O21","v":0},{"$f":"'3. Mélyszegények-Romák'!P21","v":5.5555555555555552E-2},{"$f":"'3. Mélyszegények-Romák'!Q21","v":0}]
[null,null,null,null,null,null,null,null,null,null,null,null,null,null,null,null,null,null,null,null,"61 éves, vagy afeletti (TS 046)","Fő",{"$f":"'3. Mélyszegények-Romák'!L22","v":6},{"$f":"'3. Mélyszegények-Romák'!M22","v":5},{"$f":"'3. Mélyszegények-Romák'!N22","v":6},{"$f":"'3. Mélyszegények-Romák'!O22","v":5},{"$f":"'3. Mélyszegények-Romák'!P22","v":6},{"$f":"'3. Mélyszegények-Romák'!Q22","v":6}]
[null,null,null,null,null,null,null,null,null,null,null,null,null,null,null,null,null,null,null,null,null,"%",{"$f":"'3. Mélyszegények-Romák'!L23","v":0.35294117647058826},{"$f":"'3. Mélyszegények-Romák'!M23","v":0.27777777777777779},{"$f":"'3. Mélyszegények-Romák'!N23","v":0.23076923076923078},{"$f":"'3. Mélyszegények-Romák'!O23","v":0.38461538461538464},{"$f":"'3. Mélyszegények-Romák'!P23","v":0.33333333333333331},{"$f":"'3. Mélyszegények-Romák'!Q23","v":0.23076923076923078}]
[null,null,null,null,null,null,null,null,null,null,null,null,null,null,null,null,null,null,null,null,"Forrás: TeIR, Nemzeti Munkaügyi Hivatal"]

{"sheet":"7.Fogyatékkal élők","index":6,"n_rows":9,"n_cols":8,"rows_kept":9,"cut":false,"hidden":false,"merged":[[1,10,2,10],[1,12,1,13],[0,1,0,4],[0,6,0,7],[0,10,0,13]]}
[null,"7.1.1 számú táblázat - Megváltozott munkaképességű személyek ellátásaiban részesülők száma nemenként",null,null,null,null,"7.1.2. számú táblázat - Nappali ellátásban részesülő \nfogyatékkal élők száma"]
[null,"Év","Megváltozott munkaképességű személyek ellátásaiban részesülők száma - Férfiak (TS 061)","Megváltozott munkaképességű személyek ellátásaiban részesülők száma - Nők (TS 062)","Összesen",null,"Év","Nappali ellátásban részesülő fogyatékos személyek száma \n(TS 128)"]
[null,{"$f":"Q!$J$1-5","v":2018},{"$f":"_xlfn.IFNA(VLOOKUP(\"Megváltozott munkaképességűeknek járó ellátásban részesülő férfiak (fő)\",Q!$A$1:$G$132,MATCH($B3,Q!$A$1:$G$1,FALSE),FALSE),\"n.a.\")","v":24},{"$f":"_xlfn.IFNA(VLOOKUP(\"Megváltozott munkaképességűeknek járó ellátásban részesülő nők (fő)\",Q!$A$1:$G$132,MATCH($B3,Q!$A$1:$G$1,FALSE),FALSE),\"n.a.\")","v":28},{"$f":"IF(ISERR((C3+D3)),\"-\",(C3+D3))","v":52},null,{"$f":"B3","v":2018},{"$f":"_xlfn.IFNA(VLOOKUP(\"Fogyatékosok nappali ellátásában részesülők (fő)\",Q!$A$1:$G$132,MATCH($G3,Q!$A$1:$G$1,FALSE),FALSE),\"n.a.\")","v":0}]
[null,{"$f":"Q!$J$1-4","v":2019},{"$f":"_xlfn.IFNA(VLOOKUP(\"Megváltozott munkaképességűeknek járó ellátásban részesülő férfiak (fő)\",Q!$A$1:$G$132,MATCH($B4,Q!$A$1:$G$1,FALSE),FALSE),\"n.a.\")","v":25},{"$f":"_xlfn.IFNA(VLOOKUP(\"Megváltozott munkaképességűeknek járó ellátásban részesülő nők (fő)\",Q!$A$1:$G$132,MATCH($B4,Q!$A$1:$G$1,FALSE),FALSE),\"n.a.\")","v":24},49,null,{"$f":"B4","v":2019},{"$f":"_xlfn.IFNA(VLOOKUP(\"Fogyatékosok nappali ellátásában részesülők (fő)\",Q!$A$1:$G$132,MATCH($G4,Q!$A$1:$G$1,FALSE),FALSE),\"n.a.\")","v":0}]
[null,{"$f":"Q!$J$1-3","v":2020},{"$f":"_xlfn.IFNA(VLOOKUP(\"Megváltozott munkaképességűeknek járó ellátásban részesülő férfiak (fő)\",Q!$A$1:$G$132,MATCH($B5,Q!$A$1:$G$1,FALSE),FALSE),\"n.a.\")","v":25},{"$f":"_xlfn.IFNA(VLOOKUP(\"Megváltozott munkaképességűeknek járó ellátásban részesülő nők (fő)\",Q!$A$1:$G$132,MATCH($B5,Q!$A$1:$G$1,FALSE),FALSE),\"n.a.\")","v":26},51,null,2020,{"$f":"_xlfn.IFNA(VLOOKUP(\"Fogyatékosok nappali ellátásában részesülők (fő)\",Q!$A$1:$G$132,MATCH($G5,Q!$A$1:$G$1,FALSE),FALSE),\"n.a.\")","v":0}]
[null,{"$f":"Q!$J$1-2","v":2021},{"$f":"_xlfn.IFNA(VLOOKUP(\"Megváltozott munkaképességűeknek járó ellátásban részesülő férfiak (fő)\",Q!$A$1:$G$132,MATCH($B6,Q!$A$1:$G$1,FALSE),FALSE),\"n.a.\")","v":26},{"$f":"_xlfn.IFNA(VLOOKUP(\"Megváltozott munkaképességűeknek járó ellátásban részesülő nők (fő)\",Q!$A$1:$G$132,MATCH($B6,Q!$A$1:$G$1,FALSE),FALSE),\"n.a.\")","v":25},51,null,2021,{"$f":"_xlfn.IFNA(VLOOKUP(\"Fogyatékosok nappali ellátásában részesülők (fő)\",Q!$A$1:$G$132,MATCH($G6,Q!$A$1:$G$1,FALSE),FALSE),\"n.a.\")","v":0}]
[null,{"$f":"Q!$J$1-1","v":2022},{"$f":"_xlfn.IFNA(VLOOKUP(\"Megváltozott munkaképességűeknek járó ellátásban részesülő férfiak (fő)\",Q!$A$1:$G$132,MATCH($B7,Q!$A$1:$G$1,FALSE),FALSE),\"n.a.\")","v":24},{"$f":"_xlfn.IFNA(VLOOKUP(\"Megváltozott munkaképességűeknek járó ellátásban részesülő nők (fő)\",Q!$A$1:$G$132,MATCH($B7,Q!$A$1:$G$1,FALSE),FALSE),\"n.a.\")","v":21},45,null,2022,{"$f":"_xlfn.IFNA(VLOOKUP(\"Fogyatékosok nappali ellátásában részesülők (fő)\",Q!$A$1:$G$132,MATCH($G7,Q!$A$1:$G$1,FALSE),FALSE),\"n.a.\")","v":0}]
[null,{"$f":"Q!$J$1","v":2023},{"$f":"_xlfn.IFNA(VLOOKUP(\"Megváltozott munkaképességűeknek járó ellátásban részesülő férfiak (fő)\",Q!$A$1:$G$132,MATCH($B8,Q!$A$1:$G$1,FALSE),FALSE),\"n.a.\")","v":25},{"$f":"_xlfn.IFNA(VLOOKUP(\"Megváltozott munkaképességűeknek járó ellátásban részesülő nők (fő)\",Q!$A$1:$G$132,MATCH($B8,Q!$A$1:$G$1,FALSE),FALSE),\"n.a.\")","v":21},46,null,2023,{"$f":"_xlfn.IFNA(VLOOKUP(\"Fogyatékosok nappali ellátásában részesülők (fő)\",Q!$A$1:$G$132,MATCH($G8,Q!$A$1:$G$1,FALSE),FALSE),\"n.a.\")","v":0}]
[null,"Forrás: TeIR, KSH Tstar",null,null,null,null,"Forrás: TeIR, KSH Tstar; és helyi adatszolgáltatók "]